Organisation Code,Organisation Label,Effective Date,Organisational Unit,Service Division Label,Category Internal Name,Purpose,Detailed Expenditure Code,Payment Date,Transaction Number,Irrecoverable VAT Amount,Amount,Capital Or Revenue,Benificiary Name,Procurement Card
Http://opendatacommunities.org/id/metropolitan-district-council/leeds,Leeds City Council,31/12/2015,Citizens And Communities,Benefits  Wlefare And Poverty ,Supplies and Services,Telephones,213,26-Nov-2015,1512-00001,0.00,45.00,R,(Aq) Limited,Yes
Http://opendatacommunities.org/id/metropolitan-district-council/leeds,Leeds City Council,31/12/2015,Childrens Services,Learning Skills & Universal,Supplies and Services,Bought In Professional Services,277,24-Dec-2015,1512-00002,0.00,85.00,R,A Ajmal,No
Http://opendatacommunities.org/id/metropolitan-district-council/leeds,Leeds City Council,31/12/2015,Central & Corporate,Commercial Services Trading Services,Supplies and Services,Operational Materials,205,02-Dec-2015,1512-00003,0.00,16.50,R,A Andrews & Sons (Marbles & Tiles),No
Http://opendatacommunities.org/id/metropolitan-district-council/leeds,Leeds City Council,31/12/2015,Central & Corporate,Commercial Services Trading Services,Supplies and Services,Operational Materials,205,04-Dec-2015,1512-00004,0.00,415.02,R,A Andrews & Sons (Marbles & Tiles),No
Http://opendatacommunities.org/id/metropolitan-district-council/leeds,Leeds City Council,31/12/2015,Central & Corporate,Commercial Services Trading Services,Supplies and Services,Operational Materials,205,04-Dec-2015,1512-00005,0.00,9.11,R,A Andrews & Sons (Marbles & Tiles),No
Http://opendatacommunities.org/id/metropolitan-district-council/leeds,Leeds City Council,31/12/2015,Central & Corporate,Commercial Services Trading Services,Supplies and Services,Operational Materials,205,04-Dec-2015,1512-00006,0.00,20.05,R,A Andrews & Sons (Marbles & Tiles),No
Http://opendatacommunities.org/id/metropolitan-district-council/leeds,Leeds City Council,31/12/2015,Central & Corporate,Commercial Services Trading Services,Supplies and Services,Operational Materials,205,22-Dec-2015,1512-00007,0.00,16.20,R,A Andrews & Sons (Marbles & Tiles),No
Http://opendatacommunities.org/id/metropolitan-district-council/leeds,Leeds City Council,31/12/2015,Central & Corporate,Commercial Services Trading Services,Supplies and Services,Operational Materials,205,22-Dec-2015,1512-00008,0.00,15.17,R,A Andrews & Sons (Marbles & Tiles),No
Http://opendatacommunities.org/id/metropolitan-district-council/leeds,Leeds City Council,31/12/2015,Central & Corporate,Commercial Services Trading Services,Supplies and Services,Operational Materials,205,31-Dec-2015,1512-00009,0.00,34.97,R,A Andrews & Sons (Marbles & Tiles),No
Http://opendatacommunities.org/id/metropolitan-district-council/leeds,Leeds City Council,31/12/2015,Central & Corporate,Commercial Services Trading Services,Supplies and Services,Operational Materials,205,31-Dec-2015,1512-00010,0.00,12.21,R,A Andrews & Sons (Marbles & Tiles),No
Http://opendatacommunities.org/id/metropolitan-district-council/leeds,Leeds City Council,31/12/2015,Central & Corporate,Commercial Services Trading Services,Supplies and Services,Operational Materials,205,31-Dec-2015,1512-00011,0.00,8.14,R,A Andrews & Sons (Marbles & Tiles),No
Http://opendatacommunities.org/id/metropolitan-district-council/leeds,Leeds City Council,31/12/2015,City Development,Libraries  Arts & Heritage,Supplies and Services,Bought In Professional Services,277,03-Dec-2015,1512-00012,0.00,160.00,R,A B Jones,No
Http://opendatacommunities.org/id/metropolitan-district-council/leeds,Leeds City Council,31/12/2015,City Development,Libraries  Arts & Heritage,Supplies and Services,Operational Materials,205,11-Dec-2015,1512-00013,0.00,76.58,R,A C Entertainment Technologies Ltd,No
Http://opendatacommunities.org/id/metropolitan-district-council/leeds,Leeds City Council,31/12/2015,City Development,Libraries  Arts & Heritage,Supplies and Services,Office Furniture & Equipment,201,16-Dec-2015,1512-00014,0.00,358.49,R,A C Entertainment Technologies Ltd,No
Http://opendatacommunities.org/id/metropolitan-district-council/leeds,Leeds City Council,31/12/2015,City Development,Libraries  Arts & Heritage,Supplies and Services,Office Furniture & Equipment,201,23-Dec-2015,1512-00015,0.00,53.99,R,A C Entertainment Technologies Ltd,No
Http://opendatacommunities.org/id/metropolitan-district-council/leeds,Leeds City Council,31/12/2015,City Development,Libraries  Arts & Heritage,Supplies and Services,Office Furniture & Equipment,201,24-Dec-2015,1512-00016,0.00,85.00,R,A C Entertainment Technologies Ltd,No
Http://opendatacommunities.org/id/metropolitan-district-council/leeds,Leeds City Council,31/12/2015,City Development,Libraries  Arts & Heritage,Supplies and Services,Office Furniture & Equipment,201,30-Dec-2015,1512-00017,0.00,466.15,R,A C Entertainment Technologies Ltd,No
Http://opendatacommunities.org/id/metropolitan-district-council/leeds,Leeds City Council,31/12/2015,Civic Enterprise Leeds,Business Support Centre,Supplies and Services,Office Consumables,210,09-Dec-2015,1512-00018,0.00,1875.00,R,A C Labels (2010) Ltd,No
Http://opendatacommunities.org/id/metropolitan-district-council/leeds,Leeds City Council,31/12/2015,Environment & Housing,Housing Leeds Service,Capital,Other Costs,7,18-Dec-2015,1512-00019,0.00,330.00,C,REDACTED PERSONAL DATA,No
Http://opendatacommunities.org/id/metropolitan-district-council/leeds,Leeds City Council,31/12/2015,Childrens Services,Learning Skills & Universal,Third Party Payments,Services Rendered By Other Organisations,511,11-Dec-2015,1512-00020,0.00,262.20,R,A Clarkson,No
Http://opendatacommunities.org/id/metropolitan-district-council/leeds,Leeds City Council,31/12/2015,Environment & Housing,Parks and Countryside,Supplies and Services,Bought In Professional Services,277,11-Dec-2015,1512-00021,0.00,1399.60,R,REDACTED COMMERCIAL CONFIDENTIALITY,No
Http://opendatacommunities.org/id/metropolitan-district-council/leeds,Leeds City Council,31/12/2015,Civic Enterprise Leeds,Facilities Management,Supplies and Services,Operational Furniture And Equipment,203,18-Dec-2015,1512-00022,0.00,79.00,R,A D Smith,No
Http://opendatacommunities.org/id/metropolitan-district-council/leeds,Leeds City Council,31/12/2015,Childrens Services,Learning Skills & Universal,Third Party Payments,Services Rendered By Voluntary Sector,505,04-Dec-2015,1512-00023,0.00,3620.04,R,A E Speight,No
Http://opendatacommunities.org/id/metropolitan-district-council/leeds,Leeds City Council,31/12/2015,Childrens Services,Learning Skills & Universal,Third Party Payments,Services Rendered By Voluntary Sector,505,11-Dec-2015,1512-00024,0.00,1833.30,R,A E Speight,No
Http://opendatacommunities.org/id/metropolitan-district-council/leeds,Leeds City Council,31/12/2015,Environment & Housing,Housing Leeds Service,Capital,Other Costs,7,17-Dec-2015,1512-00025,0.00,100.00,C,REDACTED PERSONAL DATA,No
Http://opendatacommunities.org/id/metropolitan-district-council/leeds,Leeds City Council,31/12/2015,Childrens Services,Learning Skills & Universal,Third Party Payments,Services Rendered By Other Organisations,511,04-Dec-2015,1512-00026,0.00,407.40,R,A Green,No
Http://opendatacommunities.org/id/metropolitan-district-council/leeds,Leeds City Council,31/12/2015,Environment & Housing,Housing Leeds Service,Capital,Other Costs,7,17-Dec-2015,1512-00027,0.00,280.00,C,REDACTED PERSONAL DATA,No
Http://opendatacommunities.org/id/metropolitan-district-council/leeds,Leeds City Council,31/12/2015,Environment & Housing,Housing Leeds Service,Capital,Other Costs,7,03-Dec-2015,1512-00028,0.00,380.00,C,REDACTED PERSONAL DATA,No
Http://opendatacommunities.org/id/metropolitan-district-council/leeds,Leeds City Council,31/12/2015,Childrens Services,Learning Skills & Universal,Third Party Payments,Services Rendered By Other Organisations,511,11-Dec-2015,1512-00029,0.00,159.60,R,A Hayes,No
Http://opendatacommunities.org/id/metropolitan-district-council/leeds,Leeds City Council,31/12/2015,Citizens and Communities,Customer Access,Supplies and Services,Bought In Professional Services,277,31-Dec-2015,1512-00030,0.00,79.20,R,A Haythornthwaite,No
Http://opendatacommunities.org/id/metropolitan-district-council/leeds,Leeds City Council,31/12/2015,City Development,Libraries  Arts & Heritage,Supplies and Services,Other Hired And Contracted Services,265,04-Dec-2015,1512-00031,0.00,150.00,R,REDACTED COMMERCIAL CONFIDENTIALITY,No
Http://opendatacommunities.org/id/metropolitan-district-council/leeds,Leeds City Council,31/12/2015,City Development,Libraries  Arts & Heritage,Supplies and Services,Other Hired And Contracted Services,265,31-Dec-2015,1512-00032,0.00,150.00,R,REDACTED COMMERCIAL CONFIDENTIALITY,No
Http://opendatacommunities.org/id/metropolitan-district-council/leeds,Leeds City Council,31/12/2015,Central & Corporate,Commercial Services Trading Services,Supplies and Services,Other Hired And Contracted Services,265,02-Dec-2015,1512-00033,0.00,579.00,R,A J H  Pump Supply & Repair Ltd,No
Http://opendatacommunities.org/id/metropolitan-district-council/leeds,Leeds City Council,31/12/2015,Central & Corporate,Commercial Services Trading Services,Supplies and Services,Operational Materials,205,02-Dec-2015,1512-00034,0.00,378.00,R,A J H  Pump Supply & Repair Ltd,No
Http://opendatacommunities.org/id/metropolitan-district-council/leeds,Leeds City Council,31/12/2015,Central & Corporate,Commercial Services Trading Services,Supplies and Services,Operational Materials,205,02-Dec-2015,1512-00035,0.00,45.00,R,A J H  Pump Supply & Repair Ltd,No
Http://opendatacommunities.org/id/metropolitan-district-council/leeds,Leeds City Council,31/12/2015,Central & Corporate,Commercial Services Trading Services,Supplies and Services,Operational Materials,205,02-Dec-2015,1512-00036,0.00,5.27,R,A J H  Pump Supply & Repair Ltd,No
Http://opendatacommunities.org/id/metropolitan-district-council/leeds,Leeds City Council,31/12/2015,Central & Corporate,Commercial Services Trading Services,Supplies and Services,Operational Materials,205,11-Dec-2015,1512-00037,0.00,403.00,R,A J H  Pump Supply & Repair Ltd,No
Http://opendatacommunities.org/id/metropolitan-district-council/leeds,Leeds City Council,31/12/2015,Central & Corporate,Commercial Services Trading Services,Supplies and Services,Operational Materials,205,11-Dec-2015,1512-00038,0.00,126.22,R,A J H  Pump Supply & Repair Ltd,No
Http://opendatacommunities.org/id/metropolitan-district-council/leeds,Leeds City Council,31/12/2015,Central & Corporate,Commercial Services Trading Services,Supplies and Services,Operational Materials,205,11-Dec-2015,1512-00039,0.00,227.57,R,A J H  Pump Supply & Repair Ltd,No
Http://opendatacommunities.org/id/metropolitan-district-council/leeds,Leeds City Council,31/12/2015,Central & Corporate,Commercial Services Trading Services,Supplies and Services,Operational Materials,205,11-Dec-2015,1512-00040,0.00,21.00,R,A J H  Pump Supply & Repair Ltd,No
Http://opendatacommunities.org/id/metropolitan-district-council/leeds,Leeds City Council,31/12/2015,Central & Corporate,Commercial Services Trading Services,Supplies and Services,Operational Materials,205,11-Dec-2015,1512-00041,0.00,85.00,R,A J H  Pump Supply & Repair Ltd,No
Http://opendatacommunities.org/id/metropolitan-district-council/leeds,Leeds City Council,31/12/2015,Central & Corporate,Commercial Services Trading Services,Supplies and Services,Operational Materials,205,11-Dec-2015,1512-00042,0.00,38.28,R,A J H  Pump Supply & Repair Ltd,No
Http://opendatacommunities.org/id/metropolitan-district-council/leeds,Leeds City Council,31/12/2015,Central & Corporate,Commercial Services Trading Services,Supplies and Services,Operational Materials,205,11-Dec-2015,1512-00043,0.00,12.50,R,A J H  Pump Supply & Repair Ltd,No
Http://opendatacommunities.org/id/metropolitan-district-council/leeds,Leeds City Council,31/12/2015,Central & Corporate,Commercial Services Trading Services,Supplies and Services,Operational Materials,205,11-Dec-2015,1512-00044,0.00,38.69,R,A J H  Pump Supply & Repair Ltd,No
Http://opendatacommunities.org/id/metropolitan-district-council/leeds,Leeds City Council,31/12/2015,Central & Corporate,Commercial Services Trading Services,Supplies and Services,Operational Materials,205,11-Dec-2015,1512-00045,0.00,36.58,R,A J H  Pump Supply & Repair Ltd,No
Http://opendatacommunities.org/id/metropolitan-district-council/leeds,Leeds City Council,31/12/2015,Central & Corporate,Commercial Services Trading Services,Supplies and Services,Operational Materials,205,11-Dec-2015,1512-00046,0.00,315.00,R,A J H  Pump Supply & Repair Ltd,No
Http://opendatacommunities.org/id/metropolitan-district-council/leeds,Leeds City Council,31/12/2015,Central & Corporate,Commercial Services Trading Services,Supplies and Services,Other Hired And Contracted Services,265,16-Dec-2015,1512-00047,0.00,430.00,R,A J H  Pump Supply & Repair Ltd,No
Http://opendatacommunities.org/id/metropolitan-district-council/leeds,Leeds City Council,31/12/2015,Central & Corporate,Commercial Services Trading Services,Supplies and Services,Operational Materials,205,16-Dec-2015,1512-00048,0.00,30.90,R,A J H  Pump Supply & Repair Ltd,No
Http://opendatacommunities.org/id/metropolitan-district-council/leeds,Leeds City Council,31/12/2015,Central & Corporate,Commercial Services Trading Services,Supplies and Services,Operational Materials,205,18-Dec-2015,1512-00049,0.00,458.00,R,A J H  Pump Supply & Repair Ltd,No
Http://opendatacommunities.org/id/metropolitan-district-council/leeds,Leeds City Council,31/12/2015,Central & Corporate,Commercial Services Trading Services,Supplies and Services,Operational Materials,205,18-Dec-2015,1512-00050,0.00,53.66,R,A J H  Pump Supply & Repair Ltd,No
Http://opendatacommunities.org/id/metropolitan-district-council/leeds,Leeds City Council,31/12/2015,Central & Corporate,Commercial Services Trading Services,Supplies and Services,Operational Materials,205,18-Dec-2015,1512-00051,0.00,105.00,R,A J H  Pump Supply & Repair Ltd,No
Http://opendatacommunities.org/id/metropolitan-district-council/leeds,Leeds City Council,31/12/2015,Central & Corporate,Commercial Services Trading Services,Supplies and Services,Operational Materials,205,18-Dec-2015,1512-00052,0.00,35.00,R,A J H  Pump Supply & Repair Ltd,No
Http://opendatacommunities.org/id/metropolitan-district-council/leeds,Leeds City Council,31/12/2015,Central & Corporate,Commercial Services Trading Services,Supplies and Services,Operational Materials,205,18-Dec-2015,1512-00053,0.00,18.98,R,A J H  Pump Supply & Repair Ltd,No
Http://opendatacommunities.org/id/metropolitan-district-council/leeds,Leeds City Council,31/12/2015,Central & Corporate,Commercial Services Trading Services,Supplies and Services,Operational Materials,205,18-Dec-2015,1512-00054,0.00,245.00,R,A J H  Pump Supply & Repair Ltd,No
Http://opendatacommunities.org/id/metropolitan-district-council/leeds,Leeds City Council,31/12/2015,Central & Corporate,Commercial Services Trading Services,Supplies and Services,Operational Materials,205,18-Dec-2015,1512-00055,0.00,14.50,R,A J H  Pump Supply & Repair Ltd,No
Http://opendatacommunities.org/id/metropolitan-district-council/leeds,Leeds City Council,31/12/2015,Central & Corporate,Commercial Services Trading Services,Supplies and Services,Operational Materials,205,18-Dec-2015,1512-00056,0.00,26.00,R,A J H  Pump Supply & Repair Ltd,No
Http://opendatacommunities.org/id/metropolitan-district-council/leeds,Leeds City Council,31/12/2015,Central & Corporate,Commercial Services Trading Services,Supplies and Services,Operational Materials,205,18-Dec-2015,1512-00057,0.00,68.09,R,A J H  Pump Supply & Repair Ltd,No
Http://opendatacommunities.org/id/metropolitan-district-council/leeds,Leeds City Council,31/12/2015,Central & Corporate,Commercial Services Trading Services,Supplies and Services,Operational Materials,205,18-Dec-2015,1512-00058,0.00,42.50,R,A J H  Pump Supply & Repair Ltd,No
Http://opendatacommunities.org/id/metropolitan-district-council/leeds,Leeds City Council,31/12/2015,Central & Corporate,Commercial Services Trading Services,Supplies and Services,Operational Materials,205,18-Dec-2015,1512-00059,0.00,108.56,R,A J H  Pump Supply & Repair Ltd,No
Http://opendatacommunities.org/id/metropolitan-district-council/leeds,Leeds City Council,31/12/2015,Central & Corporate,Commercial Services Trading Services,Supplies and Services,Operational Materials,205,18-Dec-2015,1512-00060,0.00,290.00,R,A J H  Pump Supply & Repair Ltd,No
Http://opendatacommunities.org/id/metropolitan-district-council/leeds,Leeds City Council,31/12/2015,Central & Corporate,Commercial Services Trading Services,Supplies and Services,Operational Materials,205,24-Dec-2015,1512-00061,0.00,397.00,R,A J H  Pump Supply & Repair Ltd,No
Http://opendatacommunities.org/id/metropolitan-district-council/leeds,Leeds City Council,31/12/2015,Central & Corporate,Commercial Services Trading Services,Supplies and Services,Operational Materials,205,24-Dec-2015,1512-00062,0.00,330.00,R,A J H  Pump Supply & Repair Ltd,No
Http://opendatacommunities.org/id/metropolitan-district-council/leeds,Leeds City Council,31/12/2015,Central & Corporate,Commercial Services Trading Services,Supplies and Services,Operational Materials,205,24-Dec-2015,1512-00063,0.00,47.70,R,A J H  Pump Supply & Repair Ltd,No
Http://opendatacommunities.org/id/metropolitan-district-council/leeds,Leeds City Council,31/12/2015,Central & Corporate,Commercial Services Trading Services,Supplies and Services,Operational Materials,205,24-Dec-2015,1512-00064,0.00,14.95,R,A J H  Pump Supply & Repair Ltd,No
Http://opendatacommunities.org/id/metropolitan-district-council/leeds,Leeds City Council,31/12/2015,Central & Corporate,Commercial Services Trading Services,Supplies and Services,Operational Materials,205,24-Dec-2015,1512-00065,0.00,147.00,R,A J H  Pump Supply & Repair Ltd,No
Http://opendatacommunities.org/id/metropolitan-district-council/leeds,Leeds City Council,31/12/2015,Central & Corporate,Commercial Services Trading Services,Supplies and Services,Operational Materials,205,24-Dec-2015,1512-00066,0.00,39.90,R,A J H  Pump Supply & Repair Ltd,No
Http://opendatacommunities.org/id/metropolitan-district-council/leeds,Leeds City Council,31/12/2015,Central & Corporate,Commercial Services Trading Services,Supplies and Services,Operational Materials,205,24-Dec-2015,1512-00067,0.00,68.56,R,A J H  Pump Supply & Repair Ltd,No
Http://opendatacommunities.org/id/metropolitan-district-council/leeds,Leeds City Council,31/12/2015,Central & Corporate,Commercial Services Trading Services,Supplies and Services,Operational Materials,205,24-Dec-2015,1512-00068,0.00,104.29,R,A J H  Pump Supply & Repair Ltd,No
Http://opendatacommunities.org/id/metropolitan-district-council/leeds,Leeds City Council,31/12/2015,Central & Corporate,Commercial Services Trading Services,Supplies and Services,Operational Materials,205,24-Dec-2015,1512-00069,0.00,114.62,R,A J H  Pump Supply & Repair Ltd,No
Http://opendatacommunities.org/id/metropolitan-district-council/leeds,Leeds City Council,31/12/2015,Central & Corporate,Commercial Services Trading Services,Supplies and Services,Operational Materials,205,24-Dec-2015,1512-00070,0.00,41.54,R,A J H  Pump Supply & Repair Ltd,No
Http://opendatacommunities.org/id/metropolitan-district-council/leeds,Leeds City Council,31/12/2015,Central & Corporate,Commercial Services Trading Services,Supplies and Services,Operational Materials,205,24-Dec-2015,1512-00071,0.00,35.00,R,A J H  Pump Supply & Repair Ltd,No
Http://opendatacommunities.org/id/metropolitan-district-council/leeds,Leeds City Council,31/12/2015,Central & Corporate,Commercial Services Trading Services,Supplies and Services,Operational Materials,205,24-Dec-2015,1512-00072,0.00,15.00,R,A J H  Pump Supply & Repair Ltd,No
Http://opendatacommunities.org/id/metropolitan-district-council/leeds,Leeds City Council,31/12/2015,Central & Corporate,Commercial Services Trading Services,Supplies and Services,Operational Materials,205,30-Dec-2015,1512-00073,0.00,209.25,R,A J H  Pump Supply & Repair Ltd,No
Http://opendatacommunities.org/id/metropolitan-district-council/leeds,Leeds City Council,31/12/2015,Central & Corporate,Commercial Services Trading Services,Supplies and Services,Operational Materials,205,31-Dec-2015,1512-00074,0.00,182.00,R,A J H  Pump Supply & Repair Ltd,No
Http://opendatacommunities.org/id/metropolitan-district-council/leeds,Leeds City Council,31/12/2015,Central & Corporate,Commercial Services Trading Services,Supplies and Services,Operational Materials,205,31-Dec-2015,1512-00075,0.00,105.51,R,A J H  Pump Supply & Repair Ltd,No
Http://opendatacommunities.org/id/metropolitan-district-council/leeds,Leeds City Council,31/12/2015,Central & Corporate,Commercial Services Trading Services,Supplies and Services,Operational Materials,205,31-Dec-2015,1512-00076,0.00,16.00,R,A J H  Pump Supply & Repair Ltd,No
Http://opendatacommunities.org/id/metropolitan-district-council/leeds,Leeds City Council,31/12/2015,Central & Corporate,Commercial Services Trading Services,Supplies and Services,Operational Materials,205,31-Dec-2015,1512-00077,0.00,2139.00,R,A J H  Pump Supply & Repair Ltd,No
Http://opendatacommunities.org/id/metropolitan-district-council/leeds,Leeds City Council,31/12/2015,Central & Corporate,Commercial Services Trading Services,Supplies and Services,Operational Materials,205,31-Dec-2015,1512-00078,0.00,15.90,R,A J H  Pump Supply & Repair Ltd,No
Http://opendatacommunities.org/id/metropolitan-district-council/leeds,Leeds City Council,31/12/2015,Central & Corporate,Commercial Services Trading Services,Supplies and Services,Operational Materials,205,31-Dec-2015,1512-00079,0.00,380.00,R,A J H  Pump Supply & Repair Ltd,No
Http://opendatacommunities.org/id/metropolitan-district-council/leeds,Leeds City Council,31/12/2015,Central & Corporate,Commercial Services Trading Services,Supplies and Services,Operational Materials,205,31-Dec-2015,1512-00080,0.00,183.14,R,A J H  Pump Supply & Repair Ltd,No
Http://opendatacommunities.org/id/metropolitan-district-council/leeds,Leeds City Council,31/12/2015,Central & Corporate,Commercial Services Trading Services,Supplies and Services,Operational Materials,205,31-Dec-2015,1512-00081,0.00,30.00,R,A J H  Pump Supply & Repair Ltd,No
Http://opendatacommunities.org/id/metropolitan-district-council/leeds,Leeds City Council,31/12/2015,Central & Corporate,Commercial Services Trading Services,Supplies and Services,Operational Materials,205,31-Dec-2015,1512-00082,0.00,745.00,R,A J H  Pump Supply & Repair Ltd,No
Http://opendatacommunities.org/id/metropolitan-district-council/leeds,Leeds City Council,31/12/2015,Central & Corporate,Commercial Services Trading Services,Supplies and Services,Operational Materials,205,31-Dec-2015,1512-00083,0.00,67.18,R,A J H  Pump Supply & Repair Ltd,No
Http://opendatacommunities.org/id/metropolitan-district-council/leeds,Leeds City Council,31/12/2015,Central & Corporate,Commercial Services Trading Services,Supplies and Services,Operational Materials,205,31-Dec-2015,1512-00084,0.00,355.72,R,A J H  Pump Supply & Repair Ltd,No
Http://opendatacommunities.org/id/metropolitan-district-council/leeds,Leeds City Council,31/12/2015,Central & Corporate,Commercial Services Trading Services,Supplies and Services,Operational Materials,205,31-Dec-2015,1512-00085,0.00,165.50,R,A J H  Pump Supply & Repair Ltd,No
Http://opendatacommunities.org/id/metropolitan-district-council/leeds,Leeds City Council,31/12/2015,Central & Corporate,Commercial Services Trading Services,Supplies and Services,Operational Materials,205,31-Dec-2015,1512-00086,0.00,48.42,R,A J H  Pump Supply & Repair Ltd,No
Http://opendatacommunities.org/id/metropolitan-district-council/leeds,Leeds City Council,31/12/2015,Central & Corporate,Commercial Services Trading Services,Supplies and Services,Operational Materials,205,31-Dec-2015,1512-00087,0.00,101.89,R,A J H  Pump Supply & Repair Ltd,No
Http://opendatacommunities.org/id/metropolitan-district-council/leeds,Leeds City Council,31/12/2015,Central & Corporate,Commercial Services Trading Services,Supplies and Services,Operational Materials,205,31-Dec-2015,1512-00088,0.00,44.00,R,A J H  Pump Supply & Repair Ltd,No
Http://opendatacommunities.org/id/metropolitan-district-council/leeds,Leeds City Council,31/12/2015,Environment & Housing,Parks and Countryside,Supplies and Services,Resaleable Materials,204,10-Dec-2015,1512-00089,0.00,1008.91,R,A J Promotions,No
Http://opendatacommunities.org/id/metropolitan-district-council/leeds,Leeds City Council,31/12/2015,City Development,Libraries  Arts & Heritage,Supplies and Services,Resaleable Materials,204,18-Dec-2015,1512-00090,0.00,142.70,R,A J Promotions,No
Http://opendatacommunities.org/id/metropolitan-district-council/leeds,Leeds City Council,31/12/2015,City Development,Libraries  Arts & Heritage,Supplies and Services,Resaleable Materials,204,24-Dec-2015,1512-00091,0.00,12.30,R,A J Promotions,No
Http://opendatacommunities.org/id/metropolitan-district-council/leeds,Leeds City Council,31/12/2015,Environment & Housing,Housing Leeds Service,Capital,Other Costs,7,03-Dec-2015,1512-00092,0.00,380.00,C,REDACTED PERSONAL DATA,No
Http://opendatacommunities.org/id/metropolitan-district-council/leeds,Leeds City Council,31/12/2015,Childrens Services,Learning Skills & Universal,Third Party Payments,Services Rendered By Other Organisations,511,04-Dec-2015,1512-00093,0.00,203.70,R,A K Walsh,No
Http://opendatacommunities.org/id/metropolitan-district-council/leeds,Leeds City Council,31/12/2015,Childrens Services,Learning Skills & Universal,Third Party Payments,Services Rendered By Other Organisations,511,11-Dec-2015,1512-00094,0.00,375.36,R,A K Walsh,No
Http://opendatacommunities.org/id/metropolitan-district-council/leeds,Leeds City Council,31/12/2015,Central & Corporate,Public Health,Third Party Payments,Public Health Commissioned Services,526,22-Dec-2015,1512-00095,0.00,383.00,R,A Khan & K Muneer,No
Http://opendatacommunities.org/id/metropolitan-district-council/leeds,Leeds City Council,31/12/2015,Environment & Housing,Housing Leeds Service,Capital,Other Costs,7,03-Dec-2015,1512-00096,0.00,220.00,C,REDACTED PERSONAL DATA,No
Http://opendatacommunities.org/id/metropolitan-district-council/leeds,Leeds City Council,31/12/2015,Childrens Services,Partnership Development & Leadership,Employees,Training & Development,70,02-Dec-2015,1512-00097,0.00,75.00,R,A Little Something Extra Ltd,No
Http://opendatacommunities.org/id/metropolitan-district-council/leeds,Leeds City Council,31/12/2015,Childrens Services,Learning Skills & Universal,Third Party Payments,Services Rendered By Voluntary Sector,505,04-Dec-2015,1512-00098,0.00,660.00,R,A Little Something Extra Ltd,No
Http://opendatacommunities.org/id/metropolitan-district-council/leeds,Leeds City Council,31/12/2015,Childrens Services,Learning Skills & Universal,Third Party Payments,Services Rendered By Voluntary Sector,505,04-Dec-2015,1512-00099,0.00,180.00,R,A Little Something Extra Ltd,No
Http://opendatacommunities.org/id/metropolitan-district-council/leeds,Leeds City Council,31/12/2015,Childrens Services,Learning Skills & Universal,Third Party Payments,Services Rendered By Voluntary Sector,505,04-Dec-2015,1512-00100,0.00,360.00,R,A Little Something Extra Ltd,No
Http://opendatacommunities.org/id/metropolitan-district-council/leeds,Leeds City Council,31/12/2015,Childrens Services,Learning Skills & Universal,Supplies and Services,Teaching Materials,202,11-Dec-2015,1512-00101,0.00,180.00,R,A Little Something Extra Ltd,No
Http://opendatacommunities.org/id/metropolitan-district-council/leeds,Leeds City Council,31/12/2015,Childrens Services,Learning Skills & Universal,Supplies and Services,Teaching Materials,202,17-Dec-2015,1512-00102,0.00,180.00,R,A Little Something Extra Ltd,No
Http://opendatacommunities.org/id/metropolitan-district-council/leeds,Leeds City Council,31/12/2015,Childrens Services,Partnership Development & Leadership,Employees,Training & Development,70,24-Dec-2015,1512-00103,0.00,75.00,R,A Little Something Extra Ltd,No
Http://opendatacommunities.org/id/metropolitan-district-council/leeds,Leeds City Council,31/12/2015,Citizens and Communities,Customer Access,Supplies and Services,Other Hired And Contracted Services,265,04-Dec-2015,1512-00104,0.00,872.69,R,A Mohammed,No
Http://opendatacommunities.org/id/metropolitan-district-council/leeds,Leeds City Council,31/12/2015,Citizens and Communities,Customer Access,Supplies and Services,Other Hired And Contracted Services,265,22-Dec-2015,1512-00105,0.00,531.60,R,A Mohammed,No
Http://opendatacommunities.org/id/metropolitan-district-council/leeds,Leeds City Council,31/12/2015,Citizens and Communities,Customer Access,Supplies and Services,Other Hired And Contracted Services,265,24-Dec-2015,1512-00106,0.00,39.00,R,A Mohammed,No
Http://opendatacommunities.org/id/metropolitan-district-council/leeds,Leeds City Council,31/12/2015,Citizens and Communities,Customer Access,Supplies and Services,Other Hired And Contracted Services,265,03-Dec-2015,1512-00107,0.00,25.00,R,A Musalam,No
Http://opendatacommunities.org/id/metropolitan-district-council/leeds,Leeds City Council,31/12/2015,Citizens and Communities,Customer Access,Supplies and Services,Other Hired And Contracted Services,265,24-Dec-2015,1512-00108,0.00,108.50,R,A Musalam,No
Http://opendatacommunities.org/id/metropolitan-district-council/leeds,Leeds City Council,31/12/2015,Childrens Services,Learning Skills & Universal,Third Party Payments,Services Rendered By Other Organisations,511,04-Dec-2015,1512-00109,0.00,2022.45,R,A Myland,No
Http://opendatacommunities.org/id/metropolitan-district-council/leeds,Leeds City Council,31/12/2015,Childrens Services,Learning Skills & Universal,Third Party Payments,Services Rendered By Other Organisations,511,11-Dec-2015,1512-00110,0.00,2109.00,R,A Myland,No
Http://opendatacommunities.org/id/metropolitan-district-council/leeds,Leeds City Council,31/12/2015,Citizens and Communities,Customer Access,Supplies and Services,Other Hired And Contracted Services,265,04-Dec-2015,1512-00111,0.00,401.25,R,A Namaki,No
Http://opendatacommunities.org/id/metropolitan-district-council/leeds,Leeds City Council,31/12/2015,Environment & Housing,Parks and Countryside,Supplies and Services,Operational Materials,205,04-Dec-2015,1512-00112,0.00,902.00,R,A Newton,No
Http://opendatacommunities.org/id/metropolitan-district-council/leeds,Leeds City Council,31/12/2015,Childrens Services,Safeguarding Targeted & Specialist,Third Party Payments,Placement Support,550,15-Dec-2015,1512-00113,0.00,291.40,R,A Nicholls,No
Http://opendatacommunities.org/id/metropolitan-district-council/leeds,Leeds City Council,31/12/2015,City Development,Libraries  Arts & Heritage,Supplies and Services,Books & Audio-Visual Materials,206,10-Dec-2015,1512-00114,0.00,145.56,R,A S Jhagra,No
Http://opendatacommunities.org/id/metropolitan-district-council/leeds,Leeds City Council,31/12/2015,Citizens and Communities,Customer Access,Supplies and Services,Other Hired And Contracted Services,265,04-Dec-2015,1512-00115,0.00,146.25,R,A Sheikholeslami,No
Http://opendatacommunities.org/id/metropolitan-district-council/leeds,Leeds City Council,31/12/2015,Citizens and Communities,Customer Access,Supplies and Services,Other Hired And Contracted Services,265,04-Dec-2015,1512-00116,0.00,60.00,R,A Sheikholeslami,No
Http://opendatacommunities.org/id/metropolitan-district-council/leeds,Leeds City Council,31/12/2015,Civic Enterprise Leeds,Business Support Centre,Supplies and Services,Other Hired And Contracted Services,265,23-Dec-2015,1512-00117,0.00,90.00,R,A Star Couriers Ltd,No
Http://opendatacommunities.org/id/metropolitan-district-council/leeds,Leeds City Council,31/12/2015,Childrens Services,Safeguarding Targeted & Specialist,Third Party Payments,Allowances,546,17-Dec-2015,1512-00118,0.00,525.42,R,REDACTED PERSONAL DATA,No
Http://opendatacommunities.org/id/metropolitan-district-council/leeds,Leeds City Council,31/12/2015,Environment & Housing,Parks And Countryside ,Supplies and Services,Operational Materials,205,16-Nov-2015,1512-00119,0.00,55.00,R,A.C.T. Publishing,Yes
Http://opendatacommunities.org/id/metropolitan-district-council/leeds,Leeds City Council,31/12/2015,Central & Corporate,Commercial Services Trading Services,Supplies and Services,Other Hired And Contracted Services,265,04-Dec-2015,1512-00120,0.00,4077.00,R,A1 Bridge Flue Systems,No
Http://opendatacommunities.org/id/metropolitan-district-council/leeds,Leeds City Council,31/12/2015,Childrens Services,Learning Skills & Universal,Supplies and Services,Operational Materials,205,24-Dec-2015,1512-00121,0.00,100.27,R,Aardvark Archery,No
Http://opendatacommunities.org/id/metropolitan-district-council/leeds,Leeds City Council,31/12/2015,Central & Corporate,Finance,Employees,Training & Development,70,02-Dec-2015,1512-00122,0.00,129.00,R,Aat,No
Http://opendatacommunities.org/id/metropolitan-district-council/leeds,Leeds City Council,31/12/2015,City Development,Libraries  Arts & Heritage,Employees,Training & Development,70,16-Dec-2015,1512-00123,0.00,425.00,R,Aat (Gb) Ltd,No
Http://opendatacommunities.org/id/metropolitan-district-council/leeds,Leeds City Council as Accountable Body,31/12/2015,Social Services Pooled Budgets,Leeds Community Equip Store Pooled Budgt,Supplies and Services,Other Equipment,203,29-Dec-2015,1512-00124,0.00,189.00,R,Aat (Gb) Ltd,No
Http://opendatacommunities.org/id/metropolitan-district-council/leeds,Leeds City Council,31/12/2015,Central & Corporate,Finance,Transport,Public Transport Expenses,310,04-Dec-2015,1512-00125,0.00,756.00,R,Ab Cars (Garforth) Ltd,No
Http://opendatacommunities.org/id/metropolitan-district-council/leeds,Leeds City Council,31/12/2015,Central & Corporate,Finance,Transport,Public Transport Expenses,310,16-Dec-2015,1512-00126,0.00,702.00,R,Ab Cars (Garforth) Ltd,No
Http://opendatacommunities.org/id/metropolitan-district-council/leeds,Leeds City Council,31/12/2015,Central & Corporate,Finance,Transport,Public Transport Expenses,310,16-Dec-2015,1512-00127,0.00,-42.00,R,Ab Cars (Garforth) Ltd,No
Http://opendatacommunities.org/id/metropolitan-district-council/leeds,Leeds City Council,31/12/2015,Central & Corporate,Technology ,Supplies and Services,Other Hired And Contracted Services,265,26-Nov-2015,1512-00128,0.00,27.00,R,Abacus Express,Yes
Http://opendatacommunities.org/id/metropolitan-district-council/leeds,Leeds City Council,31/12/2015,Childrens Services,Safeguarding Targeted & Specialist,Support Services,Legal Disbursements,411,04-Dec-2015,1512-00129,0.00,31.02,R,Abacus Express Limited,No
Http://opendatacommunities.org/id/metropolitan-district-council/leeds,Leeds City Council,31/12/2015,Insurance,Insurance,Support Services,Legal Disbursements,411,18-Dec-2015,1512-00130,0.00,40.00,R,Abacus Express Limited,No
Http://opendatacommunities.org/id/metropolitan-district-council/leeds,Leeds City Council,31/12/2015,Childrens Services,Safeguarding Targeted & Specialist,Support Services,Legal Disbursements,411,18-Dec-2015,1512-00131,0.00,37.63,R,Abacus Express Limited,No
Http://opendatacommunities.org/id/metropolitan-district-council/leeds,Leeds City Council,31/12/2015,Childrens Services,Safeguarding Targeted & Specialist,Support Services,Legal Disbursements,411,18-Dec-2015,1512-00132,0.00,86.00,R,Abacus Express Limited,No
Http://opendatacommunities.org/id/metropolitan-district-council/leeds,Leeds City Council,31/12/2015,Childrens Services,Safeguarding Targeted & Specialist,Support Services,Legal Disbursements,411,18-Dec-2015,1512-00133,0.00,275.00,R,Abacus Express Limited,No
Http://opendatacommunities.org/id/metropolitan-district-council/leeds,Leeds City Council,31/12/2015,Childrens Services,Safeguarding Targeted & Specialist,Support Services,Legal Disbursements,411,18-Dec-2015,1512-00134,0.00,220.38,R,Abacus Express Limited,No
Http://opendatacommunities.org/id/metropolitan-district-council/leeds,Leeds City Council,31/12/2015,Childrens Services,Safeguarding Targeted & Specialist,Support Services,Legal Disbursements,411,18-Dec-2015,1512-00135,0.00,31.02,R,Abacus Express Limited,No
Http://opendatacommunities.org/id/metropolitan-district-council/leeds,Leeds City Council,31/12/2015,Insurance,Insurance,Support Services,Legal Disbursements,411,30-Dec-2015,1512-00136,0.00,16.66,R,Abacus Express Limited,No
Http://opendatacommunities.org/id/metropolitan-district-council/leeds,Leeds City Council,31/12/2015,Childrens Services,Safeguarding Targeted & Specialist,Support Services,Legal Disbursements,411,31-Dec-2015,1512-00137,0.00,31.02,R,Abacus Express Limited,No
Http://opendatacommunities.org/id/metropolitan-district-council/leeds,Leeds City Council,31/12/2015,Childrens Services,Safeguarding Targeted & Specialist,Support Services,Legal Disbursements,411,31-Dec-2015,1512-00138,0.00,31.02,R,Abacus Express Limited,No
Http://opendatacommunities.org/id/metropolitan-district-council/leeds,Leeds City Council,31/12/2015,Childrens Services,Safeguarding Targeted & Specialist,Support Services,Legal Disbursements,411,31-Dec-2015,1512-00139,0.00,31.02,R,Abacus Express Limited,No
Http://opendatacommunities.org/id/metropolitan-district-council/leeds,Leeds City Council,31/12/2015,Environment & Housing,Parks and Countryside,Supplies and Services,Operational Materials,205,11-Dec-2015,1512-00140,0.00,2210.00,R,Abacus Playgrounds Ltd,No
Http://opendatacommunities.org/id/metropolitan-district-council/leeds,Leeds City Council,31/12/2015,Civic Enterprise Leeds,Business Support Centre,Supplies and Services,Computer Software & Equipment,214,24-Dec-2015,1512-00141,0.00,7790.00,R,Abacus Software Ltd,No
Http://opendatacommunities.org/id/metropolitan-district-council/leeds,Leeds City Council,31/12/2015,Citizens and Communities,Communities,Premises,Furniture And Fittings,195,02-Dec-2015,1512-00142,0.00,-166.75,R,Abaseen Super Store Uk Ltd,No
Http://opendatacommunities.org/id/metropolitan-district-council/leeds,Leeds City Council,31/12/2015,Citizens and Communities,Communities,Premises,Furniture And Fittings,195,21-Dec-2015,1512-00143,0.00,864.52,R,Abaseen Super Store Uk Ltd,No
Http://opendatacommunities.org/id/metropolitan-district-council/leeds,Leeds City Council,31/12/2015,City Development,Libraries  Arts & Heritage ,Supplies and Services,Food & Drink,231,05-Nov-2015,1512-00144,0.00,50.00,R,Abbey House Museum Caf,Yes
Http://opendatacommunities.org/id/metropolitan-district-council/leeds,Leeds City Council,31/12/2015,Environment & Housing,Environmental Action (South),Supplies and Services,Other Hired And Contracted Services,265,02-Dec-2015,1512-00145,0.00,169.05,R,Abbey House Veterinary Hospital,No
Http://opendatacommunities.org/id/metropolitan-district-council/leeds,Leeds City Council,31/12/2015,Environment & Housing,Environmental Action (South),Supplies and Services,Other Hired And Contracted Services,265,02-Dec-2015,1512-00146,0.00,30.72,R,Abbey House Veterinary Hospital,No
Http://opendatacommunities.org/id/metropolitan-district-council/leeds,Leeds City Council,31/12/2015,Environment & Housing,Environmental Action (South),Supplies and Services,Other Hired And Contracted Services,265,02-Dec-2015,1512-00147,0.00,117.96,R,Abbey House Veterinary Hospital,No
Http://opendatacommunities.org/id/metropolitan-district-council/leeds,Leeds City Council,31/12/2015,Environment & Housing,Environmental Action (South),Supplies and Services,Other Hired And Contracted Services,265,24-Dec-2015,1512-00148,0.00,53.55,R,Abbey House Veterinary Hospital,No
Http://opendatacommunities.org/id/metropolitan-district-council/leeds,Leeds City Council,31/12/2015,Environment & Housing,Environmental Action (South),Supplies and Services,Other Hired And Contracted Services,265,24-Dec-2015,1512-00149,0.00,183.34,R,Abbey House Veterinary Hospital,No
Http://opendatacommunities.org/id/metropolitan-district-council/leeds,Leeds City Council,31/12/2015,Childrens Services,Learning Skills & Universal,Third Party Payments,Services Rendered By Other Organisations,511,04-Dec-2015,1512-00150,0.00,1018.50,R,Abc Daycare And Ozone Out Of School,No
Http://opendatacommunities.org/id/metropolitan-district-council/leeds,Leeds City Council,31/12/2015,Childrens Services,Learning Skills & Universal,Third Party Payments,Services Rendered By Other Organisations,511,11-Dec-2015,1512-00151,0.00,150.40,R,Abc Daycare And Ozone Out Of School,No
Http://opendatacommunities.org/id/metropolitan-district-council/leeds,Leeds City Council,31/12/2015,Childrens Services,Learning Skills & Universal,Third Party Payments,Services Rendered By Other Organisations,511,04-Dec-2015,1512-00152,0.00,1018.50,R,Abc Nursery At Lufc,No
Http://opendatacommunities.org/id/metropolitan-district-council/leeds,Leeds City Council,31/12/2015,Childrens Services,Learning Skills & Universal,Third Party Payments,Services Rendered By Other Organisations,511,04-Dec-2015,1512-00153,0.00,2669.80,R,Abc Nursery At Lufc,No
Http://opendatacommunities.org/id/metropolitan-district-council/leeds,Leeds City Council,31/12/2015,Childrens Services,Learning Skills & Universal,Third Party Payments,Services Rendered By Other Organisations,511,04-Dec-2015,1512-00154,0.00,397.70,R,Abc@D'S Childcare Services,No
Http://opendatacommunities.org/id/metropolitan-district-council/leeds,Leeds City Council,31/12/2015,Childrens Services,Learning Skills & Universal,Supplies and Services,Training Allowances,257,18-Dec-2015,1512-00155,0.00,30.00,R,REDACTED PERSONAL DATA,No
Http://opendatacommunities.org/id/metropolitan-district-council/leeds,Leeds City Council,31/12/2015,Childrens Services,Learning Skills & Universal,Third Party Payments,Services Rendered By Other Organisations,511,24-Dec-2015,1512-00156,0.00,108.85,R,REDACTED PERSONAL DATA,No
Http://opendatacommunities.org/id/metropolitan-district-council/leeds,Leeds City Council,31/12/2015,Adult Social Care,Services For Older People - 65 And Over,Third Party Payments,Nursing Home,570,16-Dec-2015,1512-00157,0.00,26930.94,R,Aberford Hall,No
Http://opendatacommunities.org/id/metropolitan-district-council/leeds,Leeds City Council,31/12/2015,Adult Social Care,Services For Older People - 65 And Over,Third Party Payments,Nursing Care Dementia,574,16-Dec-2015,1512-00158,0.00,1856.00,R,Aberford Hall,No
Http://opendatacommunities.org/id/metropolitan-district-council/leeds,Leeds City Council,31/12/2015,Adult Social Care,Services For Older People - 65 And Over,Third Party Payments,Residential,580,16-Dec-2015,1512-00159,0.00,5770.56,R,Aberford Hall,No
Http://opendatacommunities.org/id/metropolitan-district-council/leeds,Leeds City Council,31/12/2015,Central & Corporate,Commercial Services Trading Services,Supplies and Services,Operational Materials,205,03-Dec-2015,1512-00160,0.00,15.00,R,Abi Garage Doors Ltd,No
Http://opendatacommunities.org/id/metropolitan-district-council/leeds,Leeds City Council,31/12/2015,Central & Corporate,Commercial Services Trading Services,Supplies and Services,Operational Materials,205,24-Dec-2015,1512-00161,0.00,35.00,R,Abi Garage Doors Ltd,No
Http://opendatacommunities.org/id/metropolitan-district-council/leeds,Leeds City Council,31/12/2015,Central & Corporate,Commercial Services Trading Services,Supplies and Services,Operational Materials,205,24-Dec-2015,1512-00162,0.00,33.33,R,Abi Garage Doors Ltd,No
Http://opendatacommunities.org/id/metropolitan-district-council/leeds,Leeds City Council,31/12/2015,Childrens Services,Safeguarding Targeted & Specialist,Supplies and Services,Telephones,213,18-Dec-2015,1512-00163,0.00,5.60,R,REDACTED PERSONAL DATA,No
Http://opendatacommunities.org/id/metropolitan-district-council/leeds,Leeds City Council,31/12/2015,Childrens Services,Safeguarding Targeted & Specialist,Supplies and Services,Food & Drink,231,18-Dec-2015,1512-00164,0.00,10.65,R,REDACTED PERSONAL DATA,No
Http://opendatacommunities.org/id/metropolitan-district-council/leeds,Leeds City Council,31/12/2015,Childrens Services,Safeguarding Targeted & Specialist,Transport,Car & Motorcycle Allowances,311,18-Dec-2015,1512-00165,0.00,12.15,R,REDACTED PERSONAL DATA,No
Http://opendatacommunities.org/id/metropolitan-district-council/leeds,Leeds City Council,31/12/2015,Childrens Services,Safeguarding Targeted & Specialist,Third Party Payments,Independent Fostering Agencies,509,03-Dec-2015,1512-00166,0.00,405.00,R,Academic Appointments Ltd,No
Http://opendatacommunities.org/id/metropolitan-district-council/leeds,Leeds City Council,31/12/2015,Childrens Services,Safeguarding Targeted & Specialist,Employees,Agency Staff,8,10-Dec-2015,1512-00167,0.00,1438.15,R,Academic Appointments Ltd,No
Http://opendatacommunities.org/id/metropolitan-district-council/leeds,Leeds City Council,31/12/2015,Childrens Services,Safeguarding Targeted & Specialist,Employees,Agency Staff,8,17-Dec-2015,1512-00168,0.00,1682.85,R,Academic Appointments Ltd,No
Http://opendatacommunities.org/id/metropolitan-district-council/leeds,Leeds City Council,31/12/2015,Childrens Services,Safeguarding Targeted & Specialist,Employees,Agency Staff,8,24-Dec-2015,1512-00169,0.00,1682.85,R,Academic Appointments Ltd,No
Http://opendatacommunities.org/id/metropolitan-district-council/leeds,Leeds City Council,31/12/2015,Childrens Services,Safeguarding Targeted & Specialist,Employees,Agency Staff,8,31-Dec-2015,1512-00170,0.00,1682.85,R,Academic Appointments Ltd,No
Http://opendatacommunities.org/id/metropolitan-district-council/leeds,Leeds City Council,31/12/2015,Central & Corporate,Technology,Employees,Agency Staff,8,21-Dec-2015,1512-00171,0.00,4140.00,R,Access Computer Consulting Plc,No
Http://opendatacommunities.org/id/metropolitan-district-council/leeds,Leeds City Council,31/12/2015,Environment & Housing,Community Safety,Supplies and Services,Other Hired And Contracted Services,265,02-Dec-2015,1512-00172,0.00,1350.71,R,Access Hire Nationwide Ltd,No
Http://opendatacommunities.org/id/metropolitan-district-council/leeds,Leeds City Council,31/12/2015,Strategic Landlord,Property and Contracts,Premises,General Maintenance,104,01-Dec-2015,1512-00173,0.00,361.60,R,Access Locksmiths (Leeds) Limited,No
Http://opendatacommunities.org/id/metropolitan-district-council/leeds,Leeds City Council,31/12/2015,Strategic Landlord,Housing Management,Supplies and Services,Office Furniture & Equipment,201,04-Dec-2015,1512-00174,0.00,12.50,R,Access Locksmiths (Leeds) Limited,No
Http://opendatacommunities.org/id/metropolitan-district-council/leeds,Leeds City Council,31/12/2015,Strategic Landlord,Property and Contracts,Supplies and Services,Other Hired And Contracted Services,265,04-Dec-2015,1512-00175,0.00,10.00,R,Access Locksmiths (Leeds) Limited,No
Http://opendatacommunities.org/id/metropolitan-district-council/leeds,Leeds City Council,31/12/2015,Central & Corporate,Commercial Services Trading Services,Supplies and Services,Operational Materials,205,04-Dec-2015,1512-00176,0.00,210.49,R,Access Locksmiths (Leeds) Limited,No
Http://opendatacommunities.org/id/metropolitan-district-council/leeds,Leeds City Council,31/12/2015,Central & Corporate,Commercial Services Trading Services,Supplies and Services,Operational Materials,205,04-Dec-2015,1512-00177,0.00,71.76,R,Access Locksmiths (Leeds) Limited,No
Http://opendatacommunities.org/id/metropolitan-district-council/leeds,Leeds City Council,31/12/2015,Central & Corporate,Commercial Services Trading Services,Supplies and Services,Operational Materials,205,04-Dec-2015,1512-00178,0.00,301.07,R,Access Locksmiths (Leeds) Limited,No
Http://opendatacommunities.org/id/metropolitan-district-council/leeds,Leeds City Council,31/12/2015,Strategic Landlord,Property and Contracts,Premises,General Maintenance,104,17-Dec-2015,1512-00179,0.00,371.00,R,Access Locksmiths (Leeds) Limited,No
Http://opendatacommunities.org/id/metropolitan-district-council/leeds,Leeds City Council,31/12/2015,Strategic Landlord,Property and Contracts,Supplies and Services,Operational Materials,205,18-Dec-2015,1512-00180,0.00,1207.40,R,Access Locksmiths (Leeds) Limited,No
Http://opendatacommunities.org/id/metropolitan-district-council/leeds,Leeds City Council,31/12/2015,Strategic Landlord,Property and Contracts,Premises,General Maintenance,104,18-Dec-2015,1512-00181,0.00,649.14,R,Access Locksmiths (Leeds) Limited,No
Http://opendatacommunities.org/id/metropolitan-district-council/leeds,Leeds City Council,31/12/2015,Strategic Landlord,Property and Contracts,Premises,General Maintenance,104,18-Dec-2015,1512-00182,0.00,55.90,R,Access Locksmiths (Leeds) Limited,No
Http://opendatacommunities.org/id/metropolitan-district-council/leeds,Leeds City Council,31/12/2015,Strategic Landlord,Housing Management,Premises,General Maintenance,104,18-Dec-2015,1512-00183,0.00,103.70,R,Access Locksmiths (Leeds) Limited,No
Http://opendatacommunities.org/id/metropolitan-district-council/leeds,Leeds City Council,31/12/2015,Strategic Landlord,Property and Contracts,Premises,General Maintenance,104,22-Dec-2015,1512-00184,0.00,246.80,R,Access Locksmiths (Leeds) Limited,No
Http://opendatacommunities.org/id/metropolitan-district-council/leeds,Leeds City Council,31/12/2015,Strategic Landlord,Property and Contracts,Premises,General Maintenance,104,22-Dec-2015,1512-00185,0.00,53.46,R,Access Locksmiths (Leeds) Limited,No
Http://opendatacommunities.org/id/metropolitan-district-council/leeds,Leeds City Council,31/12/2015,Environment & Housing,Leeds Building Services,Supplies and Services,Office Consumables,210,22-Dec-2015,1512-00186,0.00,13.00,R,Access Locksmiths (Leeds) Limited,No
Http://opendatacommunities.org/id/metropolitan-district-council/leeds,Leeds City Council,31/12/2015,Central & Corporate,Commercial Services Trading Services,Supplies and Services,Operational Materials,205,24-Dec-2015,1512-00187,0.00,14.31,R,Access Locksmiths (Leeds) Limited,No
Http://opendatacommunities.org/id/metropolitan-district-council/leeds,Leeds City Council,31/12/2015,Central & Corporate,Commercial Services Trading Services,Supplies and Services,Operational Materials,205,24-Dec-2015,1512-00188,0.00,25.82,R,Access Locksmiths (Leeds) Limited,No
Http://opendatacommunities.org/id/metropolitan-district-council/leeds,Leeds City Council,31/12/2015,Central & Corporate,Commercial Services Trading Services,Supplies and Services,Operational Materials,205,24-Dec-2015,1512-00189,0.00,20.08,R,Access Locksmiths (Leeds) Limited,No
Http://opendatacommunities.org/id/metropolitan-district-council/leeds,Leeds City Council,31/12/2015,Central & Corporate,Commercial Services Trading Services,Supplies and Services,Operational Furniture And Equipment,203,24-Dec-2015,1512-00190,0.00,5.00,R,Access Locksmiths (Leeds) Limited,No
Http://opendatacommunities.org/id/metropolitan-district-council/leeds,Leeds City Council,31/12/2015,Central & Corporate,Commercial Services Trading Services,Supplies and Services,Operational Materials,205,24-Dec-2015,1512-00191,0.00,48.29,R,Access Locksmiths (Leeds) Limited,No
Http://opendatacommunities.org/id/metropolitan-district-council/leeds,Leeds City Council,31/12/2015,Central & Corporate,Commercial Services Trading Services,Supplies and Services,Operational Materials,205,24-Dec-2015,1512-00192,0.00,52.51,R,Access Locksmiths (Leeds) Limited,No
Http://opendatacommunities.org/id/metropolitan-district-council/leeds,Leeds City Council,31/12/2015,Central & Corporate,Commercial Services Trading Services,Supplies and Services,Operational Materials,205,24-Dec-2015,1512-00193,0.00,22.14,R,Access Locksmiths (Leeds) Limited,No
Http://opendatacommunities.org/id/metropolitan-district-council/leeds,Leeds City Council,31/12/2015,Central & Corporate,Commercial Services Trading Services,Supplies and Services,Operational Materials,205,24-Dec-2015,1512-00194,0.00,49.14,R,Access Locksmiths (Leeds) Limited,No
Http://opendatacommunities.org/id/metropolitan-district-council/leeds,Leeds City Council,31/12/2015,Central & Corporate,Commercial Services Trading Services,Supplies and Services,Operational Materials,205,24-Dec-2015,1512-00195,0.00,14.31,R,Access Locksmiths (Leeds) Limited,No
Http://opendatacommunities.org/id/metropolitan-district-council/leeds,Leeds City Council,31/12/2015,Central & Corporate,Commercial Services Trading Services,Supplies and Services,Operational Materials,205,24-Dec-2015,1512-00196,0.00,167.76,R,Access Locksmiths (Leeds) Limited,No
Http://opendatacommunities.org/id/metropolitan-district-council/leeds,Leeds City Council,31/12/2015,Central & Corporate,Commercial Services Trading Services,Supplies and Services,Operational Materials,205,24-Dec-2015,1512-00197,0.00,16.34,R,Access Locksmiths (Leeds) Limited,No
Http://opendatacommunities.org/id/metropolitan-district-council/leeds,Leeds City Council,31/12/2015,Central & Corporate,Commercial Services Trading Services,Supplies and Services,Operational Materials,205,24-Dec-2015,1512-00198,0.00,16.21,R,Access Locksmiths (Leeds) Limited,No
Http://opendatacommunities.org/id/metropolitan-district-council/leeds,Leeds City Council,31/12/2015,Central & Corporate,Commercial Services Trading Services,Supplies and Services,Operational Materials,205,24-Dec-2015,1512-00199,0.00,42.84,R,Access Locksmiths (Leeds) Limited,No
Http://opendatacommunities.org/id/metropolitan-district-council/leeds,Leeds City Council,31/12/2015,Central & Corporate,Commercial Services Trading Services,Supplies and Services,Operational Materials,205,24-Dec-2015,1512-00200,0.00,29.88,R,Access Locksmiths (Leeds) Limited,No
Http://opendatacommunities.org/id/metropolitan-district-council/leeds,Leeds City Council,31/12/2015,Central & Corporate,Commercial Services Trading Services,Supplies and Services,Operational Materials,205,24-Dec-2015,1512-00201,0.00,7.50,R,Access Locksmiths (Leeds) Limited,No
Http://opendatacommunities.org/id/metropolitan-district-council/leeds,Leeds City Council,31/12/2015,Central & Corporate,Commercial Services Trading Services,Supplies and Services,Operational Materials,205,24-Dec-2015,1512-00202,0.00,34.22,R,Access Locksmiths (Leeds) Limited,No
Http://opendatacommunities.org/id/metropolitan-district-council/leeds,Leeds City Council,31/12/2015,Central & Corporate,Commercial Services Trading Services,Supplies and Services,Operational Materials,205,24-Dec-2015,1512-00203,0.00,34.22,R,Access Locksmiths (Leeds) Limited,No
Http://opendatacommunities.org/id/metropolitan-district-council/leeds,Leeds City Council,31/12/2015,Central & Corporate,Commercial Services Trading Services,Supplies and Services,Operational Materials,205,24-Dec-2015,1512-00204,0.00,34.22,R,Access Locksmiths (Leeds) Limited,No
Http://opendatacommunities.org/id/metropolitan-district-council/leeds,Leeds City Council,31/12/2015,Central & Corporate,Commercial Services Trading Services,Supplies and Services,Operational Materials,205,24-Dec-2015,1512-00205,0.00,62.15,R,Access Locksmiths (Leeds) Limited,No
Http://opendatacommunities.org/id/metropolitan-district-council/leeds,Leeds City Council,31/12/2015,Central & Corporate,Commercial Services Trading Services,Supplies and Services,Operational Materials,205,24-Dec-2015,1512-00206,0.00,36.66,R,Access Locksmiths (Leeds) Limited,No
Http://opendatacommunities.org/id/metropolitan-district-council/leeds,Leeds City Council,31/12/2015,Central & Corporate,Commercial Services Trading Services,Supplies and Services,Operational Materials,205,24-Dec-2015,1512-00207,0.00,32.25,R,Access Locksmiths (Leeds) Limited,No
Http://opendatacommunities.org/id/metropolitan-district-council/leeds,Leeds City Council,31/12/2015,Central & Corporate,Commercial Services Trading Services,Supplies and Services,Operational Materials,205,24-Dec-2015,1512-00208,0.00,18.48,R,Access Locksmiths (Leeds) Limited,No
Http://opendatacommunities.org/id/metropolitan-district-council/leeds,Leeds City Council,31/12/2015,Central & Corporate,Commercial Services Trading Services,Supplies and Services,Operational Materials,205,24-Dec-2015,1512-00209,0.00,29.16,R,Access Locksmiths (Leeds) Limited,No
Http://opendatacommunities.org/id/metropolitan-district-council/leeds,Leeds City Council,31/12/2015,Central & Corporate,Commercial Services Trading Services,Supplies and Services,Operational Materials,205,24-Dec-2015,1512-00210,0.00,55.40,R,Access Locksmiths (Leeds) Limited,No
Http://opendatacommunities.org/id/metropolitan-district-council/leeds,Leeds City Council,31/12/2015,Central & Corporate,Commercial Services Trading Services,Supplies and Services,Operational Materials,205,24-Dec-2015,1512-00211,0.00,33.31,R,Access Locksmiths (Leeds) Limited,No
Http://opendatacommunities.org/id/metropolitan-district-council/leeds,Leeds City Council,31/12/2015,Strategic Landlord,Housing Management,Premises,General Maintenance,104,24-Dec-2015,1512-00212,0.00,155.55,R,Access Locksmiths (Leeds) Limited,No
Http://opendatacommunities.org/id/metropolitan-district-council/leeds,Leeds City Council,31/12/2015,Strategic Landlord,Housing Management,Premises,General Maintenance,104,24-Dec-2015,1512-00213,0.00,207.40,R,Access Locksmiths (Leeds) Limited,No
Http://opendatacommunities.org/id/metropolitan-district-council/leeds,Leeds City Council,31/12/2015,Strategic Landlord,Property and Contracts,Transfer Payments,Disrepair Provision,644,24-Dec-2015,1512-00214,0.00,6.00,R,Access Locksmiths (Leeds) Limited,No
Http://opendatacommunities.org/id/metropolitan-district-council/leeds,Leeds City Council,31/12/2015,Central & Corporate,Commercial Services Trading Services,Supplies and Services,Operational Materials,205,30-Dec-2015,1512-00215,0.00,36.45,R,Access Locksmiths (Leeds) Limited,No
Http://opendatacommunities.org/id/metropolitan-district-council/leeds,Leeds City Council,31/12/2015,Central & Corporate,Commercial Services Trading Services,Supplies and Services,Operational Materials,205,30-Dec-2015,1512-00216,0.00,91.38,R,Access Locksmiths (Leeds) Limited,No
Http://opendatacommunities.org/id/metropolitan-district-council/leeds,Leeds City Council,31/12/2015,Central & Corporate,Commercial Services Trading Services,Supplies and Services,Operational Materials,205,30-Dec-2015,1512-00217,0.00,16.45,R,Access Locksmiths (Leeds) Limited,No
Http://opendatacommunities.org/id/metropolitan-district-council/leeds,Leeds City Council,31/12/2015,Central & Corporate,Commercial Services Trading Services,Supplies and Services,Operational Materials,205,30-Dec-2015,1512-00218,0.00,14.79,R,Access Locksmiths (Leeds) Limited,No
Http://opendatacommunities.org/id/metropolitan-district-council/leeds,Leeds City Council,31/12/2015,Central & Corporate,Commercial Services Trading Services,Supplies and Services,Operational Materials,205,30-Dec-2015,1512-00219,0.00,12.87,R,Access Locksmiths (Leeds) Limited,No
Http://opendatacommunities.org/id/metropolitan-district-council/leeds,Leeds City Council,31/12/2015,Central & Corporate,Commercial Services Trading Services,Supplies and Services,Operational Materials,205,30-Dec-2015,1512-00220,0.00,118.00,R,Access Locksmiths (Leeds) Limited,No
Http://opendatacommunities.org/id/metropolitan-district-council/leeds,Leeds City Council,31/12/2015,Central & Corporate,Commercial Services Trading Services,Supplies and Services,Operational Materials,205,31-Dec-2015,1512-00221,0.00,29.88,R,Access Locksmiths (Leeds) Limited,No
Http://opendatacommunities.org/id/metropolitan-district-council/leeds,Leeds City Council,31/12/2015,Central & Corporate,Commercial Services Trading Services,Supplies and Services,Operational Materials,205,31-Dec-2015,1512-00222,0.00,19.48,R,Access Locksmiths (Leeds) Limited,No
Http://opendatacommunities.org/id/metropolitan-district-council/leeds,Leeds City Council,31/12/2015,Central & Corporate,Commercial Services Trading Services,Supplies and Services,Operational Materials,205,31-Dec-2015,1512-00223,0.00,20.16,R,Access Locksmiths (Leeds) Limited,No
Http://opendatacommunities.org/id/metropolitan-district-council/leeds,Leeds City Council,31/12/2015,Central & Corporate,Commercial Services Trading Services,Supplies and Services,Operational Materials,205,31-Dec-2015,1512-00224,0.00,359.64,R,Access Locksmiths (Leeds) Limited,No
Http://opendatacommunities.org/id/metropolitan-district-council/leeds,Leeds City Council,31/12/2015,Central & Corporate,Commercial Services Trading Services,Supplies and Services,Operational Materials,205,31-Dec-2015,1512-00225,0.00,40.60,R,Access Locksmiths (Leeds) Limited,No
Http://opendatacommunities.org/id/metropolitan-district-council/leeds,Leeds City Council,31/12/2015,Central & Corporate,Commercial Services Trading Services,Supplies and Services,Operational Materials,205,31-Dec-2015,1512-00226,0.00,2.88,R,Access Locksmiths (Leeds) Limited,No
Http://opendatacommunities.org/id/metropolitan-district-council/leeds,Leeds City Council,31/12/2015,Central & Corporate,Commercial Services Trading Services,Supplies and Services,Operational Materials,205,31-Dec-2015,1512-00227,0.00,15.60,R,Access Locksmiths (Leeds) Limited,No
Http://opendatacommunities.org/id/metropolitan-district-council/leeds,Leeds City Council,31/12/2015,Central & Corporate,Commercial Services Trading Services,Supplies and Services,Operational Materials,205,31-Dec-2015,1512-00228,0.00,422.64,R,Access Locksmiths (Leeds) Limited,No
Http://opendatacommunities.org/id/metropolitan-district-council/leeds,Leeds City Council,31/12/2015,Central & Corporate,Commercial Services Trading Services,Supplies and Services,Operational Materials,205,31-Dec-2015,1512-00229,0.00,28.00,R,Access Locksmiths (Leeds) Limited,No
Http://opendatacommunities.org/id/metropolitan-district-council/leeds,Leeds City Council,31/12/2015,Central & Corporate,Commercial Services Trading Services,Supplies and Services,Operational Furniture And Equipment,203,31-Dec-2015,1512-00230,0.00,294.28,R,Access Locksmiths (Leeds) Limited,No
Http://opendatacommunities.org/id/metropolitan-district-council/leeds,Leeds City Council,31/12/2015,Strategic Landlord,Housing Management,Premises,Premises Security Services,162,31-Dec-2015,1512-00231,0.00,15.00,R,Access Locksmiths (Leeds) Limited,No
Http://opendatacommunities.org/id/metropolitan-district-council/leeds,Leeds City Council,31/12/2015,City Development,Libraries  Arts & Heritage,Supplies and Services,Bought In Professional Services,277,11-Dec-2015,1512-00232,0.00,7100.00,R,Access Moving Image Ltd,No
Http://opendatacommunities.org/id/metropolitan-district-council/leeds,Leeds City Council,31/12/2015,Central & Corporate,Commercial Services Trading Services,Supplies and Services,Other Hired And Contracted Services,265,01-Dec-2015,1512-00233,0.00,85.00,R,Access Opening Systems Limited,No
Http://opendatacommunities.org/id/metropolitan-district-council/leeds,Leeds City Council,31/12/2015,Central & Corporate,Commercial Services Trading Services,Supplies and Services,Other Hired And Contracted Services,265,01-Dec-2015,1512-00234,0.00,135.00,R,Access Opening Systems Limited,No
Http://opendatacommunities.org/id/metropolitan-district-council/leeds,Leeds City Council,31/12/2015,Central & Corporate,Commercial Services Trading Services,Supplies and Services,Other Hired And Contracted Services,265,01-Dec-2015,1512-00235,0.00,135.00,R,Access Opening Systems Limited,No
Http://opendatacommunities.org/id/metropolitan-district-council/leeds,Leeds City Council,31/12/2015,Central & Corporate,Commercial Services Trading Services,Supplies and Services,Other Hired And Contracted Services,265,01-Dec-2015,1512-00236,0.00,260.00,R,Access Opening Systems Limited,No
Http://opendatacommunities.org/id/metropolitan-district-council/leeds,Leeds City Council,31/12/2015,Central & Corporate,Commercial Services Trading Services,Supplies and Services,Other Hired And Contracted Services,265,01-Dec-2015,1512-00237,0.00,85.00,R,Access Opening Systems Limited,No
Http://opendatacommunities.org/id/metropolitan-district-council/leeds,Leeds City Council,31/12/2015,Central & Corporate,Commercial Services Trading Services,Supplies and Services,Other Hired And Contracted Services,265,01-Dec-2015,1512-00238,0.00,85.00,R,Access Opening Systems Limited,No
Http://opendatacommunities.org/id/metropolitan-district-council/leeds,Leeds City Council,31/12/2015,Central & Corporate,Commercial Services Trading Services,Supplies and Services,Other Hired And Contracted Services,265,01-Dec-2015,1512-00239,0.00,85.00,R,Access Opening Systems Limited,No
Http://opendatacommunities.org/id/metropolitan-district-council/leeds,Leeds City Council,31/12/2015,Central & Corporate,Commercial Services Trading Services,Supplies and Services,Other Hired And Contracted Services,265,01-Dec-2015,1512-00240,0.00,85.00,R,Access Opening Systems Limited,No
Http://opendatacommunities.org/id/metropolitan-district-council/leeds,Leeds City Council,31/12/2015,Central & Corporate,Commercial Services Trading Services,Supplies and Services,Other Hired And Contracted Services,265,02-Dec-2015,1512-00241,0.00,60.00,R,Access Opening Systems Limited,No
Http://opendatacommunities.org/id/metropolitan-district-council/leeds,Leeds City Council,31/12/2015,Central & Corporate,Commercial Services Trading Services,Supplies and Services,Other Hired And Contracted Services,265,07-Dec-2015,1512-00242,0.00,85.00,R,Access Opening Systems Limited,No
Http://opendatacommunities.org/id/metropolitan-district-council/leeds,Leeds City Council,31/12/2015,Central & Corporate,Commercial Services Trading Services,Supplies and Services,Operational Materials,205,10-Dec-2015,1512-00243,0.00,85.00,R,Access Opening Systems Limited,No
Http://opendatacommunities.org/id/metropolitan-district-council/leeds,Leeds City Council,31/12/2015,Central & Corporate,Commercial Services Trading Services,Supplies and Services,Other Hired And Contracted Services,265,10-Dec-2015,1512-00244,0.00,85.00,R,Access Opening Systems Limited,No
Http://opendatacommunities.org/id/metropolitan-district-council/leeds,Leeds City Council,31/12/2015,Central & Corporate,Commercial Services Trading Services,Supplies and Services,Other Hired And Contracted Services,265,10-Dec-2015,1512-00245,0.00,100.90,R,Access Opening Systems Limited,No
Http://opendatacommunities.org/id/metropolitan-district-council/leeds,Leeds City Council,31/12/2015,Central & Corporate,Commercial Services Trading Services,Supplies and Services,Other Hired And Contracted Services,265,10-Dec-2015,1512-00246,0.00,85.00,R,Access Opening Systems Limited,No
Http://opendatacommunities.org/id/metropolitan-district-council/leeds,Leeds City Council,31/12/2015,Central & Corporate,Commercial Services Trading Services,Supplies and Services,Other Hired And Contracted Services,265,10-Dec-2015,1512-00247,0.00,85.00,R,Access Opening Systems Limited,No
Http://opendatacommunities.org/id/metropolitan-district-council/leeds,Leeds City Council,31/12/2015,Central & Corporate,Commercial Services Trading Services,Supplies and Services,Other Hired And Contracted Services,265,10-Dec-2015,1512-00248,0.00,85.00,R,Access Opening Systems Limited,No
Http://opendatacommunities.org/id/metropolitan-district-council/leeds,Leeds City Council,31/12/2015,Central & Corporate,Commercial Services Trading Services,Supplies and Services,Operational Materials,205,10-Dec-2015,1512-00249,0.00,1350.00,R,Access Opening Systems Limited,No
Http://opendatacommunities.org/id/metropolitan-district-council/leeds,Leeds City Council,31/12/2015,Central & Corporate,Commercial Services Trading Services,Supplies and Services,Other Hired And Contracted Services,265,11-Dec-2015,1512-00250,0.00,401.25,R,Access Opening Systems Limited,No
Http://opendatacommunities.org/id/metropolitan-district-council/leeds,Leeds City Council,31/12/2015,Central & Corporate,Commercial Services Trading Services,Supplies and Services,Other Hired And Contracted Services,265,11-Dec-2015,1512-00251,0.00,402.00,R,Access Opening Systems Limited,No
Http://opendatacommunities.org/id/metropolitan-district-council/leeds,Leeds City Council,31/12/2015,Central & Corporate,Commercial Services Trading Services,Supplies and Services,Other Hired And Contracted Services,265,15-Dec-2015,1512-00252,0.00,110.00,R,Access Opening Systems Limited,No
Http://opendatacommunities.org/id/metropolitan-district-council/leeds,Leeds City Council,31/12/2015,Central & Corporate,Commercial Services Trading Services,Supplies and Services,Other Hired And Contracted Services,265,15-Dec-2015,1512-00253,0.00,85.00,R,Access Opening Systems Limited,No
Http://opendatacommunities.org/id/metropolitan-district-council/leeds,Leeds City Council,31/12/2015,Central & Corporate,Commercial Services Trading Services,Supplies and Services,Other Hired And Contracted Services,265,15-Dec-2015,1512-00254,0.00,85.00,R,Access Opening Systems Limited,No
Http://opendatacommunities.org/id/metropolitan-district-council/leeds,Leeds City Council,31/12/2015,Central & Corporate,Commercial Services Trading Services,Supplies and Services,Other Hired And Contracted Services,265,15-Dec-2015,1512-00255,0.00,85.00,R,Access Opening Systems Limited,No
Http://opendatacommunities.org/id/metropolitan-district-council/leeds,Leeds City Council,31/12/2015,Central & Corporate,Commercial Services Trading Services,Supplies and Services,Other Hired And Contracted Services,265,15-Dec-2015,1512-00256,0.00,85.00,R,Access Opening Systems Limited,No
Http://opendatacommunities.org/id/metropolitan-district-council/leeds,Leeds City Council,31/12/2015,Central & Corporate,Commercial Services Trading Services,Supplies and Services,Other Hired And Contracted Services,265,15-Dec-2015,1512-00257,0.00,135.00,R,Access Opening Systems Limited,No
Http://opendatacommunities.org/id/metropolitan-district-council/leeds,Leeds City Council,31/12/2015,Central & Corporate,Commercial Services Trading Services,Supplies and Services,Other Hired And Contracted Services,265,15-Dec-2015,1512-00258,0.00,160.00,R,Access Opening Systems Limited,No
Http://opendatacommunities.org/id/metropolitan-district-council/leeds,Leeds City Council,31/12/2015,Central & Corporate,Commercial Services Trading Services,Supplies and Services,Other Hired And Contracted Services,265,15-Dec-2015,1512-00259,0.00,85.00,R,Access Opening Systems Limited,No
Http://opendatacommunities.org/id/metropolitan-district-council/leeds,Leeds City Council,31/12/2015,Central & Corporate,Commercial Services Trading Services,Supplies and Services,Other Hired And Contracted Services,265,15-Dec-2015,1512-00260,0.00,85.00,R,Access Opening Systems Limited,No
Http://opendatacommunities.org/id/metropolitan-district-council/leeds,Leeds City Council,31/12/2015,Central & Corporate,Commercial Services Trading Services,Supplies and Services,Other Hired And Contracted Services,265,15-Dec-2015,1512-00261,0.00,85.00,R,Access Opening Systems Limited,No
Http://opendatacommunities.org/id/metropolitan-district-council/leeds,Leeds City Council,31/12/2015,Central & Corporate,Commercial Services Trading Services,Supplies and Services,Other Hired And Contracted Services,265,15-Dec-2015,1512-00262,0.00,135.00,R,Access Opening Systems Limited,No
Http://opendatacommunities.org/id/metropolitan-district-council/leeds,Leeds City Council,31/12/2015,Central & Corporate,Commercial Services Trading Services,Supplies and Services,Other Hired And Contracted Services,265,15-Dec-2015,1512-00263,0.00,85.00,R,Access Opening Systems Limited,No
Http://opendatacommunities.org/id/metropolitan-district-council/leeds,Leeds City Council,31/12/2015,Central & Corporate,Commercial Services Trading Services,Supplies and Services,Other Hired And Contracted Services,265,15-Dec-2015,1512-00264,0.00,85.00,R,Access Opening Systems Limited,No
Http://opendatacommunities.org/id/metropolitan-district-council/leeds,Leeds City Council,31/12/2015,Central & Corporate,Commercial Services Trading Services,Supplies and Services,Operational Materials,205,18-Dec-2015,1512-00265,0.00,240.00,R,Access Opening Systems Limited,No
Http://opendatacommunities.org/id/metropolitan-district-council/leeds,Leeds City Council,31/12/2015,Central & Corporate,Commercial Services Trading Services,Supplies and Services,Other Hired And Contracted Services,265,18-Dec-2015,1512-00266,0.00,85.00,R,Access Opening Systems Limited,No
Http://opendatacommunities.org/id/metropolitan-district-council/leeds,Leeds City Council,31/12/2015,Central & Corporate,Commercial Services Trading Services,Supplies and Services,Other Hired And Contracted Services,265,18-Dec-2015,1512-00267,0.00,85.00,R,Access Opening Systems Limited,No
Http://opendatacommunities.org/id/metropolitan-district-council/leeds,Leeds City Council,31/12/2015,Central & Corporate,Commercial Services Trading Services,Supplies and Services,Other Hired And Contracted Services,265,18-Dec-2015,1512-00268,0.00,85.00,R,Access Opening Systems Limited,No
Http://opendatacommunities.org/id/metropolitan-district-council/leeds,Leeds City Council,31/12/2015,Central & Corporate,Commercial Services Trading Services,Supplies and Services,Other Hired And Contracted Services,265,18-Dec-2015,1512-00269,0.00,91.25,R,Access Opening Systems Limited,No
Http://opendatacommunities.org/id/metropolitan-district-council/leeds,Leeds City Council,31/12/2015,Central & Corporate,Commercial Services Trading Services,Supplies and Services,Other Hired And Contracted Services,265,18-Dec-2015,1512-00270,0.00,91.25,R,Access Opening Systems Limited,No
Http://opendatacommunities.org/id/metropolitan-district-council/leeds,Leeds City Council,31/12/2015,Central & Corporate,Commercial Services Trading Services,Supplies and Services,Other Hired And Contracted Services,265,18-Dec-2015,1512-00271,0.00,91.25,R,Access Opening Systems Limited,No
Http://opendatacommunities.org/id/metropolitan-district-council/leeds,Leeds City Council,31/12/2015,Central & Corporate,Commercial Services Trading Services,Supplies and Services,Operational Materials,205,18-Dec-2015,1512-00272,0.00,75.00,R,Access Opening Systems Limited,No
Http://opendatacommunities.org/id/metropolitan-district-council/leeds,Leeds City Council,31/12/2015,Central & Corporate,Commercial Services Trading Services,Supplies and Services,Other Hired And Contracted Services,265,18-Dec-2015,1512-00273,0.00,228.00,R,Access Opening Systems Limited,No
Http://opendatacommunities.org/id/metropolitan-district-council/leeds,Leeds City Council,31/12/2015,Central & Corporate,Commercial Services Trading Services,Supplies and Services,Other Hired And Contracted Services,265,18-Dec-2015,1512-00274,0.00,228.00,R,Access Opening Systems Limited,No
Http://opendatacommunities.org/id/metropolitan-district-council/leeds,Leeds City Council,31/12/2015,Central & Corporate,Commercial Services Trading Services,Supplies and Services,Operational Materials,205,18-Dec-2015,1512-00275,0.00,85.00,R,Access Opening Systems Limited,No
Http://opendatacommunities.org/id/metropolitan-district-council/leeds,Leeds City Council,31/12/2015,Central & Corporate,Commercial Services Trading Services,Supplies and Services,Operational Materials,205,18-Dec-2015,1512-00276,0.00,133.50,R,Access Opening Systems Limited,No
Http://opendatacommunities.org/id/metropolitan-district-council/leeds,Leeds City Council,31/12/2015,Central & Corporate,Commercial Services Trading Services,Supplies and Services,Other Hired And Contracted Services,265,18-Dec-2015,1512-00277,0.00,85.00,R,Access Opening Systems Limited,No
Http://opendatacommunities.org/id/metropolitan-district-council/leeds,Leeds City Council,31/12/2015,Central & Corporate,Commercial Services Trading Services,Supplies and Services,Other Hired And Contracted Services,265,18-Dec-2015,1512-00278,0.00,85.00,R,Access Opening Systems Limited,No
Http://opendatacommunities.org/id/metropolitan-district-council/leeds,Leeds City Council,31/12/2015,Central & Corporate,Commercial Services Trading Services,Supplies and Services,Other Hired And Contracted Services,265,22-Dec-2015,1512-00279,0.00,385.23,R,Access Opening Systems Limited,No
Http://opendatacommunities.org/id/metropolitan-district-council/leeds,Leeds City Council,31/12/2015,Central & Corporate,Commercial Services Trading Services,Supplies and Services,Other Hired And Contracted Services,265,22-Dec-2015,1512-00280,0.00,296.32,R,Access Opening Systems Limited,No
Http://opendatacommunities.org/id/metropolitan-district-council/leeds,Leeds City Council,31/12/2015,Central & Corporate,Commercial Services Trading Services,Supplies and Services,Operational Materials,205,22-Dec-2015,1512-00281,0.00,46.00,R,Access Opening Systems Limited,No
Http://opendatacommunities.org/id/metropolitan-district-council/leeds,Leeds City Council,31/12/2015,Central & Corporate,Commercial Services Trading Services,Supplies and Services,Other Hired And Contracted Services,265,22-Dec-2015,1512-00282,0.00,252.50,R,Access Opening Systems Limited,No
Http://opendatacommunities.org/id/metropolitan-district-council/leeds,Leeds City Council,31/12/2015,Central & Corporate,Commercial Services Trading Services,Supplies and Services,Other Hired And Contracted Services,265,22-Dec-2015,1512-00283,0.00,85.00,R,Access Opening Systems Limited,No
Http://opendatacommunities.org/id/metropolitan-district-council/leeds,Leeds City Council,31/12/2015,Central & Corporate,Commercial Services Trading Services,Supplies and Services,Other Hired And Contracted Services,265,22-Dec-2015,1512-00284,0.00,85.00,R,Access Opening Systems Limited,No
Http://opendatacommunities.org/id/metropolitan-district-council/leeds,Leeds City Council,31/12/2015,Central & Corporate,Commercial Services Trading Services,Supplies and Services,Other Hired And Contracted Services,265,22-Dec-2015,1512-00285,0.00,85.00,R,Access Opening Systems Limited,No
Http://opendatacommunities.org/id/metropolitan-district-council/leeds,Leeds City Council,31/12/2015,Central & Corporate,Commercial Services Trading Services,Supplies and Services,Operational Materials,205,22-Dec-2015,1512-00286,0.00,175.00,R,Access Opening Systems Limited,No
Http://opendatacommunities.org/id/metropolitan-district-council/leeds,Leeds City Council,31/12/2015,Central & Corporate,Commercial Services Trading Services,Supplies and Services,Operational Materials,205,22-Dec-2015,1512-00287,0.00,95.00,R,Access Opening Systems Limited,No
Http://opendatacommunities.org/id/metropolitan-district-council/leeds,Leeds City Council,31/12/2015,Central & Corporate,Commercial Services Trading Services,Supplies and Services,Other Hired And Contracted Services,265,24-Dec-2015,1512-00288,0.00,85.00,R,Access Opening Systems Limited,No
Http://opendatacommunities.org/id/metropolitan-district-council/leeds,Leeds City Council,31/12/2015,Central & Corporate,Commercial Services Trading Services,Supplies and Services,Other Hired And Contracted Services,265,24-Dec-2015,1512-00289,0.00,227.44,R,Access Opening Systems Limited,No
Http://opendatacommunities.org/id/metropolitan-district-council/leeds,Leeds City Council,31/12/2015,Central & Corporate,Commercial Services Trading Services,Supplies and Services,Other Hired And Contracted Services,265,24-Dec-2015,1512-00290,0.00,296.32,R,Access Opening Systems Limited,No
Http://opendatacommunities.org/id/metropolitan-district-council/leeds,Leeds City Council,31/12/2015,Central & Corporate,Commercial Services Trading Services,Supplies and Services,Other Hired And Contracted Services,265,24-Dec-2015,1512-00291,0.00,426.00,R,Access Opening Systems Limited,No
Http://opendatacommunities.org/id/metropolitan-district-council/leeds,Leeds City Council,31/12/2015,Central & Corporate,Commercial Services Trading Services,Supplies and Services,Operational Materials,205,24-Dec-2015,1512-00292,0.00,140.00,R,Access Opening Systems Limited,No
Http://opendatacommunities.org/id/metropolitan-district-council/leeds,Leeds City Council,31/12/2015,Central & Corporate,Commercial Services Trading Services,Supplies and Services,Other Hired And Contracted Services,265,24-Dec-2015,1512-00293,0.00,223.00,R,Access Opening Systems Limited,No
Http://opendatacommunities.org/id/metropolitan-district-council/leeds,Leeds City Council,31/12/2015,Central & Corporate,Commercial Services Trading Services,Supplies and Services,Operational Materials,205,24-Dec-2015,1512-00294,0.00,147.00,R,Access Opening Systems Limited,No
Http://opendatacommunities.org/id/metropolitan-district-council/leeds,Leeds City Council,31/12/2015,Central & Corporate,Commercial Services Trading Services,Supplies and Services,Other Hired And Contracted Services,265,24-Dec-2015,1512-00295,0.00,1726.00,R,Access Opening Systems Limited,No
Http://opendatacommunities.org/id/metropolitan-district-council/leeds,Leeds City Council,31/12/2015,Central & Corporate,Commercial Services Trading Services,Supplies and Services,Other Hired And Contracted Services,265,31-Dec-2015,1512-00296,0.00,85.00,R,Access Opening Systems Limited,No
Http://opendatacommunities.org/id/metropolitan-district-council/leeds,Leeds City Council,31/12/2015,Central & Corporate,Commercial Services Trading Services,Supplies and Services,Other Hired And Contracted Services,265,31-Dec-2015,1512-00297,0.00,85.00,R,Access Opening Systems Limited,No
Http://opendatacommunities.org/id/metropolitan-district-council/leeds,Leeds City Council,31/12/2015,Central & Corporate,Commercial Services Trading Services,Supplies and Services,Other Hired And Contracted Services,265,31-Dec-2015,1512-00298,0.00,85.00,R,Access Opening Systems Limited,No
Http://opendatacommunities.org/id/metropolitan-district-council/leeds,Leeds City Council,31/12/2015,Central & Corporate,Commercial Services Trading Services,Supplies and Services,Other Hired And Contracted Services,265,31-Dec-2015,1512-00299,0.00,210.00,R,Access Opening Systems Limited,No
Http://opendatacommunities.org/id/metropolitan-district-council/leeds,Leeds City Council,31/12/2015,Central & Corporate,Commercial Services Trading Services,Supplies and Services,Operational Materials,205,31-Dec-2015,1512-00300,0.00,80.00,R,Access Opening Systems Limited,No
Http://opendatacommunities.org/id/metropolitan-district-council/leeds,Leeds City Council,31/12/2015,Central & Corporate,Commercial Services Trading Services,Supplies and Services,Other Hired And Contracted Services,265,31-Dec-2015,1512-00301,0.00,621.32,R,Access Opening Systems Limited,No
Http://opendatacommunities.org/id/metropolitan-district-council/leeds,Leeds City Council,31/12/2015,Central & Corporate,Commercial Services Trading Services,Supplies and Services,Operational Materials,205,31-Dec-2015,1512-00302,0.00,40.00,R,Access Opening Systems Limited,No
Http://opendatacommunities.org/id/metropolitan-district-council/leeds,Leeds City Council,31/12/2015,Central & Corporate,Legal Services,Supplies and Services,Other Hired And Contracted Services,265,11-Dec-2015,1512-00303,0.00,252.00,R,Acco Brands Service Division,No
Http://opendatacommunities.org/id/metropolitan-district-council/leeds,Leeds City Council,31/12/2015,Childrens Services,Safeguarding Targeted & Specialist,Supplies and Services,Operational Furniture And Equipment,203,29-Dec-2015,1512-00304,0.00,102.00,R,Acco Brands Service Division,No
Http://opendatacommunities.org/id/metropolitan-district-council/leeds,Leeds City Council,31/12/2015,Environment & Housing,Community Safety,Supplies and Services,Other Hired And Contracted Services,265,22-Dec-2015,1512-00305,0.00,459.99,R,Accutime Ltd,No
Http://opendatacommunities.org/id/metropolitan-district-council/leeds,Leeds City Council,31/12/2015,City Development,Recreation,Supplies and Services,Other Hired And Contracted Services,265,02-Dec-2015,1512-00306,0.00,135.00,R,Ace Container Services Limited,No
Http://opendatacommunities.org/id/metropolitan-district-council/leeds,Leeds City Council,31/12/2015,City Development,Recreation,Transport,External Hire -Occasional,304,30-Dec-2015,1512-00307,0.00,128.65,R,Ace Container Services Limited,No
Http://opendatacommunities.org/id/metropolitan-district-council/leeds,Leeds City Council,31/12/2015,Environment & Housing,Parks and Countryside,Supplies and Services,Operational Materials,205,11-Dec-2015,1512-00308,0.00,85.00,R,Ace Engineers (Morley) Ltd,No
Http://opendatacommunities.org/id/metropolitan-district-council/leeds,Leeds City Council,31/12/2015,Environment & Housing,Parks and Countryside,Supplies and Services,Operational Materials,205,21-Dec-2015,1512-00309,0.00,339.00,R,Ace Engineers (Morley) Ltd,No
Http://opendatacommunities.org/id/metropolitan-district-council/leeds,Leeds City Council,31/12/2015,Environment & Housing,Parks and Countryside,Supplies and Services,Operational Materials,205,21-Dec-2015,1512-00310,0.00,2884.00,R,Ace Engineers (Morley) Ltd,No
Http://opendatacommunities.org/id/metropolitan-district-council/leeds,Leeds City Council,31/12/2015,Environment & Housing,Parks and Countryside,Supplies and Services,Operational Materials,205,24-Dec-2015,1512-00311,0.00,2576.50,R,Ace Engineers (Morley) Ltd,No
Http://opendatacommunities.org/id/metropolitan-district-council/leeds,Leeds City Council,31/12/2015,Childrens Services,Safeguarding Targeted & Specialist,Transport,Private Hire,360,10-Dec-2015,1512-00312,0.00,56.00,R,Ace Taxis Perth Ltd,No
Http://opendatacommunities.org/id/metropolitan-district-council/leeds,Leeds City Council,31/12/2015,Childrens Services,Safeguarding Targeted & Specialist,Third Party Payments,SEN Placements,566,11-Dec-2015,1512-00313,0.00,16332.00,R,Ackworth School,No
Http://opendatacommunities.org/id/metropolitan-district-council/leeds,Leeds City Council,31/12/2015,Childrens Services,Safeguarding Targeted & Specialist,Third Party Payments,SEN Placements,566,11-Dec-2015,1512-00314,0.00,16332.00,R,Ackworth School,No
Http://opendatacommunities.org/id/metropolitan-district-council/leeds,Leeds City Council,31/12/2015,Childrens Services,Safeguarding Targeted & Specialist,Third Party Payments,SEN Placements,566,11-Dec-2015,1512-00315,0.00,24132.00,R,Ackworth School,No
Http://opendatacommunities.org/id/metropolitan-district-council/leeds,Leeds City Council,31/12/2015,Childrens Services,Safeguarding Targeted & Specialist,Third Party Payments,SEN Placements,566,11-Dec-2015,1512-00316,0.00,20550.00,R,Ackworth School,No
Http://opendatacommunities.org/id/metropolitan-district-council/leeds,Leeds City Council,31/12/2015,Childrens Services,Safeguarding Targeted & Specialist,Third Party Payments,SEN Placements,566,11-Dec-2015,1512-00317,0.00,16332.00,R,Ackworth School,No
Http://opendatacommunities.org/id/metropolitan-district-council/leeds,Leeds City Council,31/12/2015,Childrens Services,Safeguarding Targeted & Specialist,Third Party Payments,SEN Placements,566,24-Dec-2015,1512-00318,0.00,18138.67,R,Acorn Care And Education Ltd,No
Http://opendatacommunities.org/id/metropolitan-district-council/leeds,Leeds City Council,31/12/2015,Childrens Services,Safeguarding Targeted & Specialist,Third Party Payments,SEN Placements,566,24-Dec-2015,1512-00319,0.00,18138.67,R,Acorn Care And Education Ltd,No
Http://opendatacommunities.org/id/metropolitan-district-council/leeds,Leeds City Council,31/12/2015,Childrens Services,Safeguarding Targeted & Specialist,Third Party Payments,SEN Placements,566,24-Dec-2015,1512-00320,0.00,18138.67,R,Acorn Care And Education Ltd,No
Http://opendatacommunities.org/id/metropolitan-district-council/leeds,Leeds City Council,31/12/2015,Childrens Services,Safeguarding Targeted & Specialist,Third Party Payments,SEN Placements,566,24-Dec-2015,1512-00321,0.00,18138.67,R,Acorn Care And Education Ltd,No
Http://opendatacommunities.org/id/metropolitan-district-council/leeds,Leeds City Council,31/12/2015,Childrens Services,Safeguarding Targeted & Specialist,Third Party Payments,SEN Placements,566,24-Dec-2015,1512-00322,0.00,18138.67,R,Acorn Care And Education Ltd,No
Http://opendatacommunities.org/id/metropolitan-district-council/leeds,Leeds City Council,31/12/2015,Childrens Services,Safeguarding Targeted & Specialist,Third Party Payments,SEN Placements,566,24-Dec-2015,1512-00323,0.00,18138.67,R,Acorn Care And Education Ltd,No
Http://opendatacommunities.org/id/metropolitan-district-council/leeds,Leeds City Council,31/12/2015,Childrens Services,Safeguarding Targeted & Specialist,Third Party Payments,SEN Placements,566,24-Dec-2015,1512-00324,0.00,18138.67,R,Acorn Care And Education Ltd,No
Http://opendatacommunities.org/id/metropolitan-district-council/leeds,Leeds City Council,31/12/2015,Childrens Services,Safeguarding Targeted & Specialist,Third Party Payments,SEN Placements,566,24-Dec-2015,1512-00325,0.00,18138.67,R,Acorn Care And Education Ltd,No
Http://opendatacommunities.org/id/metropolitan-district-council/leeds,Leeds City Council,31/12/2015,Childrens Services,Safeguarding Targeted & Specialist,Third Party Payments,SEN Placements,566,24-Dec-2015,1512-00326,0.00,18138.67,R,Acorn Care And Education Ltd,No
Http://opendatacommunities.org/id/metropolitan-district-council/leeds,Leeds City Council,31/12/2015,Childrens Services,Safeguarding Targeted & Specialist,Third Party Payments,SEN Placements,566,24-Dec-2015,1512-00327,0.00,18138.67,R,Acorn Care And Education Ltd,No
Http://opendatacommunities.org/id/metropolitan-district-council/leeds,Leeds City Council,31/12/2015,Childrens Services,Safeguarding Targeted & Specialist,Third Party Payments,SEN Placements,566,24-Dec-2015,1512-00328,0.00,18138.67,R,Acorn Care And Education Ltd,No
Http://opendatacommunities.org/id/metropolitan-district-council/leeds,Leeds City Council,31/12/2015,Childrens Services,Safeguarding Targeted & Specialist,Third Party Payments,SEN Placements,566,24-Dec-2015,1512-00329,0.00,18138.67,R,Acorn Care And Education Ltd,No
Http://opendatacommunities.org/id/metropolitan-district-council/leeds,Leeds City Council,31/12/2015,Childrens Services,Safeguarding Targeted & Specialist,Third Party Payments,SEN Placements,566,24-Dec-2015,1512-00330,0.00,18138.67,R,Acorn Care And Education Ltd,No
Http://opendatacommunities.org/id/metropolitan-district-council/leeds,Leeds City Council,31/12/2015,Childrens Services,Safeguarding Targeted & Specialist,Third Party Payments,SEN Placements,566,24-Dec-2015,1512-00331,0.00,18138.67,R,Acorn Care And Education Ltd,No
Http://opendatacommunities.org/id/metropolitan-district-council/leeds,Leeds City Council,31/12/2015,Childrens Services,Safeguarding Targeted & Specialist,Third Party Payments,SEN Placements,566,24-Dec-2015,1512-00332,0.00,18138.67,R,Acorn Care And Education Ltd,No
Http://opendatacommunities.org/id/metropolitan-district-council/leeds,Leeds City Council,31/12/2015,Childrens Services,Safeguarding Targeted & Specialist,Third Party Payments,SEN Placements,566,24-Dec-2015,1512-00333,0.00,18138.67,R,Acorn Care And Education Ltd,No
Http://opendatacommunities.org/id/metropolitan-district-council/leeds,Leeds City Council,31/12/2015,Childrens Services,Safeguarding Targeted & Specialist,Third Party Payments,SEN Placements,566,24-Dec-2015,1512-00334,0.00,18138.67,R,Acorn Care And Education Ltd,No
Http://opendatacommunities.org/id/metropolitan-district-council/leeds,Leeds City Council,31/12/2015,Childrens Services,Safeguarding Targeted & Specialist,Third Party Payments,SEN Placements,566,24-Dec-2015,1512-00335,0.00,18138.67,R,Acorn Care And Education Ltd,No
Http://opendatacommunities.org/id/metropolitan-district-council/leeds,Leeds City Council,31/12/2015,Childrens Services,Safeguarding Targeted & Specialist,Third Party Payments,SEN Placements,566,24-Dec-2015,1512-00336,0.00,18138.67,R,Acorn Care And Education Ltd,No
Http://opendatacommunities.org/id/metropolitan-district-council/leeds,Leeds City Council,31/12/2015,Childrens Services,Safeguarding Targeted & Specialist,Third Party Payments,SEN Placements,566,24-Dec-2015,1512-00337,0.00,18138.67,R,Acorn Care And Education Ltd,No
Http://opendatacommunities.org/id/metropolitan-district-council/leeds,Leeds City Council,31/12/2015,Childrens Services,Safeguarding Targeted & Specialist,Third Party Payments,SEN Placements,566,24-Dec-2015,1512-00338,0.00,18138.67,R,Acorn Care And Education Ltd,No
Http://opendatacommunities.org/id/metropolitan-district-council/leeds,Leeds City Council,31/12/2015,Childrens Services,Safeguarding Targeted & Specialist,Third Party Payments,SEN Placements,566,24-Dec-2015,1512-00339,0.00,18138.67,R,Acorn Care And Education Ltd,No
Http://opendatacommunities.org/id/metropolitan-district-council/leeds,Leeds City Council,31/12/2015,Childrens Services,Safeguarding Targeted & Specialist,Third Party Payments,SEN Placements,566,31-Dec-2015,1512-00340,0.00,18138.67,R,Acorn Care And Education Ltd,No
Http://opendatacommunities.org/id/metropolitan-district-council/leeds,Leeds City Council,31/12/2015,Childrens Services,Safeguarding Targeted & Specialist,Third Party Payments,Independent Fostering Agencies,509,11-Dec-2015,1512-00341,0.00,2785.71,R,Acorn Fostering Services,No
Http://opendatacommunities.org/id/metropolitan-district-council/leeds,Leeds City Council,31/12/2015,Childrens Services,Safeguarding Targeted & Specialist,Third Party Payments,Independent Fostering Agencies,509,24-Dec-2015,1512-00342,0.00,5014.20,R,Acorn House (Fostering Services) Ltd,No
Http://opendatacommunities.org/id/metropolitan-district-council/leeds,Leeds City Council,31/12/2015,City Development,Libraries  Arts & Heritage,Supplies and Services,Other Hired And Contracted Services,265,02-Dec-2015,1512-00343,0.00,5445.00,R,Acorn Scaffolding (Yorkshire) Ltd,No
Http://opendatacommunities.org/id/metropolitan-district-council/leeds,Leeds City Council,31/12/2015,City Development,Libraries  Arts & Heritage,Supplies and Services,Other Hired And Contracted Services,265,03-Dec-2015,1512-00344,0.00,9280.00,R,Acorn Scaffolding (Yorkshire) Ltd,No
Http://opendatacommunities.org/id/metropolitan-district-council/leeds,Leeds City Council,31/12/2015,Childrens Services,Learning Skills & Universal,Third Party Payments,Services Rendered By Other Organisations,511,11-Dec-2015,1512-00345,0.00,1418.84,R,Acorns Nursery,No
Http://opendatacommunities.org/id/metropolitan-district-council/leeds,Leeds City Council,31/12/2015,Environment & Housing,Community Safety,Supplies and Services,Operational Materials,205,09-Dec-2015,1512-00346,0.00,1567.00,R,Acoustic Instruments International,No
Http://opendatacommunities.org/id/metropolitan-district-council/leeds,Leeds City Council,31/12/2015,Adult Social Care,Services For Adults Under 65 Mental/Dis,Third Party Payments,Residential,580,16-Dec-2015,1512-00347,0.00,1319.20,R,Acre Green,No
Http://opendatacommunities.org/id/metropolitan-district-council/leeds,Leeds City Council,31/12/2015,Adult Social Care,Services For Older People - 65 And Over,Third Party Payments,Nursing Home,570,16-Dec-2015,1512-00348,0.00,11345.70,R,Acre Green,No
Http://opendatacommunities.org/id/metropolitan-district-council/leeds,Leeds City Council,31/12/2015,Adult Social Care,Services For Older People - 65 And Over,Third Party Payments,Residential Care Dementia,571,16-Dec-2015,1512-00349,0.00,1346.64,R,Acre Green,No
Http://opendatacommunities.org/id/metropolitan-district-council/leeds,Leeds City Council,31/12/2015,Adult Social Care,Services For Older People - 65 And Over,Third Party Payments,Nursing Care Dementia,574,16-Dec-2015,1512-00350,0.00,-1883.36,R,Acre Green,No
Http://opendatacommunities.org/id/metropolitan-district-council/leeds,Leeds City Council,31/12/2015,Adult Social Care,Services For Older People - 65 And Over,Third Party Payments,Residential,580,16-Dec-2015,1512-00351,0.00,11318.14,R,Acre Green,No
Http://opendatacommunities.org/id/metropolitan-district-council/leeds,Leeds City Council,31/12/2015,Adult Social Care,Services For Older People Under 65 P/Dis,Third Party Payments,Nursing Home,570,16-Dec-2015,1512-00352,0.00,2604.00,R,Acre Green,No
Http://opendatacommunities.org/id/metropolitan-district-council/leeds,Leeds City Council,31/12/2015,Adult Social Care,Services For Older People Under 65 P/Dis,Third Party Payments,Nursing Care Dementia,574,16-Dec-2015,1512-00353,0.00,7801.31,R,Acre Green,No
Http://opendatacommunities.org/id/metropolitan-district-council/leeds,Leeds City Council,31/12/2015,Childrens Services,Learning Skills & Universal,Third Party Payments,Services Rendered By Other Organisations,511,04-Dec-2015,1512-00354,0.00,2803.30,R,Acre Wood Day Nursery,No
Http://opendatacommunities.org/id/metropolitan-district-council/leeds,Leeds City Council,31/12/2015,Childrens Services,Learning Skills & Universal,Third Party Payments,Services Rendered By Other Organisations,511,11-Dec-2015,1512-00355,0.00,1542.80,R,Acre Wood Day Nursery,No
Http://opendatacommunities.org/id/metropolitan-district-council/leeds,Leeds City Council,31/12/2015,Central & Corporate,Technology,Capital,Other Costs,7,11-Dec-2015,1512-00356,0.00,5516.00,C,Across Health Ltd,No
Http://opendatacommunities.org/id/metropolitan-district-council/leeds,Leeds City Council,31/12/2015,City Development,Highways,Supplies and Services,Operational Materials,205,04-Dec-2015,1512-00357,0.00,581.00,R,Actavo Uk Limited,No
Http://opendatacommunities.org/id/metropolitan-district-council/leeds,Leeds City Council,31/12/2015,Central & Corporate,Commercial Services Trading Services,Supplies and Services,Other Hired And Contracted Services,265,31-Dec-2015,1512-00358,0.00,10.00,R,Actavo Uk Limited,No
Http://opendatacommunities.org/id/metropolitan-district-council/leeds,Leeds City Council,31/12/2015,Adult Social Care,Services For Adults Under 65 Mental/Dis,Third Party Payments,Services Provided By Other NHS Bodies,522,04-Dec-2015,1512-00359,0.00,1750.00,R,Action First Recruitment Ltd,No
Http://opendatacommunities.org/id/metropolitan-district-council/leeds,Leeds City Council,31/12/2015,Adult Social Care,Services For Adults Under 65 Mental/Dis,Third Party Payments,Services Provided By Other NHS Bodies,522,04-Dec-2015,1512-00360,0.00,350.00,R,Action First Recruitment Ltd,No
Http://opendatacommunities.org/id/metropolitan-district-council/leeds,Leeds City Council,31/12/2015,Adult Social Care,Services For Adults Under 65 Mental/Dis,Third Party Payments,Services Provided By Other NHS Bodies,522,11-Dec-2015,1512-00361,0.00,1750.00,R,Action First Recruitment Ltd,No
Http://opendatacommunities.org/id/metropolitan-district-council/leeds,Leeds City Council,31/12/2015,Adult Social Care,Services For Adults Under 65 Mental/Dis,Third Party Payments,Services Provided By Other NHS Bodies,522,11-Dec-2015,1512-00362,0.00,1050.00,R,Action First Recruitment Ltd,No
Http://opendatacommunities.org/id/metropolitan-district-council/leeds,Leeds City Council,31/12/2015,Adult Social Care,Services For Adults Under 65 Mental/Dis,Third Party Payments,Services Provided By Other NHS Bodies,522,11-Dec-2015,1512-00363,0.00,700.00,R,Action First Recruitment Ltd,No
Http://opendatacommunities.org/id/metropolitan-district-council/leeds,Leeds City Council,31/12/2015,Adult Social Care,Services For Adults Under 65 Mental/Dis,Third Party Payments,Services Provided By Other NHS Bodies,522,11-Dec-2015,1512-00364,0.00,1050.00,R,Action First Recruitment Ltd,No
Http://opendatacommunities.org/id/metropolitan-district-council/leeds,Leeds City Council,31/12/2015,Adult Social Care,Services For Adults Under 65 Mental/Dis,Third Party Payments,Services Provided By Other NHS Bodies,522,11-Dec-2015,1512-00365,0.00,300.00,R,Action First Recruitment Ltd,No
Http://opendatacommunities.org/id/metropolitan-district-council/leeds,Leeds City Council,31/12/2015,Adult Social Care,Services For Adults Under 65 Mental/Dis,Third Party Payments,Services Provided By Other NHS Bodies,522,18-Dec-2015,1512-00366,0.00,400.00,R,Action First Recruitment Ltd,No
Http://opendatacommunities.org/id/metropolitan-district-council/leeds,Leeds City Council,31/12/2015,Adult Social Care,Services For Adults Under 65 Mental/Dis,Third Party Payments,Services Provided By Other NHS Bodies,522,18-Dec-2015,1512-00367,0.00,1400.00,R,Action First Recruitment Ltd,No
Http://opendatacommunities.org/id/metropolitan-district-council/leeds,Leeds City Council,31/12/2015,Adult Social Care,Services For Adults Under 65 Mental/Dis,Third Party Payments,Services Provided By Other NHS Bodies,522,18-Dec-2015,1512-00368,0.00,1050.00,R,Action First Recruitment Ltd,No
Http://opendatacommunities.org/id/metropolitan-district-council/leeds,Leeds City Council,31/12/2015,Adult Social Care,Services For Adults Under 65 Mental/Dis,Third Party Payments,Services Provided By Other NHS Bodies,522,18-Dec-2015,1512-00369,0.00,1400.00,R,Action First Recruitment Ltd,No
Http://opendatacommunities.org/id/metropolitan-district-council/leeds,Leeds City Council,31/12/2015,Adult Social Care,Services For Adults Under 65 Mental/Dis,Third Party Payments,Services Provided By Other NHS Bodies,522,18-Dec-2015,1512-00370,0.00,1050.00,R,Action First Recruitment Ltd,No
Http://opendatacommunities.org/id/metropolitan-district-council/leeds,Leeds City Council,31/12/2015,Adult Social Care,Services For Adults Under 65 Mental/Dis,Third Party Payments,Services Provided By Other NHS Bodies,522,24-Dec-2015,1512-00371,0.00,1750.00,R,Action First Recruitment Ltd,No
Http://opendatacommunities.org/id/metropolitan-district-council/leeds,Leeds City Council,31/12/2015,Adult Social Care,Services For Adults Under 65 Mental/Dis,Third Party Payments,Services Provided By Other NHS Bodies,522,24-Dec-2015,1512-00372,0.00,1750.00,R,Action First Recruitment Ltd,No
Http://opendatacommunities.org/id/metropolitan-district-council/leeds,Leeds City Council,31/12/2015,Adult Social Care,Services For Adults Under 65 Mental/Dis,Third Party Payments,Services Provided By Other NHS Bodies,522,24-Dec-2015,1512-00373,0.00,3150.00,R,Action First Recruitment Ltd,No
Http://opendatacommunities.org/id/metropolitan-district-council/leeds,Leeds City Council,31/12/2015,Adult Social Care,Services For Adults Under 65 Mental/Dis,Third Party Payments,Services Provided By Other NHS Bodies,522,24-Dec-2015,1512-00374,0.00,700.00,R,Action First Recruitment Ltd,No
Http://opendatacommunities.org/id/metropolitan-district-council/leeds,Leeds City Council,31/12/2015,Adult Social Care,Services For Adults Under 65 Mental/Dis,Third Party Payments,Services Provided By Other NHS Bodies,522,24-Dec-2015,1512-00375,0.00,1750.00,R,Action First Recruitment Ltd,No
Http://opendatacommunities.org/id/metropolitan-district-council/leeds,Leeds City Council,31/12/2015,Adult Social Care,Services For Adults Under 65 Mental/Dis,Third Party Payments,Services Provided By Other NHS Bodies,522,31-Dec-2015,1512-00376,0.00,1400.00,R,Action First Recruitment Ltd,No
Http://opendatacommunities.org/id/metropolitan-district-council/leeds,Leeds City Council,31/12/2015,Adult Social Care,Services For Adults Under 65 Mental/Dis,Third Party Payments,Services Provided By Other NHS Bodies,522,31-Dec-2015,1512-00377,0.00,350.00,R,Action First Recruitment Ltd,No
Http://opendatacommunities.org/id/metropolitan-district-council/leeds,Leeds City Council,31/12/2015,Adult Social Care,Services For Adults Under 65 Mental/Dis,Third Party Payments,Fees - Level 4,520,31-Dec-2015,1512-00378,0.00,2100.00,R,Action First Recruitment Ltd,No
Http://opendatacommunities.org/id/metropolitan-district-council/leeds,Leeds City Council,31/12/2015,Adult Social Care,Services For Older People Under 65 P/Dis,Third Party Payments,Payments To Voluntary Organisations,561,10-Dec-2015,1512-00379,0.00,116838.00,R,Action For Blind People,No
Http://opendatacommunities.org/id/metropolitan-district-council/leeds,Leeds City Council,31/12/2015,Childrens Services,Safeguarding Targeted & Specialist,Third Party Payments,Independent Fostering Agencies,509,10-Dec-2015,1512-00380,0.00,5163.67,R,Action For Children,No
Http://opendatacommunities.org/id/metropolitan-district-council/leeds,Leeds City Council,31/12/2015,Childrens Services,Safeguarding Targeted & Specialist,Third Party Payments,Independent Fostering Agencies,509,10-Dec-2015,1512-00381,0.00,4997.10,R,Action For Children,No
Http://opendatacommunities.org/id/metropolitan-district-council/leeds,Leeds City Council,31/12/2015,Childrens Services,Safeguarding Targeted & Specialist,Third Party Payments,Independent Fostering Agencies,509,10-Dec-2015,1512-00382,0.00,4622.40,R,Action For Children,No
Http://opendatacommunities.org/id/metropolitan-district-council/leeds,Leeds City Council,31/12/2015,Childrens Services,Safeguarding Targeted & Specialist,Third Party Payments,Independent Fostering Agencies,509,10-Dec-2015,1512-00383,0.00,4864.20,R,Action For Children,No
Http://opendatacommunities.org/id/metropolitan-district-council/leeds,Leeds City Council,31/12/2015,Childrens Services,Safeguarding Targeted & Specialist,Third Party Payments,Independent Fostering Agencies,509,10-Dec-2015,1512-00384,0.00,4622.40,R,Action For Children,No
Http://opendatacommunities.org/id/metropolitan-district-council/leeds,Leeds City Council,31/12/2015,Childrens Services,Safeguarding Targeted & Specialist,Third Party Payments,Independent Fostering Agencies,509,10-Dec-2015,1512-00385,0.00,4622.40,R,Action For Children,No
Http://opendatacommunities.org/id/metropolitan-district-council/leeds,Leeds City Council,31/12/2015,Childrens Services,Safeguarding Targeted & Specialist,Third Party Payments,Independent Fostering Agencies,509,10-Dec-2015,1512-00386,0.00,4864.20,R,Action For Children,No
Http://opendatacommunities.org/id/metropolitan-district-council/leeds,Leeds City Council,31/12/2015,Childrens Services,Safeguarding Targeted & Specialist,Third Party Payments,Independent Fostering Agencies,509,10-Dec-2015,1512-00387,0.00,4622.40,R,Action For Children,No
Http://opendatacommunities.org/id/metropolitan-district-council/leeds,Leeds City Council,31/12/2015,Childrens Services,Safeguarding Targeted & Specialist,Third Party Payments,Independent Fostering Agencies,509,10-Dec-2015,1512-00388,0.00,2132.10,R,Action For Children,No
Http://opendatacommunities.org/id/metropolitan-district-council/leeds,Leeds City Council,31/12/2015,Childrens Services,Safeguarding Targeted & Specialist,Third Party Payments,Independent Fostering Agencies,509,10-Dec-2015,1512-00389,0.00,4997.10,R,Action For Children,No
Http://opendatacommunities.org/id/metropolitan-district-council/leeds,Leeds City Council,31/12/2015,Adult Social Care,Services For Older People - 65 And Over,Third Party Payments,Payments To Voluntary Organisations,561,31-Dec-2015,1512-00390,0.00,16517.50,R,Action For Gipton Elderly,No
Http://opendatacommunities.org/id/metropolitan-district-council/leeds,Leeds City Council,31/12/2015,Adult Social Care,Services For Older People - 65 And Over,Third Party Payments,Payments To Voluntary Organisations,561,31-Dec-2015,1512-00391,0.00,3238.00,R,Action For Gipton Elderly,No
Http://opendatacommunities.org/id/metropolitan-district-council/leeds,Leeds City Council,31/12/2015,Adult Social Care,Services For Older People - 65 And Over,Third Party Payments,Payments To Voluntary Organisations,561,31-Dec-2015,1512-00392,0.00,13500.00,R,Action For Gipton Elderly,No
Http://opendatacommunities.org/id/metropolitan-district-council/leeds,Leeds City Council,31/12/2015,Citizens and Communities,Communities,Supplies and Services,'Well Being' Large Grants Projects,230,31-Dec-2015,1512-00393,0.00,1285.00,R,Active Hire (Leeds) Ltd,No
Http://opendatacommunities.org/id/metropolitan-district-council/leeds,Leeds City Council,31/12/2015,Childrens Services,Learning Skills & Universal,Third Party Payments,Services Rendered By Other Organisations,511,04-Dec-2015,1512-00394,0.00,606.25,R,Active Kids Day Nursery,No
Http://opendatacommunities.org/id/metropolitan-district-council/leeds,Leeds City Council,31/12/2015,Childrens Services,Learning Skills & Universal,Third Party Payments,Services Rendered By Other Organisations,511,11-Dec-2015,1512-00395,0.00,1771.90,R,Active Kids Day Nursery,No
Http://opendatacommunities.org/id/metropolitan-district-council/leeds,Leeds City Council,31/12/2015,Environment & Housing,Parks and Countryside,Supplies and Services,Resaleable Materials,204,04-Dec-2015,1512-00396,0.00,127.35,R,Acushnet Europe Limited,No
Http://opendatacommunities.org/id/metropolitan-district-council/leeds,Leeds City Council,31/12/2015,Environment & Housing,Parks and Countryside,Supplies and Services,Resaleable Materials,204,18-Dec-2015,1512-00397,0.00,159.00,R,Acushnet Europe Limited,No
Http://opendatacommunities.org/id/metropolitan-district-council/leeds,Leeds City Council,31/12/2015,Civic Enterprise Leeds,Business Support Centre,Supplies and Services,Other Hired And Contracted Services,265,11-Dec-2015,1512-00398,0.00,55.90,R,Ad3 Envelope Printers Limited,No
Http://opendatacommunities.org/id/metropolitan-district-council/leeds,Leeds City Council,31/12/2015,Civic Enterprise Leeds,Business Support Centre,Supplies and Services,Other Hired And Contracted Services,265,23-Dec-2015,1512-00399,0.00,81.15,R,Ad3 Envelope Printers Limited,No
Http://opendatacommunities.org/id/metropolitan-district-council/leeds,Leeds City Council,31/12/2015,Civic Enterprise Leeds,Business Support Centre,Supplies and Services,Other Hired And Contracted Services,265,30-Dec-2015,1512-00400,0.00,212.16,R,Ad3 Envelope Printers Limited,No
Http://opendatacommunities.org/id/metropolitan-district-council/leeds,Leeds City Council,31/12/2015,Citizens and Communities,Customer Access,Supplies and Services,Food & Drink,231,24-Dec-2015,1512-00401,0.00,127.21,R,REDACTED PERSONAL DATA,No
Http://opendatacommunities.org/id/metropolitan-district-council/leeds,Leeds City Council,31/12/2015,Adult Social Care,Services For Older People Under 65 P/Dis,Third Party Payments,Nursing Home,570,31-Dec-2015,1512-00402,0.00,1080.00,R,Adams Activity Ark,No
Http://opendatacommunities.org/id/metropolitan-district-council/leeds,Leeds City Council,31/12/2015,Central & Corporate,Public Health,Third Party Payments,Public Health Commissioned Services,526,22-Dec-2015,1512-00403,0.00,4931.88,R,Addlestone & Partners,No
Http://opendatacommunities.org/id/metropolitan-district-council/leeds,Leeds City Council,31/12/2015,Environment & Housing,Parks and Countryside,Premises,Rents,141,04-Dec-2015,1512-00404,0.00,5285.00,R,Addplant Limited,No
Http://opendatacommunities.org/id/metropolitan-district-council/leeds,Leeds City Council,31/12/2015,Childrens Services,Learning Skills & Universal,Third Party Payments,Services Rendered By Voluntary Sector,505,11-Dec-2015,1512-00405,0.00,90.97,R,Adel Pre School,No
Http://opendatacommunities.org/id/metropolitan-district-council/leeds,Leeds City Council,31/12/2015,Childrens Services,Learning Skills & Universal,Third Party Payments,Services Rendered By Voluntary Sector,505,18-Dec-2015,1512-00406,0.00,2376.00,R,Adel Pre School,No
Http://opendatacommunities.org/id/metropolitan-district-council/leeds,Leeds City Council,31/12/2015,Adult Social Care,Services For Older People - 65 And Over,Third Party Payments,Residential,580,16-Dec-2015,1512-00407,0.00,10795.19,R,Adeline Lodge,No
Http://opendatacommunities.org/id/metropolitan-district-council/leeds,Leeds City Council,31/12/2015,Adult Social Care,Services For Older People - 65 And Over,Third Party Payments,Nursing Home,570,16-Dec-2015,1512-00408,0.00,1060.84,R,Aden House,No
Http://opendatacommunities.org/id/metropolitan-district-council/leeds,Leeds City Council,31/12/2015,Adult Social Care,Services For Older People - 65 And Over,Third Party Payments,Residential Care Dementia,571,16-Dec-2015,1512-00409,0.00,1320.68,R,Aden House,No
Http://opendatacommunities.org/id/metropolitan-district-council/leeds,Leeds City Council,31/12/2015,Central & Corporate,Commercial Services Trading Services,Supplies and Services,Operational Materials,205,04-Dec-2015,1512-00410,0.00,72.80,R,Adi Global,No
Http://opendatacommunities.org/id/metropolitan-district-council/leeds,Leeds City Council,31/12/2015,Central & Corporate,Commercial Services Trading Services,Supplies and Services,Operational Materials,205,16-Dec-2015,1512-00411,0.00,285.08,R,Adi Global,No
Http://opendatacommunities.org/id/metropolitan-district-council/leeds,Leeds City Council,31/12/2015,Central & Corporate,Commercial Services Trading Services,Supplies and Services,Operational Materials,205,16-Dec-2015,1512-00412,0.00,106.24,R,Adi Global,No
Http://opendatacommunities.org/id/metropolitan-district-council/leeds,Leeds City Council,31/12/2015,Central & Corporate,Commercial Services Trading Services,Supplies and Services,Operational Materials,205,16-Dec-2015,1512-00413,0.00,109.56,R,Adi Global,No
Http://opendatacommunities.org/id/metropolitan-district-council/leeds,Leeds City Council,31/12/2015,Central & Corporate,Commercial Services Trading Services,Supplies and Services,Operational Materials,205,18-Dec-2015,1512-00414,0.00,19.87,R,Adi Global,No
Http://opendatacommunities.org/id/metropolitan-district-council/leeds,Leeds City Council,31/12/2015,Central & Corporate,Commercial Services Trading Services,Supplies and Services,Operational Materials,205,18-Dec-2015,1512-00415,0.00,20.38,R,Adi Global,No
Http://opendatacommunities.org/id/metropolitan-district-council/leeds,Leeds City Council,31/12/2015,Central & Corporate,Commercial Services Trading Services,Supplies and Services,Operational Materials,205,18-Dec-2015,1512-00416,0.00,12.29,R,Adi Global,No
Http://opendatacommunities.org/id/metropolitan-district-council/leeds,Leeds City Council,31/12/2015,Central & Corporate,Commercial Services Trading Services,Supplies and Services,Operational Materials,205,18-Dec-2015,1512-00417,0.00,19.87,R,Adi Global,No
Http://opendatacommunities.org/id/metropolitan-district-council/leeds,Leeds City Council,31/12/2015,Central & Corporate,Commercial Services Trading Services,Supplies and Services,Operational Materials,205,23-Dec-2015,1512-00418,0.00,1.99,R,Adi Global,No
Http://opendatacommunities.org/id/metropolitan-district-council/leeds,Leeds City Council,31/12/2015,Central & Corporate,Commercial Services Trading Services,Supplies and Services,Operational Materials,205,23-Dec-2015,1512-00419,0.00,26.73,R,Adi Global,No
Http://opendatacommunities.org/id/metropolitan-district-council/leeds,Leeds City Council,31/12/2015,Central & Corporate,Commercial Services Trading Services,Supplies and Services,Operational Materials,205,31-Dec-2015,1512-00420,0.00,36.52,R,Adi Global,No
Http://opendatacommunities.org/id/metropolitan-district-council/leeds,Leeds City Council,31/12/2015,City Development,Libraries  Arts & Heritage,Supplies and Services,Other Hired And Contracted Services,265,04-Dec-2015,1512-00421,0.00,5450.00,R,Adi Uk Ltd,No
Http://opendatacommunities.org/id/metropolitan-district-council/leeds,Leeds City Council,31/12/2015,Environment & Housing,Community Safety ,Supplies and Services,Other Hired And Contracted Services,265,18-Nov-2015,1512-00422,0.00,40.00,R,Adi-Gardiner Ltd,Yes
Http://opendatacommunities.org/id/metropolitan-district-council/leeds,Leeds City Council,31/12/2015,Civic Enterprise Leeds,Commercial Services,Transport,Vehicle Spares,345,18-Dec-2015,1512-00423,0.00,27.00,R,Adm Car Audio,No
Http://opendatacommunities.org/id/metropolitan-district-council/leeds,Leeds City Council,31/12/2015,Central & Corporate,Commercial Services Trading Services,Supplies and Services,Other Hired And Contracted Services,265,15-Dec-2015,1512-00424,0.00,310.00,R,Admas Limited,No
Http://opendatacommunities.org/id/metropolitan-district-council/leeds,Leeds City Council,31/12/2015,Environment & Housing,Environmental Health,Capital,Other Costs,7,17-Dec-2015,1512-00425,0.00,410.00,C,Admas Limited,No
Http://opendatacommunities.org/id/metropolitan-district-council/leeds,Leeds City Council,31/12/2015,Central & Corporate,Commercial Services Trading Services,Supplies and Services,Other Hired And Contracted Services,265,17-Dec-2015,1512-00426,0.00,180.00,R,Admas Limited,No
Http://opendatacommunities.org/id/metropolitan-district-council/leeds,Leeds City Council,31/12/2015,Central & Corporate,Commercial Services Trading Services,Supplies and Services,Other Hired And Contracted Services,265,17-Dec-2015,1512-00427,0.00,180.00,R,Admas Limited,No
Http://opendatacommunities.org/id/metropolitan-district-council/leeds,Leeds City Council,31/12/2015,Central & Corporate,Commercial Services Trading Services,Supplies and Services,Other Hired And Contracted Services,265,17-Dec-2015,1512-00428,0.00,180.00,R,Admas Limited,No
Http://opendatacommunities.org/id/metropolitan-district-council/leeds,Leeds City Council,31/12/2015,Central & Corporate,Commercial Services Trading Services,Supplies and Services,Other Hired And Contracted Services,265,17-Dec-2015,1512-00429,0.00,800.00,R,Admas Limited,No
Http://opendatacommunities.org/id/metropolitan-district-council/leeds,Leeds City Council,31/12/2015,Central & Corporate,Commercial Services Trading Services,Supplies and Services,Other Hired And Contracted Services,265,17-Dec-2015,1512-00430,0.00,2100.00,R,Admas Limited,No
Http://opendatacommunities.org/id/metropolitan-district-council/leeds,Leeds City Council,31/12/2015,Central & Corporate,Commercial Services Trading Services,Supplies and Services,Other Hired And Contracted Services,265,17-Dec-2015,1512-00431,0.00,310.00,R,Admas Limited,No
Http://opendatacommunities.org/id/metropolitan-district-council/leeds,Leeds City Council,31/12/2015,Central & Corporate,Commercial Services Trading Services,Supplies and Services,Other Hired And Contracted Services,265,18-Dec-2015,1512-00432,0.00,360.00,R,Admas Limited,No
Http://opendatacommunities.org/id/metropolitan-district-council/leeds,Leeds City Council,31/12/2015,Central & Corporate,Commercial Services Trading Services,Supplies and Services,Other Hired And Contracted Services,265,18-Dec-2015,1512-00433,0.00,310.00,R,Admas Limited,No
Http://opendatacommunities.org/id/metropolitan-district-council/leeds,Leeds City Council,31/12/2015,Central & Corporate,Commercial Services Trading Services,Supplies and Services,Other Hired And Contracted Services,265,18-Dec-2015,1512-00434,0.00,180.00,R,Admas Limited,No
Http://opendatacommunities.org/id/metropolitan-district-council/leeds,Leeds City Council,31/12/2015,Central & Corporate,Commercial Services Trading Services,Supplies and Services,Other Hired And Contracted Services,265,18-Dec-2015,1512-00435,0.00,180.00,R,Admas Limited,No
Http://opendatacommunities.org/id/metropolitan-district-council/leeds,Leeds City Council,31/12/2015,Central & Corporate,Commercial Services Trading Services,Supplies and Services,Other Hired And Contracted Services,265,24-Dec-2015,1512-00436,0.00,180.00,R,Admas Limited,No
Http://opendatacommunities.org/id/metropolitan-district-council/leeds,Leeds City Council,31/12/2015,Central & Corporate,Commercial Services Trading Services,Supplies and Services,Other Hired And Contracted Services,265,24-Dec-2015,1512-00437,0.00,310.00,R,Admas Limited,No
Http://opendatacommunities.org/id/metropolitan-district-council/leeds,Leeds City Council,31/12/2015,Central & Corporate,Commercial Services Trading Services,Supplies and Services,Other Hired And Contracted Services,265,24-Dec-2015,1512-00438,0.00,1480.00,R,Admas Limited,No
Http://opendatacommunities.org/id/metropolitan-district-council/leeds,Leeds City Council,31/12/2015,Central & Corporate,Commercial Services Trading Services,Supplies and Services,Other Hired And Contracted Services,265,24-Dec-2015,1512-00439,0.00,310.00,R,Admas Limited,No
Http://opendatacommunities.org/id/metropolitan-district-council/leeds,Leeds City Council,31/12/2015,Central & Corporate,Commercial Services Trading Services,Supplies and Services,Other Hired And Contracted Services,265,24-Dec-2015,1512-00440,0.00,180.00,R,Admas Limited,No
Http://opendatacommunities.org/id/metropolitan-district-council/leeds,Leeds City Council,31/12/2015,Central & Corporate,Commercial Services Trading Services,Supplies and Services,Other Hired And Contracted Services,265,24-Dec-2015,1512-00441,0.00,180.00,R,Admas Limited,No
Http://opendatacommunities.org/id/metropolitan-district-council/leeds,Leeds City Council,31/12/2015,Environment & Housing,Environmental Health,Capital,Other Costs,7,24-Dec-2015,1512-00442,0.00,1415.00,C,Admas Limited,No
Http://opendatacommunities.org/id/metropolitan-district-council/leeds,Leeds City Council,31/12/2015,Childrens Services,Safeguarding Targeted & Specialist,Third Party Payments,Independent Fostering Agencies,509,02-Dec-2015,1512-00443,0.00,3100.00,R,Adolescent And Childrens Trust,No
Http://opendatacommunities.org/id/metropolitan-district-council/leeds,Leeds City Council,31/12/2015,Childrens Services,Safeguarding Targeted & Specialist,Third Party Payments,Independent Fostering Agencies,509,04-Dec-2015,1512-00444,0.00,3100.00,R,Adolescent And Childrens Trust,No
Http://opendatacommunities.org/id/metropolitan-district-council/leeds,Leeds City Council,31/12/2015,Childrens Services,Safeguarding Targeted & Specialist,Third Party Payments,Independent Fostering Agencies,509,04-Dec-2015,1512-00445,0.00,3100.00,R,Adolescent And Childrens Trust,No
Http://opendatacommunities.org/id/metropolitan-district-council/leeds,Leeds City Council,31/12/2015,Childrens Services,Safeguarding Targeted & Specialist,Third Party Payments,Independent Fostering Agencies,509,04-Dec-2015,1512-00446,0.00,570.00,R,Adolescent And Childrens Trust,No
Http://opendatacommunities.org/id/metropolitan-district-council/leeds,Leeds City Council,31/12/2015,Childrens Services,Safeguarding Targeted & Specialist,Third Party Payments,Independent Fostering Agencies,509,04-Dec-2015,1512-00447,0.00,3100.00,R,Adolescent And Childrens Trust,No
Http://opendatacommunities.org/id/metropolitan-district-council/leeds,Leeds City Council,31/12/2015,Childrens Services,Safeguarding Targeted & Specialist,Third Party Payments,Independent Fostering Agencies,509,04-Dec-2015,1512-00448,0.00,3100.00,R,Adolescent And Childrens Trust,No
Http://opendatacommunities.org/id/metropolitan-district-council/leeds,Leeds City Council,31/12/2015,Childrens Services,Safeguarding Targeted & Specialist,Third Party Payments,Independent Fostering Agencies,509,04-Dec-2015,1512-00449,0.00,3100.00,R,Adolescent And Childrens Trust,No
Http://opendatacommunities.org/id/metropolitan-district-council/leeds,Leeds City Council as Accountable Body,31/12/2015,Social Services Pooled Budgets,Jcs For People With Learning Disabilitie,Third Party Payments,Residential,580,03-Dec-2015,1512-00450,0.00,2609.36,R,Adrian House,No
Http://opendatacommunities.org/id/metropolitan-district-council/leeds,Leeds City Council as Accountable Body,31/12/2015,Social Services Pooled Budgets,Jcs For People With Learning Disabilitie,Third Party Payments,Residential,580,10-Dec-2015,1512-00451,0.00,2609.36,R,Adrian House,No
Http://opendatacommunities.org/id/metropolitan-district-council/leeds,Leeds City Council as Accountable Body,31/12/2015,Social Services Pooled Budgets,Jcs For People With Learning Disabilitie,Third Party Payments,Residential,580,24-Dec-2015,1512-00452,0.00,2609.36,R,Adrian House,No
Http://opendatacommunities.org/id/metropolitan-district-council/leeds,Leeds City Council,31/12/2015,Childrens Services,Learning Skills & Universal,Third Party Payments,Services Rendered By Other Organisations,511,04-Dec-2015,1512-00453,0.00,1018.50,R,Adriana Wrzol,No
Http://opendatacommunities.org/id/metropolitan-district-council/leeds,Leeds City Council,31/12/2015,Childrens Services,Learning Skills & Universal,Third Party Payments,Services Rendered By Other Organisations,511,11-Dec-2015,1512-00454,0.00,159.60,R,Adriana Wrzol,No
Http://opendatacommunities.org/id/metropolitan-district-council/leeds,Leeds City Council,31/12/2015,Civic Enterprise Leeds,Facilities Management ,Supplies and Services,Operational Furniture And Equipment,203,06-Nov-2015,1512-00455,0.00,-656.25,R,Adt Cardiff Cc,Yes
Http://opendatacommunities.org/id/metropolitan-district-council/leeds,Leeds City Council,31/12/2015,Civic Enterprise Leeds,Corporate Property Management,Premises,Maintenance Of Buildings,101,16-Dec-2015,1512-00456,0.00,42.50,R,Adt Fire And Security Plc,No
Http://opendatacommunities.org/id/metropolitan-district-council/leeds,Leeds City Council,31/12/2015,Civic Enterprise Leeds,Corporate Property Management,Premises,Maintenance Of Buildings,101,16-Dec-2015,1512-00457,0.00,505.50,R,Adt Fire And Security Plc,No
Http://opendatacommunities.org/id/metropolitan-district-council/leeds,Leeds City Council,31/12/2015,Civic Enterprise Leeds,Corporate Property Management,Premises,Maintenance Of Buildings,101,16-Dec-2015,1512-00458,0.00,446.00,R,Adt Fire And Security Plc,No
Http://opendatacommunities.org/id/metropolitan-district-council/leeds,Leeds City Council as Accountable Body,31/12/2015,Social Services Pooled Budgets,Jcs For People With Learning Disabilitie,Third Party Payments,Sheltered Accommodation,569,04-Dec-2015,1512-00459,0.00,1332.20,R,Adult Placement Services,No
Http://opendatacommunities.org/id/metropolitan-district-council/leeds,Leeds City Council as Accountable Body,31/12/2015,Social Services Pooled Budgets,Jcs For People With Learning Disabilitie,Third Party Payments,Sheltered Accommodation,569,04-Dec-2015,1512-00460,0.00,395.50,R,Adult Placement Services,No
Http://opendatacommunities.org/id/metropolitan-district-council/leeds,Leeds City Council as Accountable Body,31/12/2015,Social Services Pooled Budgets,Jcs For People With Learning Disabilitie,Third Party Payments,Sheltered Accommodation,569,30-Dec-2015,1512-00461,0.00,1332.20,R,Adult Placement Services,No
Http://opendatacommunities.org/id/metropolitan-district-council/leeds,Leeds City Council,31/12/2015,Adult Social Care,Services For Adults Under 65 Mental/Dis,Third Party Payments,Nursing Home,570,16-Dec-2015,1512-00462,0.00,1541.96,R,Adult Supported Living Ltd,No
Http://opendatacommunities.org/id/metropolitan-district-council/leeds,Leeds City Council,31/12/2015,City Development,Libraries  Arts & Heritage,Supplies and Services,External Audit Fees,261,11-Dec-2015,1512-00463,0.00,85.00,R,Advance Stocks Ltd,No
Http://opendatacommunities.org/id/metropolitan-district-council/leeds,Leeds City Council,31/12/2015,City Development,Libraries  Arts & Heritage,Supplies and Services,External Audit Fees,261,17-Dec-2015,1512-00464,0.00,85.00,R,Advance Stocks Ltd,No
Http://opendatacommunities.org/id/metropolitan-district-council/leeds,Leeds City Council,31/12/2015,City Development,Recreation,Supplies and Services,External Audit Fees,261,17-Dec-2015,1512-00465,0.00,235.00,R,Advance Stocks Ltd,No
Http://opendatacommunities.org/id/metropolitan-district-council/leeds,Leeds City Council,31/12/2015,City Development,Recreation,Supplies and Services,External Audit Fees,261,17-Dec-2015,1512-00466,0.00,85.00,R,Advance Stocks Ltd,No
Http://opendatacommunities.org/id/metropolitan-district-council/leeds,Leeds City Council,31/12/2015,Childrens Services,Safeguarding Targeted & Specialist,Support Services,Legal Disbursements,411,04-Dec-2015,1512-00467,0.00,671.17,R,Advanced Child Care Assessments Ltd,No
Http://opendatacommunities.org/id/metropolitan-district-council/leeds,Leeds City Council,31/12/2015,Childrens Services,Safeguarding Targeted & Specialist,Support Services,Legal Disbursements,411,04-Dec-2015,1512-00468,0.00,5076.15,R,Advanced Child Care Assessments Ltd,No
Http://opendatacommunities.org/id/metropolitan-district-council/leeds,Leeds City Council,31/12/2015,Childrens Services,Safeguarding Targeted & Specialist,Support Services,Legal Disbursements,411,10-Dec-2015,1512-00469,0.00,71.25,R,Advanced Child Care Assessments Ltd,No
Http://opendatacommunities.org/id/metropolitan-district-council/leeds,Leeds City Council as Accountable Body,31/12/2015,Social Services Pooled Budgets,Jcs For People With Learning Disabilitie,Third Party Payments,Residential,580,16-Dec-2015,1512-00470,0.00,20248.68,R,Advitam Ltd,No
Http://opendatacommunities.org/id/metropolitan-district-council/leeds,Leeds City Council,31/12/2015,Adult Social Care,Social Services Support Services,Employees,Training Costs,71,03-Dec-2015,1512-00471,0.00,1095.00,R,Advonet,No
Http://opendatacommunities.org/id/metropolitan-district-council/leeds,Leeds City Council,31/12/2015,Adult Social Care,Services For Older People - 65 And Over,Third Party Payments,Payments To Voluntary Organisations,561,04-Dec-2015,1512-00472,0.00,84422.93,R,Advonet,No
Http://opendatacommunities.org/id/metropolitan-district-council/leeds,Leeds City Council,31/12/2015,Environment & Housing,Environmental Health,Capital,Construction,3,09-Dec-2015,1512-00473,0.00,630.00,C,Adweld,No
Http://opendatacommunities.org/id/metropolitan-district-council/leeds,Leeds City Council as Accountable Body,31/12/2015,Social Services Pooled Budgets,Jcs For People With Learning Disabilitie,Third Party Payments,Home Care,568,03-Dec-2015,1512-00474,0.00,1022.72,R,Affinity Trust,No
Http://opendatacommunities.org/id/metropolitan-district-council/leeds,Leeds City Council as Accountable Body,31/12/2015,Social Services Pooled Budgets,Jcs For People With Learning Disabilitie,Third Party Payments,Home Care,568,04-Dec-2015,1512-00475,0.00,575.28,R,Affinity Trust,No
Http://opendatacommunities.org/id/metropolitan-district-council/leeds,Leeds City Council,31/12/2015,Adult Social Care,Services For Older People Under 65 P/Dis,Third Party Payments,Home Care,568,04-Dec-2015,1512-00476,0.00,166.10,R,Affinity Trust,No
Http://opendatacommunities.org/id/metropolitan-district-council/leeds,Leeds City Council,31/12/2015,Adult Social Care,Services For Older People Under 65 P/Dis,Third Party Payments,Home Care,568,09-Dec-2015,1512-00477,0.00,156.20,R,Affinity Trust,No
Http://opendatacommunities.org/id/metropolitan-district-council/leeds,Leeds City Council,31/12/2015,Adult Social Care,Services For Older People Under 65 P/Dis,Third Party Payments,Home Care,568,09-Dec-2015,1512-00478,0.00,658.35,R,Affinity Trust,No
Http://opendatacommunities.org/id/metropolitan-district-council/leeds,Leeds City Council as Accountable Body,31/12/2015,Social Services Pooled Budgets,Jcs For People With Learning Disabilitie,Third Party Payments,Home Care,568,11-Dec-2015,1512-00479,0.00,1350.00,R,Affinity Trust,No
Http://opendatacommunities.org/id/metropolitan-district-council/leeds,Leeds City Council as Accountable Body,31/12/2015,Social Services Pooled Budgets,Jcs For People With Learning Disabilitie,Third Party Payments,Day Centre,564,11-Dec-2015,1512-00480,0.00,2539.35,R,Affinity Trust,No
Http://opendatacommunities.org/id/metropolitan-district-council/leeds,Leeds City Council as Accountable Body,31/12/2015,Social Services Pooled Budgets,Jcs For People With Learning Disabilitie,Third Party Payments,Home Care,568,11-Dec-2015,1512-00481,0.00,3973.76,R,Affinity Trust,No
Http://opendatacommunities.org/id/metropolitan-district-council/leeds,Leeds City Council as Accountable Body,31/12/2015,Social Services Pooled Budgets,Jcs For People With Learning Disabilitie,Third Party Payments,Home Care,568,11-Dec-2015,1512-00482,0.00,1950.00,R,Affinity Trust,No
Http://opendatacommunities.org/id/metropolitan-district-council/leeds,Leeds City Council as Accountable Body,31/12/2015,Social Services Pooled Budgets,Jcs For People With Learning Disabilitie,Third Party Payments,Day Centre,564,11-Dec-2015,1512-00483,0.00,1315.84,R,Affinity Trust,No
Http://opendatacommunities.org/id/metropolitan-district-council/leeds,Leeds City Council as Accountable Body,31/12/2015,Social Services Pooled Budgets,Jcs For People With Learning Disabilitie,Third Party Payments,Home Care,568,11-Dec-2015,1512-00484,0.00,657.15,R,Affinity Trust,No
Http://opendatacommunities.org/id/metropolitan-district-council/leeds,Leeds City Council as Accountable Body,31/12/2015,Social Services Pooled Budgets,Jcs For People With Learning Disabilitie,Third Party Payments,Day Centre,564,11-Dec-2015,1512-00485,0.00,5065.60,R,Affinity Trust,No
Http://opendatacommunities.org/id/metropolitan-district-council/leeds,Leeds City Council as Accountable Body,31/12/2015,Social Services Pooled Budgets,Jcs For People With Learning Disabilitie,Third Party Payments,Home Care,568,11-Dec-2015,1512-00486,0.00,2279.36,R,Affinity Trust,No
Http://opendatacommunities.org/id/metropolitan-district-council/leeds,Leeds City Council as Accountable Body,31/12/2015,Social Services Pooled Budgets,Jcs For People With Learning Disabilitie,Third Party Payments,Home Care,568,11-Dec-2015,1512-00487,0.00,804.46,R,Affinity Trust,No
Http://opendatacommunities.org/id/metropolitan-district-council/leeds,Leeds City Council as Accountable Body,31/12/2015,Social Services Pooled Budgets,Jcs For People With Learning Disabilitie,Third Party Payments,Home Care,568,11-Dec-2015,1512-00488,0.00,1294.30,R,Affinity Trust,No
Http://opendatacommunities.org/id/metropolitan-district-council/leeds,Leeds City Council as Accountable Body,31/12/2015,Social Services Pooled Budgets,Jcs For People With Learning Disabilitie,Third Party Payments,Home Care,568,11-Dec-2015,1512-00489,0.00,2250.00,R,Affinity Trust,No
Http://opendatacommunities.org/id/metropolitan-district-council/leeds,Leeds City Council as Accountable Body,31/12/2015,Social Services Pooled Budgets,Jcs For People With Learning Disabilitie,Third Party Payments,Home Care,568,11-Dec-2015,1512-00490,0.00,2514.00,R,Affinity Trust,No
Http://opendatacommunities.org/id/metropolitan-district-council/leeds,Leeds City Council as Accountable Body,31/12/2015,Social Services Pooled Budgets,Jcs For People With Learning Disabilitie,Third Party Payments,Home Care,568,11-Dec-2015,1512-00491,0.00,1005.60,R,Affinity Trust,No
Http://opendatacommunities.org/id/metropolitan-district-council/leeds,Leeds City Council as Accountable Body,31/12/2015,Social Services Pooled Budgets,Jcs For People With Learning Disabilitie,Third Party Payments,Home Care,568,11-Dec-2015,1512-00492,0.00,450.00,R,Affinity Trust,No
Http://opendatacommunities.org/id/metropolitan-district-council/leeds,Leeds City Council as Accountable Body,31/12/2015,Social Services Pooled Budgets,Jcs For People With Learning Disabilitie,Third Party Payments,Home Care,568,11-Dec-2015,1512-00493,0.00,363.16,R,Affinity Trust,No
Http://opendatacommunities.org/id/metropolitan-district-council/leeds,Leeds City Council as Accountable Body,31/12/2015,Social Services Pooled Budgets,Jcs For People With Learning Disabilitie,Third Party Payments,Home Care,568,11-Dec-2015,1512-00494,0.00,1312.50,R,Affinity Trust,No
Http://opendatacommunities.org/id/metropolitan-district-council/leeds,Leeds City Council as Accountable Body,31/12/2015,Social Services Pooled Budgets,Jcs For People With Learning Disabilitie,Third Party Payments,Day Centre,564,11-Dec-2015,1512-00495,0.00,893.48,R,Affinity Trust,No
Http://opendatacommunities.org/id/metropolitan-district-council/leeds,Leeds City Council as Accountable Body,31/12/2015,Social Services Pooled Budgets,Jcs For People With Learning Disabilitie,Third Party Payments,Home Care,568,11-Dec-2015,1512-00496,0.00,855.00,R,Affinity Trust,No
Http://opendatacommunities.org/id/metropolitan-district-council/leeds,Leeds City Council as Accountable Body,31/12/2015,Social Services Pooled Budgets,Jcs For People With Learning Disabilitie,Third Party Payments,Home Care,568,11-Dec-2015,1512-00497,0.00,5521.60,R,Affinity Trust,No
Http://opendatacommunities.org/id/metropolitan-district-council/leeds,Leeds City Council as Accountable Body,31/12/2015,Social Services Pooled Budgets,Jcs For People With Learning Disabilitie,Third Party Payments,Day Centre,564,11-Dec-2015,1512-00498,0.00,1800.00,R,Affinity Trust,No
Http://opendatacommunities.org/id/metropolitan-district-council/leeds,Leeds City Council as Accountable Body,31/12/2015,Social Services Pooled Budgets,Jcs For People With Learning Disabilitie,Third Party Payments,Home Care,568,11-Dec-2015,1512-00499,0.00,336.40,R,Affinity Trust,No
Http://opendatacommunities.org/id/metropolitan-district-council/leeds,Leeds City Council as Accountable Body,31/12/2015,Social Services Pooled Budgets,Jcs For People With Learning Disabilitie,Third Party Payments,Home Care,568,11-Dec-2015,1512-00500,0.00,816.00,R,Affinity Trust,No
Http://opendatacommunities.org/id/metropolitan-district-council/leeds,Leeds City Council as Accountable Body,31/12/2015,Social Services Pooled Budgets,Jcs For People With Learning Disabilitie,Third Party Payments,Home Care,568,11-Dec-2015,1512-00501,0.00,960.00,R,Affinity Trust,No
Http://opendatacommunities.org/id/metropolitan-district-council/leeds,Leeds City Council as Accountable Body,31/12/2015,Social Services Pooled Budgets,Jcs For People With Learning Disabilitie,Third Party Payments,Home Care,568,11-Dec-2015,1512-00502,0.00,243.00,R,Affinity Trust,No
Http://opendatacommunities.org/id/metropolitan-district-council/leeds,Leeds City Council as Accountable Body,31/12/2015,Social Services Pooled Budgets,Jcs For People With Learning Disabilitie,Third Party Payments,Home Care,568,11-Dec-2015,1512-00503,0.00,191.76,R,Affinity Trust,No
Http://opendatacommunities.org/id/metropolitan-district-council/leeds,Leeds City Council as Accountable Body,31/12/2015,Social Services Pooled Budgets,Jcs For People With Learning Disabilitie,Third Party Payments,Day Centre,564,11-Dec-2015,1512-00504,0.00,416.64,R,Affinity Trust,No
Http://opendatacommunities.org/id/metropolitan-district-council/leeds,Leeds City Council as Accountable Body,31/12/2015,Social Services Pooled Budgets,Jcs For People With Learning Disabilitie,Third Party Payments,Home Care,568,11-Dec-2015,1512-00505,0.00,775.03,R,Affinity Trust,No
Http://opendatacommunities.org/id/metropolitan-district-council/leeds,Leeds City Council as Accountable Body,31/12/2015,Social Services Pooled Budgets,Jcs For People With Learning Disabilitie,Third Party Payments,Home Care,568,11-Dec-2015,1512-00506,0.00,1518.00,R,Affinity Trust,No
Http://opendatacommunities.org/id/metropolitan-district-council/leeds,Leeds City Council as Accountable Body,31/12/2015,Social Services Pooled Budgets,Jcs For People With Learning Disabilitie,Third Party Payments,Home Care,568,11-Dec-2015,1512-00507,0.00,1211.04,R,Affinity Trust,No
Http://opendatacommunities.org/id/metropolitan-district-council/leeds,Leeds City Council,31/12/2015,Adult Social Care,Services For Older People Under 65 P/Dis,Third Party Payments,Home Care,568,11-Dec-2015,1512-00508,0.00,134.56,R,Affinity Trust,No
Http://opendatacommunities.org/id/metropolitan-district-council/leeds,Leeds City Council as Accountable Body,31/12/2015,Social Services Pooled Budgets,Jcs For People With Learning Disabilitie,Third Party Payments,Home Care,568,11-Dec-2015,1512-00509,0.00,503.37,R,Affinity Trust,No
Http://opendatacommunities.org/id/metropolitan-district-council/leeds,Leeds City Council as Accountable Body,31/12/2015,Social Services Pooled Budgets,Jcs For People With Learning Disabilitie,Third Party Payments,Home Care,568,11-Dec-2015,1512-00510,0.00,1150.56,R,Affinity Trust,No
Http://opendatacommunities.org/id/metropolitan-district-council/leeds,Leeds City Council as Accountable Body,31/12/2015,Social Services Pooled Budgets,Jcs For People With Learning Disabilitie,Third Party Payments,Home Care,568,11-Dec-2015,1512-00511,0.00,511.36,R,Affinity Trust,No
Http://opendatacommunities.org/id/metropolitan-district-council/leeds,Leeds City Council as Accountable Body,31/12/2015,Social Services Pooled Budgets,Jcs For People With Learning Disabilitie,Third Party Payments,Home Care,568,11-Dec-2015,1512-00512,0.00,1677.90,R,Affinity Trust,No
Http://opendatacommunities.org/id/metropolitan-district-council/leeds,Leeds City Council as Accountable Body,31/12/2015,Social Services Pooled Budgets,Jcs For People With Learning Disabilitie,Third Party Payments,Home Care,568,11-Dec-2015,1512-00513,0.00,575.28,R,Affinity Trust,No
Http://opendatacommunities.org/id/metropolitan-district-council/leeds,Leeds City Council as Accountable Body,31/12/2015,Social Services Pooled Budgets,Jcs For People With Learning Disabilitie,Third Party Payments,Home Care,568,11-Dec-2015,1512-00514,0.00,639.20,R,Affinity Trust,No
Http://opendatacommunities.org/id/metropolitan-district-council/leeds,Leeds City Council as Accountable Body,31/12/2015,Social Services Pooled Budgets,Jcs For People With Learning Disabilitie,Third Party Payments,Home Care,568,11-Dec-2015,1512-00515,0.00,306.00,R,Affinity Trust,No
Http://opendatacommunities.org/id/metropolitan-district-council/leeds,Leeds City Council as Accountable Body,31/12/2015,Social Services Pooled Budgets,Jcs For People With Learning Disabilitie,Third Party Payments,Home Care,568,11-Dec-2015,1512-00516,0.00,1142.57,R,Affinity Trust,No
Http://opendatacommunities.org/id/metropolitan-district-council/leeds,Leeds City Council as Accountable Body,31/12/2015,Social Services Pooled Budgets,Jcs For People With Learning Disabilitie,Third Party Payments,Home Care,568,11-Dec-2015,1512-00517,0.00,2884.39,R,Affinity Trust,No
Http://opendatacommunities.org/id/metropolitan-district-council/leeds,Leeds City Council,31/12/2015,Adult Social Care,Services For Older People Under 65 P/Dis,Third Party Payments,Home Care,568,11-Dec-2015,1512-00518,0.00,302.76,R,Affinity Trust,No
Http://opendatacommunities.org/id/metropolitan-district-council/leeds,Leeds City Council as Accountable Body,31/12/2015,Social Services Pooled Budgets,Jcs For People With Learning Disabilitie,Third Party Payments,Home Care,568,11-Dec-2015,1512-00519,0.00,307.50,R,Affinity Trust,No
Http://opendatacommunities.org/id/metropolitan-district-council/leeds,Leeds City Council as Accountable Body,31/12/2015,Social Services Pooled Budgets,Jcs For People With Learning Disabilitie,Third Party Payments,Home Care,568,11-Dec-2015,1512-00520,0.00,894.88,R,Affinity Trust,No
Http://opendatacommunities.org/id/metropolitan-district-council/leeds,Leeds City Council as Accountable Body,31/12/2015,Social Services Pooled Budgets,Jcs For People With Learning Disabilitie,Third Party Payments,Home Care,568,11-Dec-2015,1512-00521,0.00,687.14,R,Affinity Trust,No
Http://opendatacommunities.org/id/metropolitan-district-council/leeds,Leeds City Council as Accountable Body,31/12/2015,Social Services Pooled Budgets,Jcs For People With Learning Disabilitie,Third Party Payments,Home Care,568,11-Dec-2015,1512-00522,0.00,511.36,R,Affinity Trust,No
Http://opendatacommunities.org/id/metropolitan-district-council/leeds,Leeds City Council as Accountable Body,31/12/2015,Social Services Pooled Budgets,Jcs For People With Learning Disabilitie,Third Party Payments,Home Care,568,11-Dec-2015,1512-00523,0.00,31.96,R,Affinity Trust,No
Http://opendatacommunities.org/id/metropolitan-district-council/leeds,Leeds City Council as Accountable Body,31/12/2015,Social Services Pooled Budgets,Jcs For People With Learning Disabilitie,Third Party Payments,Home Care,568,11-Dec-2015,1512-00524,0.00,204.32,R,Affinity Trust,No
Http://opendatacommunities.org/id/metropolitan-district-council/leeds,Leeds City Council as Accountable Body,31/12/2015,Social Services Pooled Budgets,Jcs For People With Learning Disabilitie,Third Party Payments,Home Care,568,11-Dec-2015,1512-00525,0.00,300.00,R,Affinity Trust,No
Http://opendatacommunities.org/id/metropolitan-district-council/leeds,Leeds City Council as Accountable Body,31/12/2015,Social Services Pooled Budgets,Jcs For People With Learning Disabilitie,Third Party Payments,Home Care,568,11-Dec-2015,1512-00526,0.00,941.92,R,Affinity Trust,No
Http://opendatacommunities.org/id/metropolitan-district-council/leeds,Leeds City Council as Accountable Body,31/12/2015,Social Services Pooled Budgets,Jcs For People With Learning Disabilitie,Third Party Payments,Home Care,568,11-Dec-2015,1512-00527,0.00,1148.48,R,Affinity Trust,No
Http://opendatacommunities.org/id/metropolitan-district-council/leeds,Leeds City Council as Accountable Body,31/12/2015,Social Services Pooled Budgets,Jcs For People With Learning Disabilitie,Third Party Payments,Home Care,568,11-Dec-2015,1512-00528,0.00,1999.98,R,Affinity Trust,No
Http://opendatacommunities.org/id/metropolitan-district-council/leeds,Leeds City Council as Accountable Body,31/12/2015,Social Services Pooled Budgets,Jcs For People With Learning Disabilitie,Third Party Payments,Day Centre,564,14-Dec-2015,1512-00529,0.00,2933.00,R,Affinity Trust,No
Http://opendatacommunities.org/id/metropolitan-district-council/leeds,Leeds City Council as Accountable Body,31/12/2015,Social Services Pooled Budgets,Jcs For People With Learning Disabilitie,Third Party Payments,Home Care,568,17-Dec-2015,1512-00530,0.00,-2095.00,R,Affinity Trust,No
Http://opendatacommunities.org/id/metropolitan-district-council/leeds,Leeds City Council as Accountable Body,31/12/2015,Social Services Pooled Budgets,Jcs For People With Learning Disabilitie,Third Party Payments,Day Centre,564,17-Dec-2015,1512-00531,0.00,1800.00,R,Affinity Trust,No
Http://opendatacommunities.org/id/metropolitan-district-council/leeds,Leeds City Council as Accountable Body,31/12/2015,Social Services Pooled Budgets,Jcs For People With Learning Disabilitie,Third Party Payments,Day Centre,564,17-Dec-2015,1512-00532,0.00,1080.00,R,Affinity Trust,No
Http://opendatacommunities.org/id/metropolitan-district-council/leeds,Leeds City Council as Accountable Body,31/12/2015,Social Services Pooled Budgets,Jcs For People With Learning Disabilitie,Third Party Payments,Home Care,568,18-Dec-2015,1512-00533,0.00,1206.72,R,Affinity Trust,No
Http://opendatacommunities.org/id/metropolitan-district-council/leeds,Leeds City Council as Accountable Body,31/12/2015,Social Services Pooled Budgets,Jcs For People With Learning Disabilitie,Third Party Payments,Home Care,568,18-Dec-2015,1512-00534,0.00,3441.00,R,Affinity Trust,No
Http://opendatacommunities.org/id/metropolitan-district-council/leeds,Leeds City Council,31/12/2015,Adult Social Care,Services For Older People Under 65 P/Dis,Third Party Payments,Home Care,568,23-Dec-2015,1512-00535,0.00,703.12,R,Affinity Trust,No
Http://opendatacommunities.org/id/metropolitan-district-council/leeds,Leeds City Council,31/12/2015,Adult Social Care,Services For Older People Under 65 P/Dis,Third Party Payments,Home Care,568,23-Dec-2015,1512-00536,0.00,303.62,R,Affinity Trust,No
Http://opendatacommunities.org/id/metropolitan-district-council/leeds,Leeds City Council,31/12/2015,Adult Social Care,Services For Older People Under 65 P/Dis,Third Party Payments,Home Care,568,23-Dec-2015,1512-00537,0.00,175.78,R,Affinity Trust,No
Http://opendatacommunities.org/id/metropolitan-district-council/leeds,Leeds City Council,31/12/2015,Adult Social Care,Services For Older People Under 65 P/Dis,Third Party Payments,Home Care,568,23-Dec-2015,1512-00538,0.00,2365.19,R,Affinity Trust,No
Http://opendatacommunities.org/id/metropolitan-district-council/leeds,Leeds City Council,31/12/2015,Adult Social Care,Services For Adults Under 65 Mental/Dis,Third Party Payments,Home Care,568,23-Dec-2015,1512-00539,0.00,319.60,R,Affinity Trust,No
Http://opendatacommunities.org/id/metropolitan-district-council/leeds,Leeds City Council,31/12/2015,Adult Social Care,Services For Adults Under 65 Mental/Dis,Third Party Payments,Home Care,568,23-Dec-2015,1512-00540,0.00,303.62,R,Affinity Trust,No
Http://opendatacommunities.org/id/metropolitan-district-council/leeds,Leeds City Council,31/12/2015,Adult Social Care,Services For Older People Under 65 P/Dis,Third Party Payments,Home Care,568,23-Dec-2015,1512-00541,0.00,198.00,R,Affinity Trust,No
Http://opendatacommunities.org/id/metropolitan-district-council/leeds,Leeds City Council,31/12/2015,Adult Social Care,Services For Older People Under 65 P/Dis,Third Party Payments,Home Care,568,23-Dec-2015,1512-00542,0.00,564.74,R,Affinity Trust,No
Http://opendatacommunities.org/id/metropolitan-district-council/leeds,Leeds City Council,31/12/2015,Adult Social Care,Services For Older People Under 65 P/Dis,Third Party Payments,Home Care,568,23-Dec-2015,1512-00543,0.00,767.04,R,Affinity Trust,No
Http://opendatacommunities.org/id/metropolitan-district-council/leeds,Leeds City Council,31/12/2015,Adult Social Care,Services For Older People - 65 And Over,Third Party Payments,Home Care,568,23-Dec-2015,1512-00544,0.00,1076.48,R,Affinity Trust,No
Http://opendatacommunities.org/id/metropolitan-district-council/leeds,Leeds City Council as Accountable Body,31/12/2015,Social Services Pooled Budgets,Jcs For People With Learning Disabilitie,Third Party Payments,Home Care,568,24-Dec-2015,1512-00545,0.00,360.00,R,Affinity Trust,No
Http://opendatacommunities.org/id/metropolitan-district-council/leeds,Leeds City Council,31/12/2015,Adult Social Care,Services For Older People Under 65 P/Dis,Third Party Payments,Sheltered Accommodation,569,16-Dec-2015,1512-00546,0.00,4895.00,R,Affinity Trust North Divisional Office,No
Http://opendatacommunities.org/id/metropolitan-district-council/leeds,Leeds City Council as Accountable Body,31/12/2015,Social Services Pooled Budgets,Jcs For People With Learning Disabilitie,Third Party Payments,Sheltered Accommodation,569,16-Dec-2015,1512-00547,0.00,123726.62,R,Affinity Trust North Divisional Office,No
Http://opendatacommunities.org/id/metropolitan-district-council/leeds,Leeds City Council as Accountable Body,31/12/2015,Social Services Pooled Budgets,Jcs For People With Learning Disabilitie,Third Party Payments,Residential,580,16-Dec-2015,1512-00548,0.00,15596.92,R,Affinity Trust North Divisional Office,No
Http://opendatacommunities.org/id/metropolitan-district-council/leeds,Leeds City Council,31/12/2015,Environment & Housing,Parks And Countryside ,Transport,Hire Of Movable Plant & Machinery,315,11-Nov-2015,1512-00549,0.00,7308.81,R,Afi Uplift Ltd,Yes
Http://opendatacommunities.org/id/metropolitan-district-council/leeds,Leeds City Council,31/12/2015,Environment & Housing,Parks and Countryside,Transport,Hire Of Movable Plant & Machinery,315,08-Dec-2015,1512-00550,0.00,525.00,R,Afi Uplift Ltd,No
Http://opendatacommunities.org/id/metropolitan-district-council/leeds,Leeds City Council,31/12/2015,Environment & Housing,Parks and Countryside,Transport,Hire Of Movable Plant & Machinery,315,08-Dec-2015,1512-00551,0.00,525.00,R,Afi Uplift Ltd,No
Http://opendatacommunities.org/id/metropolitan-district-council/leeds,Leeds City Council,31/12/2015,Environment & Housing,Parks and Countryside,Transport,Hire Of Movable Plant & Machinery,315,08-Dec-2015,1512-00552,0.00,525.00,R,Afi Uplift Ltd,No
Http://opendatacommunities.org/id/metropolitan-district-council/leeds,Leeds City Council,31/12/2015,Environment & Housing,Strategic Housing Support,Supplies and Services,Office Consumables,210,16-Dec-2015,1512-00553,0.00,445.07,R,Ag Channels,No
Http://opendatacommunities.org/id/metropolitan-district-council/leeds,Leeds City Council,31/12/2015,Environment & Housing,SP Contracts & SECC,Third Party Payments,Supporting Ppl - Block Gross Chargeable,514,24-Dec-2015,1512-00554,0.00,3957.68,R,Age Uk Leeds,No
Http://opendatacommunities.org/id/metropolitan-district-council/leeds,Leeds City Council,31/12/2015,Adult Social Care,Services For Older People - 65 And Over,Third Party Payments,Payments To Voluntary Organisations,561,31-Dec-2015,1512-00555,0.00,8025.00,R,Age Uk Leeds,No
Http://opendatacommunities.org/id/metropolitan-district-council/leeds,Leeds City Council,31/12/2015,Adult Social Care,Social Services Support Services,Employees,Training & Development,70,31-Dec-2015,1512-00556,0.00,425.00,R,Age Uk Training,No
Http://opendatacommunities.org/id/metropolitan-district-council/leeds,Leeds City Council,31/12/2015,City Development,Libraries  Arts & Heritage,Supplies and Services,Bought In Professional Services,277,11-Dec-2015,1512-00557,0.00,1500.00,R,Agere Learning,No
Http://opendatacommunities.org/id/metropolitan-district-council/leeds,Leeds City Council,31/12/2015,City Development,Libraries  Arts & Heritage,Supplies and Services,Other Hired And Contracted Services,265,18-Dec-2015,1512-00558,0.00,162.50,R,Agnis Smallwood,No
Http://opendatacommunities.org/id/metropolitan-district-council/leeds,Leeds City Council,31/12/2015,Adult Social Care,Services For Older People Under 65 P/Dis,Third Party Payments,Residential,580,16-Dec-2015,1512-00559,0.00,5598.40,R,Agricola House,No
Http://opendatacommunities.org/id/metropolitan-district-council/leeds,Leeds City Council,31/12/2015,Central & Corporate,Human Resources,Employees,Occupational Health,85,14-Dec-2015,1512-00560,0.00,100.00,R,Ahamad Hassan,No
Http://opendatacommunities.org/id/metropolitan-district-council/leeds,Leeds City Council,31/12/2015,Childrens Services,Safeguarding Targeted & Specialist,Transfer Payments,16 Plus Top Up Allowance,625,03-Dec-2015,1512-00561,0.00,20.00,R,REDACTED PERSONAL DATA,No
Http://opendatacommunities.org/id/metropolitan-district-council/leeds,Leeds City Council,31/12/2015,Childrens Services,Safeguarding Targeted & Specialist,Transfer Payments,16 Plus Top Up Allowance,625,14-Dec-2015,1512-00562,0.00,20.00,R,REDACTED PERSONAL DATA,No
Http://opendatacommunities.org/id/metropolitan-district-council/leeds,Leeds City Council as Accountable Body,31/12/2015,Social Services Pooled Budgets,Leeds Community Equip Store Pooled Budgt,Supplies and Services,Other Equipment,203,02-Dec-2015,1512-00563,0.00,1235.00,R,Aidapt Bathrooms Ltd,No
Http://opendatacommunities.org/id/metropolitan-district-council/leeds,Leeds City Council as Accountable Body,31/12/2015,Social Services Pooled Budgets,Leeds Community Equip Store Pooled Budgt,Supplies and Services,Other Equipment,203,02-Dec-2015,1512-00564,0.00,152.50,R,Aidapt Bathrooms Ltd,No
Http://opendatacommunities.org/id/metropolitan-district-council/leeds,Leeds City Council as Accountable Body,31/12/2015,Social Services Pooled Budgets,Leeds Community Equip Store Pooled Budgt,Supplies and Services,Other Equipment,203,04-Dec-2015,1512-00565,0.00,2200.00,R,Aidapt Bathrooms Ltd,No
Http://opendatacommunities.org/id/metropolitan-district-council/leeds,Leeds City Council as Accountable Body,31/12/2015,Social Services Pooled Budgets,Leeds Community Equip Store Pooled Budgt,Supplies and Services,Other Equipment,203,16-Dec-2015,1512-00566,0.00,2890.00,R,Aidapt Bathrooms Ltd,No
Http://opendatacommunities.org/id/metropolitan-district-council/leeds,Leeds City Council as Accountable Body,31/12/2015,Social Services Pooled Budgets,Leeds Community Equip Store Pooled Budgt,Supplies and Services,Other Equipment,203,18-Dec-2015,1512-00567,0.00,458.00,R,Aidapt Bathrooms Ltd,No
Http://opendatacommunities.org/id/metropolitan-district-council/leeds,Leeds City Council as Accountable Body,31/12/2015,Social Services Pooled Budgets,Leeds Community Equip Store Pooled Budgt,Supplies and Services,Other Equipment,203,24-Dec-2015,1512-00568,0.00,875.00,R,Aidapt Bathrooms Ltd,No
Http://opendatacommunities.org/id/metropolitan-district-council/leeds,Leeds City Council as Accountable Body,31/12/2015,Social Services Pooled Budgets,Leeds Community Equip Store Pooled Budgt,Supplies and Services,Other Equipment,203,30-Dec-2015,1512-00569,0.00,675.00,R,Aidapt Bathrooms Ltd,No
Http://opendatacommunities.org/id/metropolitan-district-council/leeds,Leeds City Council as Accountable Body,31/12/2015,Social Services Pooled Budgets,Leeds Community Equip Store Pooled Budgt,Supplies and Services,Other Equipment,203,30-Dec-2015,1512-00570,0.00,200.00,R,Aidapt Bathrooms Ltd,No
Http://opendatacommunities.org/id/metropolitan-district-council/leeds,Leeds City Council as Accountable Body,31/12/2015,Social Services Pooled Budgets,Leeds Community Equip Store Pooled Budgt,Supplies and Services,Other Equipment,203,30-Dec-2015,1512-00571,0.00,935.60,R,Aidapt Bathrooms Ltd,No
Http://opendatacommunities.org/id/metropolitan-district-council/leeds,Leeds City Council as Accountable Body,31/12/2015,Social Services Pooled Budgets,Leeds Community Equip Store Pooled Budgt,Supplies and Services,Other Equipment,203,30-Dec-2015,1512-00572,0.00,200.00,R,Aidapt Bathrooms Ltd,No
Http://opendatacommunities.org/id/metropolitan-district-council/leeds,Leeds City Council as Accountable Body,31/12/2015,Social Services Pooled Budgets,Leeds Community Equip Store Pooled Budgt,Supplies and Services,Other Equipment,203,31-Dec-2015,1512-00573,0.00,365.40,R,Aidapt Bathrooms Ltd,No
Http://opendatacommunities.org/id/metropolitan-district-council/leeds,Leeds City Council as Accountable Body,31/12/2015,Social Services Pooled Budgets,Jcs For People With Learning Disabilitie,Third Party Payments,Home Care,568,04-Dec-2015,1512-00574,0.00,54.90,R,Aid-Call Ltd,No
Http://opendatacommunities.org/id/metropolitan-district-council/leeds,Leeds City Council,31/12/2015,City Development,Asset Management Services,Capital,Other Costs,7,04-Dec-2015,1512-00575,0.00,4850.00,C,Aig Edenspiekermann Ltd,No
Http://opendatacommunities.org/id/metropolitan-district-council/leeds,Leeds City Council,31/12/2015,Insurance,Insurance,Supplies and Services,Insurance Claims,248,18-Dec-2015,1512-00576,0.00,2269.56,R,Aig Europe Ltd,No
Http://opendatacommunities.org/id/metropolitan-district-council/leeds,Leeds City Council,31/12/2015,Central & Corporate,Commercial Services Trading Services,Supplies and Services,Operational Materials,205,11-Dec-2015,1512-00577,0.00,80.50,R,Air Conditioning Accessories,No
Http://opendatacommunities.org/id/metropolitan-district-council/leeds,Leeds City Council,31/12/2015,Central & Corporate,Commercial Services Trading Services,Supplies and Services,Operational Materials,205,11-Dec-2015,1512-00578,0.00,422.46,R,Air Conditioning Accessories,No
Http://opendatacommunities.org/id/metropolitan-district-council/leeds,Leeds City Council,31/12/2015,Central & Corporate,Commercial Services Trading Services,Supplies and Services,Operational Materials,205,11-Dec-2015,1512-00579,0.00,24.69,R,Air Conditioning Accessories,No
Http://opendatacommunities.org/id/metropolitan-district-council/leeds,Leeds City Council,31/12/2015,Central & Corporate,Commercial Services Trading Services,Supplies and Services,Operational Materials,205,11-Dec-2015,1512-00580,0.00,61.78,R,Air Conditioning Accessories,No
Http://opendatacommunities.org/id/metropolitan-district-council/leeds,Leeds City Council,31/12/2015,Central & Corporate,Commercial Services Trading Services,Supplies and Services,Operational Materials,205,11-Dec-2015,1512-00581,0.00,41.10,R,Air Conditioning Accessories,No
Http://opendatacommunities.org/id/metropolitan-district-council/leeds,Leeds City Council,31/12/2015,Central & Corporate,Commercial Services Trading Services,Supplies and Services,Operational Materials,205,21-Dec-2015,1512-00582,0.00,49.10,R,Air Conditioning Accessories,No
Http://opendatacommunities.org/id/metropolitan-district-council/leeds,Leeds City Council,31/12/2015,Civic Enterprise Leeds,Commercial Services ,Supplies and Services,Operational Furniture And Equipment,203,02-Nov-2015,1512-00583,0.00,84.72,R,Air Force Pneumati,Yes
Http://opendatacommunities.org/id/metropolitan-district-council/leeds,Leeds City Council,31/12/2015,Civic Enterprise Leeds,Commercial Services ,Supplies and Services,Operational Materials,205,10-Nov-2015,1512-00584,0.00,7.00,R,Air Force Pneumati,Yes
Http://opendatacommunities.org/id/metropolitan-district-council/leeds,Leeds City Council,31/12/2015,Environment & Housing,Environmental Health,Supplies and Services,Other Hired And Contracted Services,265,02-Dec-2015,1512-00585,0.00,13.23,R,Air Liquide Uk,No
Http://opendatacommunities.org/id/metropolitan-district-council/leeds,Leeds City Council,31/12/2015,Environment & Housing,Environmental Health,Supplies and Services,Other Hired And Contracted Services,265,02-Dec-2015,1512-00586,0.00,13.23,R,Air Liquide Uk,No
Http://opendatacommunities.org/id/metropolitan-district-council/leeds,Leeds City Council,31/12/2015,Environment & Housing,Environmental Health,Supplies and Services,Other Hired And Contracted Services,265,02-Dec-2015,1512-00587,0.00,52.08,R,Air Liquide Uk,No
Http://opendatacommunities.org/id/metropolitan-district-council/leeds,Leeds City Council,31/12/2015,Central & Corporate,Commercial Services Trading Services,Supplies and Services,Operational Furniture And Equipment,203,31-Dec-2015,1512-00588,0.00,146.70,R,Air Liquide Uk,No
Http://opendatacommunities.org/id/metropolitan-district-council/leeds,Leeds City Council,31/12/2015,Environment & Housing,Environmental Health,Supplies and Services,Other Hired And Contracted Services,265,31-Dec-2015,1512-00589,0.00,13.23,R,Air Liquide Uk,No
Http://opendatacommunities.org/id/metropolitan-district-council/leeds,Leeds City Council,31/12/2015,Environment & Housing,Environmental Health,Supplies and Services,Other Hired And Contracted Services,265,31-Dec-2015,1512-00590,0.00,13.23,R,Air Liquide Uk,No
Http://opendatacommunities.org/id/metropolitan-district-council/leeds,Leeds City Council,31/12/2015,Environment & Housing,Environmental Health,Supplies and Services,Other Hired And Contracted Services,265,31-Dec-2015,1512-00591,0.00,52.08,R,Air Liquide Uk,No
Http://opendatacommunities.org/id/metropolitan-district-council/leeds,Leeds City Council as Accountable Body,31/12/2015,Social Services Pooled Budgets,Jcs For People With Learning Disabilitie,Third Party Payments,Residential,580,16-Dec-2015,1512-00592,0.00,9087.84,R,Aire House,No
Http://opendatacommunities.org/id/metropolitan-district-council/leeds,Leeds City Council,31/12/2015,City Development,Economic Development,Capital,Other Costs,7,16-Dec-2015,1512-00593,0.00,348441.91,C,Aire Valley Land Llp,No
Http://opendatacommunities.org/id/metropolitan-district-council/leeds,Leeds City Council,31/12/2015,City Development,Economic Development,Capital,Other Costs,7,21-Dec-2015,1512-00594,0.00,96928.05,C,Aire Valley Land Llp,No
Http://opendatacommunities.org/id/metropolitan-district-council/leeds,Leeds City Council,31/12/2015,Adult Social Care,Services For Older People - 65 And Over,Third Party Payments,Residential Care Dementia,571,16-Dec-2015,1512-00595,0.00,31895.88,R,Aire View Residential Home,No
Http://opendatacommunities.org/id/metropolitan-district-council/leeds,Leeds City Council,31/12/2015,Adult Social Care,Services For Older People - 65 And Over,Third Party Payments,Residential,580,16-Dec-2015,1512-00596,0.00,14842.57,R,Aire View Residential Home,No
Http://opendatacommunities.org/id/metropolitan-district-council/leeds,Leeds City Council,31/12/2015,Central & Corporate,Public Health,Third Party Payments,Public Health Commissioned Services,526,22-Dec-2015,1512-00597,0.00,3255.44,R,Aireborough Family Practice,No
Http://opendatacommunities.org/id/metropolitan-district-council/leeds,Leeds City Council,31/12/2015,Adult Social Care,Services For Older People - 65 And Over,Third Party Payments,Payments To Voluntary Organisations,561,31-Dec-2015,1512-00598,0.00,16560.00,R,Aireborough Voluntary Services,No
Http://opendatacommunities.org/id/metropolitan-district-council/leeds,Leeds City Council,31/12/2015,Adult Social Care,Services For Older People - 65 And Over,Third Party Payments,Residential Care Dementia,571,16-Dec-2015,1512-00599,0.00,1243.08,R,Airedale (Goldsborough),No
Http://opendatacommunities.org/id/metropolitan-district-council/leeds,Leeds City Council,31/12/2015,Adult Social Care,Services For Older People - 65 And Over,Third Party Payments,Residential,580,16-Dec-2015,1512-00600,0.00,18001.03,R,Airedale (Goldsborough),No
Http://opendatacommunities.org/id/metropolitan-district-council/leeds,Leeds City Council,31/12/2015,Adult Social Care,Services For Older People Under 65 P/Dis,Third Party Payments,Residential,580,16-Dec-2015,1512-00601,0.00,1859.68,R,Airedale (Goldsborough),No
Http://opendatacommunities.org/id/metropolitan-district-council/leeds,Leeds City Council as Accountable Body,31/12/2015,Social Services Pooled Budgets,Jcs For People With Learning Disabilitie,Third Party Payments,Residential,580,16-Dec-2015,1512-00602,0.00,1226.80,R,Airedale (Goldsborough),No
Http://opendatacommunities.org/id/metropolitan-district-council/leeds,Leeds City Council,31/12/2015,Civic Enterprise Leeds,Commercial Services,Supplies and Services,Operational Furniture And Equipment,203,10-Dec-2015,1512-00603,0.00,1495.00,R,Airedale Catering Equipment Ltd,No
Http://opendatacommunities.org/id/metropolitan-district-council/leeds,Leeds City Council,31/12/2015,Civic Enterprise Leeds,Commercial Services,Supplies and Services,Other Hired And Contracted Services,265,24-Dec-2015,1512-00604,0.00,225.00,R,Air-Weigh Europe Limited,No
Http://opendatacommunities.org/id/metropolitan-district-council/leeds,Leeds City Council,31/12/2015,Adult Social Care,Services For Adults Under 65 Mental/Dis,Third Party Payments,Services Provided By Other NHS Bodies,522,01-Dec-2015,1512-00605,0.00,175.00,R,Ait Mitra,No
Http://opendatacommunities.org/id/metropolitan-district-council/leeds,Leeds City Council,31/12/2015,Adult Social Care,Services For Adults Under 65 Mental/Dis,Third Party Payments,Services Provided By Other NHS Bodies,522,01-Dec-2015,1512-00606,0.00,175.00,R,Ait Mitra,No
Http://opendatacommunities.org/id/metropolitan-district-council/leeds,Leeds City Council,31/12/2015,Adult Social Care,Services For Adults Under 65 Mental/Dis,Third Party Payments,Services Provided By Other NHS Bodies,522,02-Dec-2015,1512-00607,0.00,175.00,R,Ait Mitra,No
Http://opendatacommunities.org/id/metropolitan-district-council/leeds,Leeds City Council,31/12/2015,Adult Social Care,Services For Adults Under 65 Mental/Dis,Third Party Payments,Services Provided By Other NHS Bodies,522,02-Dec-2015,1512-00608,0.00,175.00,R,Ait Mitra,No
Http://opendatacommunities.org/id/metropolitan-district-council/leeds,Leeds City Council,31/12/2015,Adult Social Care,Services For Adults Under 65 Mental/Dis,Third Party Payments,Services Provided By Other NHS Bodies,522,02-Dec-2015,1512-00609,0.00,175.00,R,Ait Mitra,No
Http://opendatacommunities.org/id/metropolitan-district-council/leeds,Leeds City Council,31/12/2015,Adult Social Care,Services For Adults Under 65 Mental/Dis,Third Party Payments,Services Provided By Other NHS Bodies,522,09-Dec-2015,1512-00610,0.00,175.00,R,Ait Mitra,No
Http://opendatacommunities.org/id/metropolitan-district-council/leeds,Leeds City Council,31/12/2015,Adult Social Care,Services For Adults Under 65 Mental/Dis,Third Party Payments,Services Provided By Other NHS Bodies,522,09-Dec-2015,1512-00611,0.00,175.00,R,Ait Mitra,No
Http://opendatacommunities.org/id/metropolitan-district-council/leeds,Leeds City Council,31/12/2015,Adult Social Care,Services For Adults Under 65 Mental/Dis,Third Party Payments,Services Provided By Other NHS Bodies,522,09-Dec-2015,1512-00612,0.00,175.00,R,Ait Mitra,No
Http://opendatacommunities.org/id/metropolitan-district-council/leeds,Leeds City Council,31/12/2015,Adult Social Care,Services For Adults Under 65 Mental/Dis,Third Party Payments,Services Provided By Other NHS Bodies,522,09-Dec-2015,1512-00613,0.00,175.00,R,Ait Mitra,No
Http://opendatacommunities.org/id/metropolitan-district-council/leeds,Leeds City Council,31/12/2015,Adult Social Care,Services For Adults Under 65 Mental/Dis,Third Party Payments,Services Provided By Other NHS Bodies,522,09-Dec-2015,1512-00614,0.00,175.00,R,Ait Mitra,No
Http://opendatacommunities.org/id/metropolitan-district-council/leeds,Leeds City Council,31/12/2015,Adult Social Care,Services For Adults Under 65 Mental/Dis,Third Party Payments,Services Provided By Other NHS Bodies,522,11-Dec-2015,1512-00615,0.00,175.00,R,Ait Mitra,No
Http://opendatacommunities.org/id/metropolitan-district-council/leeds,Leeds City Council,31/12/2015,Adult Social Care,Services For Adults Under 65 Mental/Dis,Third Party Payments,Services Provided By Other NHS Bodies,522,11-Dec-2015,1512-00616,0.00,175.00,R,Ait Mitra,No
Http://opendatacommunities.org/id/metropolitan-district-council/leeds,Leeds City Council,31/12/2015,Adult Social Care,Services For Adults Under 65 Mental/Dis,Third Party Payments,Services Provided By Other NHS Bodies,522,11-Dec-2015,1512-00617,0.00,175.00,R,Ait Mitra,No
Http://opendatacommunities.org/id/metropolitan-district-council/leeds,Leeds City Council,31/12/2015,Adult Social Care,Services For Adults Under 65 Mental/Dis,Third Party Payments,Services Provided By Other NHS Bodies,522,11-Dec-2015,1512-00618,0.00,175.00,R,Ait Mitra,No
Http://opendatacommunities.org/id/metropolitan-district-council/leeds,Leeds City Council,31/12/2015,Adult Social Care,Services For Adults Under 65 Mental/Dis,Third Party Payments,Services Provided By Other NHS Bodies,522,11-Dec-2015,1512-00619,0.00,175.00,R,Ait Mitra,No
Http://opendatacommunities.org/id/metropolitan-district-council/leeds,Leeds City Council,31/12/2015,Adult Social Care,Services For Adults Under 65 Mental/Dis,Third Party Payments,Services Provided By Other NHS Bodies,522,11-Dec-2015,1512-00620,0.00,175.00,R,Ait Mitra,No
Http://opendatacommunities.org/id/metropolitan-district-council/leeds,Leeds City Council,31/12/2015,Adult Social Care,Services For Adults Under 65 Mental/Dis,Third Party Payments,Services Provided By Other NHS Bodies,522,11-Dec-2015,1512-00621,0.00,175.00,R,Ait Mitra,No
Http://opendatacommunities.org/id/metropolitan-district-council/leeds,Leeds City Council,31/12/2015,Adult Social Care,Services For Adults Under 65 Mental/Dis,Third Party Payments,Services Provided By Other NHS Bodies,522,23-Dec-2015,1512-00622,0.00,175.00,R,Ait Mitra,No
Http://opendatacommunities.org/id/metropolitan-district-council/leeds,Leeds City Council,31/12/2015,Adult Social Care,Services For Adults Under 65 Mental/Dis,Third Party Payments,Services Provided By Other NHS Bodies,522,23-Dec-2015,1512-00623,0.00,175.00,R,Ait Mitra,No
Http://opendatacommunities.org/id/metropolitan-district-council/leeds,Leeds City Council,31/12/2015,Adult Social Care,Services For Adults Under 65 Mental/Dis,Third Party Payments,Services Provided By Other NHS Bodies,522,23-Dec-2015,1512-00624,0.00,175.00,R,Ait Mitra,No
Http://opendatacommunities.org/id/metropolitan-district-council/leeds,Leeds City Council,31/12/2015,Adult Social Care,Services For Adults Under 65 Mental/Dis,Third Party Payments,Fees - Level 4,520,31-Dec-2015,1512-00625,0.00,175.00,R,Ait Mitra,No
Http://opendatacommunities.org/id/metropolitan-district-council/leeds,Leeds City Council as Accountable Body,31/12/2015,Social Services Pooled Budgets,Jcs For People With Learning Disabilitie,Third Party Payments,Residential,580,16-Dec-2015,1512-00626,0.00,6173.24,R,Aitch Care Homes,No
Http://opendatacommunities.org/id/metropolitan-district-council/leeds,Leeds City Council,31/12/2015,Environment & Housing,Parks and Countryside,Supplies and Services,Operational Materials,205,04-Dec-2015,1512-00627,0.00,590.18,R,Aitkens Sportsturf Ltd,No
Http://opendatacommunities.org/id/metropolitan-district-council/leeds,Leeds City Council,31/12/2015,Environment & Housing,Parks and Countryside,Supplies and Services,Operational Materials,205,08-Dec-2015,1512-00628,0.00,55.00,R,Aitkens Sportsturf Ltd,No
Http://opendatacommunities.org/id/metropolitan-district-council/leeds,Leeds City Council,31/12/2015,Adult Social Care,Services For Older People - 65 And Over,Third Party Payments,Home Care,568,11-Dec-2015,1512-00629,0.00,16568.70,R,Aj Social Care,No
Http://opendatacommunities.org/id/metropolitan-district-council/leeds,Leeds City Council,31/12/2015,Adult Social Care,Services For Older People Under 65 P/Dis,Third Party Payments,Home Care,568,11-Dec-2015,1512-00630,0.00,9425.99,R,Aj Social Care,No
Http://opendatacommunities.org/id/metropolitan-district-council/leeds,Leeds City Council,31/12/2015,Adult Social Care,Services For Older People - 65 And Over,Third Party Payments,Home Care,568,21-Dec-2015,1512-00631,0.00,16541.93,R,Aj Social Care,No
Http://opendatacommunities.org/id/metropolitan-district-council/leeds,Leeds City Council,31/12/2015,Adult Social Care,Services For Older People Under 65 P/Dis,Third Party Payments,Home Care,568,21-Dec-2015,1512-00632,0.00,10236.80,R,Aj Social Care,No
Http://opendatacommunities.org/id/metropolitan-district-council/leeds,Leeds City Council,31/12/2015,Central & Corporate,Commercial Services Trading Services,Supplies and Services,Operational Materials,205,04-Dec-2015,1512-00633,0.00,71.80,R,Ajm Fixings & Power Tools Ltd,No
Http://opendatacommunities.org/id/metropolitan-district-council/leeds,Leeds City Council,31/12/2015,Environment & Housing,Leeds Building Services,Supplies and Services,Operational Furniture And Equipment,203,09-Dec-2015,1512-00634,0.00,43.00,R,Ajm Fixings & Power Tools Ltd,No
Http://opendatacommunities.org/id/metropolitan-district-council/leeds,Leeds City Council,31/12/2015,Environment & Housing,Leeds Building Services,Supplies and Services,Stores - Central And Other Depots,005,14-Dec-2015,1512-00635,0.00,1214.17,R,Ajm Fixings & Power Tools Ltd,No
Http://opendatacommunities.org/id/metropolitan-district-council/leeds,Leeds City Council,31/12/2015,Environment & Housing,Leeds Building Services,Supplies and Services,Stores - Central And Other Depots,005,22-Dec-2015,1512-00636,0.00,64.00,R,Ajm Fixings & Power Tools Ltd,No
Http://opendatacommunities.org/id/metropolitan-district-council/leeds,Leeds City Council,31/12/2015,Environment & Housing,Leeds Building Services,Supplies and Services,Operational Furniture And Equipment,203,24-Dec-2015,1512-00637,0.00,19.57,R,Ajm Fixings & Power Tools Ltd,No
Http://opendatacommunities.org/id/metropolitan-district-council/leeds,Leeds City Council,31/12/2015,Central & Corporate,Commercial Services Trading Services,Supplies and Services,Operational Furniture And Equipment,203,24-Dec-2015,1512-00638,0.00,178.32,R,Ajm Fixings & Power Tools Ltd,No
Http://opendatacommunities.org/id/metropolitan-district-council/leeds,Leeds City Council,31/12/2015,Environment & Housing,Leeds Building Services,Supplies and Services,Stores - Central And Other Depots,005,24-Dec-2015,1512-00639,0.00,180.07,R,Ajm Fixings & Power Tools Ltd,No
Http://opendatacommunities.org/id/metropolitan-district-council/leeds,Leeds City Council,31/12/2015,Central & Corporate,Commercial Services Trading Services,Supplies and Services,Operational Furniture And Equipment,203,24-Dec-2015,1512-00640,0.00,285.00,R,Ajm Fixings & Power Tools Ltd,No
Http://opendatacommunities.org/id/metropolitan-district-council/leeds,Leeds City Council,31/12/2015,Central & Corporate,Commercial Services Trading Services,Supplies and Services,Operational Furniture And Equipment,203,24-Dec-2015,1512-00641,0.00,429.45,R,Ajm Fixings & Power Tools Ltd,No
Http://opendatacommunities.org/id/metropolitan-district-council/leeds,Leeds City Council,31/12/2015,Central & Corporate,Commercial Services Trading Services,Supplies and Services,Operational Furniture And Equipment,203,24-Dec-2015,1512-00642,0.00,122.85,R,Ajm Fixings & Power Tools Ltd,No
Http://opendatacommunities.org/id/metropolitan-district-council/leeds,Leeds City Council,31/12/2015,Adult Social Care,Services For Older People - 65 And Over,Third Party Payments,Nursing Home,570,16-Dec-2015,1512-00643,0.00,1279.08,R,Akari Care Ltd,No
Http://opendatacommunities.org/id/metropolitan-district-council/leeds,Leeds City Council,31/12/2015,Childrens Services,Safeguarding Targeted & Specialist,Third Party Payments,Placement Support,550,21-Dec-2015,1512-00644,0.00,40052.00,R,Akb Loft Conversions Specialists Ltd,No
Http://opendatacommunities.org/id/metropolitan-district-council/leeds,Leeds City Council,31/12/2015,Citizens and Communities,Communities,Supplies and Services,'Well Being' Large Grants Projects,230,09-Dec-2015,1512-00645,0.00,1700.00,R,Al Haqq Supplementary School,No
Http://opendatacommunities.org/id/metropolitan-district-council/leeds,Leeds City Council,31/12/2015,Strategic Accounts,Miscellaneous,Supplies and Services,Non-Recurring Grants,227,07-Dec-2015,1512-00646,0.00,100.00,R,Al Khidmat Centre,No
Http://opendatacommunities.org/id/metropolitan-district-council/leeds,Leeds City Council,31/12/2015,Strategic Accounts,Miscellaneous,Supplies and Services,Non-Recurring Grants,227,21-Dec-2015,1512-00647,0.00,500.00,R,Al Khidmat Centre,No
Http://opendatacommunities.org/id/metropolitan-district-council/leeds,Leeds City Council,31/12/2015,Adult Social Care,Services For Older People - 65 And Over,Third Party Payments,Payments To Voluntary Organisations,561,31-Dec-2015,1512-00648,0.00,3000.00,R,Al Khidmat Centre,No
Http://opendatacommunities.org/id/metropolitan-district-council/leeds,Leeds City Council,31/12/2015,Childrens Services,Safeguarding Targeted & Specialist ,Transfer Payments,Leaving Care Grants,635,18-Nov-2015,1512-00649,0.00,40.46,R,Al Murad Diy Ltd,Yes
Http://opendatacommunities.org/id/metropolitan-district-council/leeds,Leeds City Council,31/12/2015,Childrens Services,Safeguarding Targeted & Specialist ,Transfer Payments,Leaving Care Grants,635,26-Nov-2015,1512-00650,0.00,24.96,R,Al Murad Diy Ltd,Yes
Http://opendatacommunities.org/id/metropolitan-district-council/leeds,Leeds City Council,31/12/2015,City Development,Economic Development,Supplies and Services,Publication And Promotion,267,24-Dec-2015,1512-00651,0.00,708.33,R,Alan Brown Flowers,No
Http://opendatacommunities.org/id/metropolitan-district-council/leeds,Leeds City Council,31/12/2015,City Development,Asset Management Services,Support Services,Legal Disbursements,411,11-Dec-2015,1512-00652,0.00,750.00,R,Alan Evans,No
Http://opendatacommunities.org/id/metropolitan-district-council/leeds,Leeds City Council,31/12/2015,Childrens Services,Learning Skills & Universal,Supplies and Services,Bought In Professional Services,277,04-Dec-2015,1512-00653,0.00,600.00,R,REDACTED PERSONAL DATA,No
Http://opendatacommunities.org/id/metropolitan-district-council/leeds,Leeds City Council,31/12/2015,Childrens Services,Learning Skills & Universal,Supplies and Services,Teaching Materials,202,30-Dec-2015,1512-00654,0.00,33.20,R,Alan Peat Ltd,No
Http://opendatacommunities.org/id/metropolitan-district-council/leeds,Leeds City Council,31/12/2015,Childrens Services,Safeguarding Targeted & Specialist,Support Services,Legal Disbursements,411,31-Dec-2015,1512-00655,0.00,90.00,R,Alan Sprigg,No
Http://opendatacommunities.org/id/metropolitan-district-council/leeds,Leeds City Council,31/12/2015,Environment & Housing,Waste Management,Transport,Repair & Maintenance of  Plant,342,11-Dec-2015,1512-00656,0.00,297.00,R,Alan Thompson Transport,No
Http://opendatacommunities.org/id/metropolitan-district-council/leeds,Leeds City Council,31/12/2015,Environment & Housing,Waste Management,Transport,Repair & Maintenance of  Plant,342,30-Dec-2015,1512-00657,0.00,1560.00,R,Alan Thompson Transport,No
Http://opendatacommunities.org/id/metropolitan-district-council/leeds,Leeds City Council,31/12/2015,Childrens Services,Learning Skills & Universal,Third Party Payments,Services Rendered By Other Organisations,511,04-Dec-2015,1512-00658,0.00,611.10,R,Alanna Cardiss,No
Http://opendatacommunities.org/id/metropolitan-district-council/leeds,Leeds City Council,31/12/2015,Citizens and Communities,Customer Access,Supplies and Services,Other Hired And Contracted Services,265,04-Dec-2015,1512-00659,0.00,74.50,R,Alazar Araya,No
Http://opendatacommunities.org/id/metropolitan-district-council/leeds,Leeds City Council,31/12/2015,Civic Enterprise Leeds,Commercial Services ,Supplies and Services,Operational Materials,205,13-Nov-2015,1512-00660,0.00,148.75,R,Albert Haywood & Son L,Yes
Http://opendatacommunities.org/id/metropolitan-district-council/leeds,Leeds City Council,31/12/2015,Civic Enterprise Leeds,Commercial Services,Transport,Vehicle Spares,345,31-Dec-2015,1512-00661,0.00,97.22,R,Albert Jagger Limited,No
Http://opendatacommunities.org/id/metropolitan-district-council/leeds,Leeds City Council,31/12/2015,City Development,Economic Development,Supplies and Services,Other Hired And Contracted Services,265,17-Dec-2015,1512-00662,0.00,11970.00,R,Alcium Software Ltd,No
Http://opendatacommunities.org/id/metropolitan-district-council/leeds,Leeds City Council,31/12/2015,Environment & Housing,Waste Management,Supplies and Services,Other Hired And Contracted Services,265,11-Dec-2015,1512-00663,0.00,171.00,R,Alcontrol Uk Ltd,No
Http://opendatacommunities.org/id/metropolitan-district-council/leeds,Leeds City Council,31/12/2015,Environment & Housing,Environmental Health,Supplies and Services,Other Hired And Contracted Services,265,24-Dec-2015,1512-00664,0.00,326.87,R,Alcontrol Uk Ltd,No
Http://opendatacommunities.org/id/metropolitan-district-council/leeds,Leeds City Council,31/12/2015,Environment & Housing,Waste Management,Supplies and Services,Other Hired And Contracted Services,265,31-Dec-2015,1512-00665,0.00,330.40,R,Alcontrol Uk Ltd,No
Http://opendatacommunities.org/id/metropolitan-district-council/leeds,Leeds City Council,31/12/2015,City Development,Libraries  Arts & Heritage ,Supplies and Services,Food & Drink,231,10-Nov-2015,1512-00666,0.00,15.38,R,Aldi,Yes
Http://opendatacommunities.org/id/metropolitan-district-council/leeds,Leeds City Council,31/12/2015,City Development,Libraries  Arts & Heritage,Supplies and Services,Other Hired And Contracted Services,265,16-Dec-2015,1512-00667,0.00,560.80,R,Alec Williams,No
Http://opendatacommunities.org/id/metropolitan-district-council/leeds,Leeds City Council,31/12/2015,Childrens Services,Safeguarding Targeted & Specialist,Support Services,Legal Disbursements,411,18-Dec-2015,1512-00668,0.00,393.00,R,Alex Taylor,No
Http://opendatacommunities.org/id/metropolitan-district-council/leeds,Leeds City Council,31/12/2015,Childrens Services,Safeguarding Targeted & Specialist,Support Services,Legal Disbursements,411,24-Dec-2015,1512-00669,0.00,315.88,R,Alex Taylor,No
Http://opendatacommunities.org/id/metropolitan-district-council/leeds,Leeds City Council,31/12/2015,Childrens Services,Safeguarding Targeted & Specialist,Support Services,Legal Disbursements,411,31-Dec-2015,1512-00670,0.00,285.00,R,Alex Taylor,No
Http://opendatacommunities.org/id/metropolitan-district-council/leeds,Leeds City Council,31/12/2015,Childrens Services,Safeguarding Targeted & Specialist,Support Services,Legal Disbursements,411,31-Dec-2015,1512-00671,0.00,523.00,R,Alex Taylor,No
Http://opendatacommunities.org/id/metropolitan-district-council/leeds,Leeds City Council,31/12/2015,City Development,Libraries  Arts & Heritage,Supplies and Services,Other Hired And Contracted Services,265,30-Dec-2015,1512-00672,0.00,200.00,R,REDACTED PERSONAL DATA,No
Http://opendatacommunities.org/id/metropolitan-district-council/leeds,Leeds City Council,31/12/2015,Adult Social Care,Services For Older People - 65 And Over,Third Party Payments,Residential Care Dementia,571,16-Dec-2015,1512-00673,0.00,9661.44,R,Alexander Residential Home,No
Http://opendatacommunities.org/id/metropolitan-district-council/leeds,Leeds City Council,31/12/2015,Adult Social Care,Services For Older People - 65 And Over,Third Party Payments,Residential,580,16-Dec-2015,1512-00674,0.00,11311.60,R,Alexander Residential Home,No
Http://opendatacommunities.org/id/metropolitan-district-council/leeds,Leeds City Council,31/12/2015,Adult Social Care,Services For Older People Under 65 P/Dis,Third Party Payments,Residential Care Dementia,571,16-Dec-2015,1512-00675,0.00,0.00,R,Alexander Residential Home,No
Http://opendatacommunities.org/id/metropolitan-district-council/leeds,Leeds City Council,31/12/2015,Adult Social Care,Services For Older People Under 65 P/Dis,Third Party Payments,Residential,580,16-Dec-2015,1512-00676,0.00,2424.24,R,Alexander Residential Home,No
Http://opendatacommunities.org/id/metropolitan-district-council/leeds,Leeds City Council,31/12/2015,Citizens and Communities,Customer Access,Supplies and Services,Other Hired And Contracted Services,265,04-Dec-2015,1512-00677,0.00,447.50,R,Alexandra Costenco,No
Http://opendatacommunities.org/id/metropolitan-district-council/leeds,Leeds City Council,31/12/2015,Citizens and Communities,Customer Access,Supplies and Services,Other Hired And Contracted Services,265,22-Dec-2015,1512-00678,0.00,276.00,R,Alexandra Costenco,No
Http://opendatacommunities.org/id/metropolitan-district-council/leeds,Leeds City Council,31/12/2015,Adult Social Care,Services For Older People - 65 And Over,Third Party Payments,Residential Care Dementia,571,16-Dec-2015,1512-00679,0.00,1285.20,R,Alexandra Court,No
Http://opendatacommunities.org/id/metropolitan-district-council/leeds,Leeds City Council,31/12/2015,Adult Social Care,Services For Older People - 65 And Over,Third Party Payments,Residential,580,16-Dec-2015,1512-00680,0.00,15995.20,R,Alexandra Court,No
Http://opendatacommunities.org/id/metropolitan-district-council/leeds,Leeds City Council,31/12/2015,Citizens and Communities,Customer Access,Supplies and Services,Other Hired And Contracted Services,265,04-Dec-2015,1512-00681,0.00,1110.00,R,Alexandra Hirst,No
Http://opendatacommunities.org/id/metropolitan-district-council/leeds,Leeds City Council,31/12/2015,Citizens and Communities,Customer Access,Supplies and Services,Other Hired And Contracted Services,265,22-Dec-2015,1512-00682,0.00,660.25,R,Alexandra Hirst,No
Http://opendatacommunities.org/id/metropolitan-district-council/leeds,Leeds City Council,31/12/2015,Childrens Services,Learning Skills & Universal,Third Party Payments,Services Rendered By Other Organisations,511,04-Dec-2015,1512-00683,0.00,116.40,R,Alexandra Leigh,No
Http://opendatacommunities.org/id/metropolitan-district-council/leeds,Leeds City Council,31/12/2015,Civic Enterprise Leeds,Commercial Services,Supplies and Services,Other Hired And Contracted Services,265,23-Dec-2015,1512-00684,0.00,123.12,R,Alfa Tail Lifts Limited,No
Http://opendatacommunities.org/id/metropolitan-district-council/leeds,Leeds City Council,31/12/2015,Central & Corporate,Commercial Services Trading Services,Supplies and Services,Other Hired And Contracted Services,265,04-Dec-2015,1512-00685,0.00,3212.07,R,Alfred Bagnall & Sons (Leeds) Ltd,No
Http://opendatacommunities.org/id/metropolitan-district-council/leeds,Leeds City Council,31/12/2015,Adult Social Care,Services For Older People - 65 And Over,Supplies and Services,Operational Furniture And Equipment,203,11-Dec-2015,1512-00686,0.00,7200.00,R,Alfred Bagnall & Sons (Leeds) Ltd,No
Http://opendatacommunities.org/id/metropolitan-district-council/leeds,Leeds City Council,31/12/2015,City Development,Libraries  Arts & Heritage,Supplies and Services,Other Hired And Contracted Services,265,24-Dec-2015,1512-00687,0.00,3000.00,R,Alfred Bagnall & Sons (Leeds) Ltd,No
Http://opendatacommunities.org/id/metropolitan-district-council/leeds,Leeds City Council,31/12/2015,Civic Enterprise Leeds,Corporate Property Management,Capital,Construction,3,24-Dec-2015,1512-00688,0.00,6000.00,C,Alfred Bagnall & Sons (Leeds) Ltd,No
Http://opendatacommunities.org/id/metropolitan-district-council/leeds,Leeds City Council,31/12/2015,Central & Corporate,Commercial Services Trading Services,Supplies and Services,Other Hired And Contracted Services,265,24-Dec-2015,1512-00689,0.00,10686.40,R,Alfred Bagnall & Sons (Leeds) Ltd,No
Http://opendatacommunities.org/id/metropolitan-district-council/leeds,Leeds City Council,31/12/2015,City Development,Libraries  Arts & Heritage,Premises,Maintenance Of Buildings,101,30-Dec-2015,1512-00690,0.00,7680.00,R,Alfred Bagnall & Sons (Leeds) Ltd,No
Http://opendatacommunities.org/id/metropolitan-district-council/leeds,Leeds City Council,31/12/2015,Central & Corporate,Commercial Services Trading Services,Supplies and Services,Other Hired And Contracted Services,265,31-Dec-2015,1512-00691,0.00,350.00,R,Alfred Bagnall & Sons (Leeds) Ltd,No
Http://opendatacommunities.org/id/metropolitan-district-council/leeds,Leeds City Council,31/12/2015,Childrens Services,Learning Skills & Universal,Third Party Payments,Services Rendered By Other Organisations,511,04-Dec-2015,1512-00692,0.00,582.00,R,Alison Brook,No
Http://opendatacommunities.org/id/metropolitan-district-council/leeds,Leeds City Council,31/12/2015,City Development,Libraries  Arts & Heritage,Supplies and Services,Other Hired And Contracted Services,265,24-Dec-2015,1512-00693,0.00,625.00,R,Alison Mcglynn,No
Http://opendatacommunities.org/id/metropolitan-district-council/leeds,Leeds City Council,31/12/2015,Childrens Services,Safeguarding Targeted & Specialist,Transfer Payments,Leaving Care Allowances,634,10-Dec-2015,1512-00694,0.00,45.00,R,All Abode,No
Http://opendatacommunities.org/id/metropolitan-district-council/leeds,Leeds City Council,31/12/2015,Childrens Services,Learning Skills & Universal,Third Party Payments,Services Rendered By Other Organisations,511,04-Dec-2015,1512-00695,0.00,1697.50,R,All Stars Childcare,No
Http://opendatacommunities.org/id/metropolitan-district-council/leeds,Leeds City Council,31/12/2015,Childrens Services,Learning Skills & Universal,Third Party Payments,Services Rendered By Other Organisations,511,11-Dec-2015,1512-00696,0.00,3648.00,R,All Stars Childcare,No
Http://opendatacommunities.org/id/metropolitan-district-council/leeds,Leeds City Council,31/12/2015,City Development,Libraries  Arts & Heritage,Supplies and Services,Hospitality,255,09-Dec-2015,1512-00697,0.00,-147.00,R,Allan Beavis,No
Http://opendatacommunities.org/id/metropolitan-district-council/leeds,Leeds City Council,31/12/2015,City Development,Libraries  Arts & Heritage,Income,Admissions  Booking Fees & Ticket Sales,933,09-Dec-2015,1512-00698,0.00,16141.05,R,Allan Beavis,No
Http://opendatacommunities.org/id/metropolitan-district-council/leeds,Leeds City Council,31/12/2015,City Development,Libraries  Arts & Heritage,Income,Service Charges & Security Fees,938,09-Dec-2015,1512-00699,0.00,-814.70,R,Allan Beavis,No
Http://opendatacommunities.org/id/metropolitan-district-council/leeds,Leeds City Council,31/12/2015,City Development,Libraries  Arts & Heritage,Income,Income from Hire Of Rooms & Equipment,956,09-Dec-2015,1512-00700,0.00,-2260.00,R,Allan Beavis,No
Http://opendatacommunities.org/id/metropolitan-district-council/leeds,Leeds City Council,31/12/2015,City Development,Libraries  Arts & Heritage,Income,Advertising,969,09-Dec-2015,1512-00701,0.00,-500.00,R,Allan Beavis,No
Http://opendatacommunities.org/id/metropolitan-district-council/leeds,Leeds City Council,31/12/2015,City Development,Libraries  Arts & Heritage,Income,Other Income,973,09-Dec-2015,1512-00702,0.00,-717.38,R,Allan Beavis,No
Http://opendatacommunities.org/id/metropolitan-district-council/leeds,Leeds City Council,31/12/2015,Insurance,Insurance,Supplies and Services,Insurance Claims,248,23-Dec-2015,1512-00703,0.00,85.00,R,REDACTED PERSONAL DATA,No
Http://opendatacommunities.org/id/metropolitan-district-council/leeds,Leeds City Council,31/12/2015,Civic Enterprise Leeds,Commercial Services ,Premises,Maintenance Of Buildings,101,26-Nov-2015,1512-00704,0.00,285.00,R,Allans Sound Commu,Yes
Http://opendatacommunities.org/id/metropolitan-district-council/leeds,Leeds City Council,31/12/2015,Adult Social Care,Services For Older People - 65 And Over,Third Party Payments,Sheltered Accommodation,569,16-Dec-2015,1512-00705,0.00,4347.52,R,Allerton Avenue,No
Http://opendatacommunities.org/id/metropolitan-district-council/leeds,Leeds City Council as Accountable Body,31/12/2015,Social Services Pooled Budgets,Jcs For People With Learning Disabilitie,Third Party Payments,Sheltered Accommodation,569,16-Dec-2015,1512-00706,0.00,12248.52,R,Allerton Avenue,No
Http://opendatacommunities.org/id/metropolitan-district-council/leeds,Leeds City Council,31/12/2015,Central & Corporate,Public Health,Third Party Payments,Public Health Commissioned Services,526,22-Dec-2015,1512-00707,0.00,1450.25,R,Allerton Medical Centre,No
Http://opendatacommunities.org/id/metropolitan-district-council/leeds,Leeds City Council,31/12/2015,Central & Corporate,Finance,Supplies and Services,Bank Charges,263,01-Dec-2015,1512-00708,0.00,-128.23,R,Alliance & Leicester Commercial Bank,No
Http://opendatacommunities.org/id/metropolitan-district-council/leeds,Leeds City Council,31/12/2015,Strategic Landlord,Housing Management,Supplies and Services,Other Hired And Contracted Services,265,04-Dec-2015,1512-00709,0.00,295.50,R,Alliance & Leicester Commercial Bank,No
Http://opendatacommunities.org/id/metropolitan-district-council/leeds,Leeds City Council,31/12/2015,Central & Corporate,Finance,Supplies and Services,Bank Charges,263,04-Dec-2015,1512-00710,0.00,4.01,R,Alliance & Leicester Commercial Bank,No
Http://opendatacommunities.org/id/metropolitan-district-council/leeds,Leeds City Council,31/12/2015,Central & Corporate,Finance,Supplies and Services,Bank Charges,263,04-Dec-2015,1512-00711,0.00,320.57,R,Alliance & Leicester Commercial Bank,No
Http://opendatacommunities.org/id/metropolitan-district-council/leeds,Leeds City Council,31/12/2015,Central & Corporate,Finance,Supplies and Services,Bank Charges,263,04-Dec-2015,1512-00712,0.00,1001.01,R,Alliance & Leicester Commercial Bank,No
Http://opendatacommunities.org/id/metropolitan-district-council/leeds,Leeds City Council,31/12/2015,Central & Corporate,Finance,Supplies and Services,Bank Charges,263,04-Dec-2015,1512-00713,0.00,100.14,R,Alliance & Leicester Commercial Bank,No
Http://opendatacommunities.org/id/metropolitan-district-council/leeds,Leeds City Council,31/12/2015,City Development,Highways,Supplies and Services,Other Hired And Contracted Services,265,01-Dec-2015,1512-00714,0.00,50.00,R,Allied Exploration & Geotechnics Ltd,No
Http://opendatacommunities.org/id/metropolitan-district-council/leeds,Leeds City Council,31/12/2015,City Development,Highways,Supplies and Services,Other Hired And Contracted Services,265,08-Dec-2015,1512-00715,0.00,3299.50,R,Allied Exploration & Geotechnics Ltd,No
Http://opendatacommunities.org/id/metropolitan-district-council/leeds,Leeds City Council,31/12/2015,City Development,Highways,Supplies and Services,Other Hired And Contracted Services,265,10-Dec-2015,1512-00716,0.00,5849.08,R,Allied Exploration & Geotechnics Ltd,No
Http://opendatacommunities.org/id/metropolitan-district-council/leeds,Leeds City Council,31/12/2015,City Development,Highways,Supplies and Services,Other Hired And Contracted Services,265,10-Dec-2015,1512-00717,0.00,1637.90,R,Allied Exploration & Geotechnics Ltd,No
Http://opendatacommunities.org/id/metropolitan-district-council/leeds,Leeds City Council,31/12/2015,City Development,Highways,Supplies and Services,Other Hired And Contracted Services,265,11-Dec-2015,1512-00718,0.00,5271.00,R,Allied Exploration & Geotechnics Ltd,No
Http://opendatacommunities.org/id/metropolitan-district-council/leeds,Leeds City Council,31/12/2015,City Development,Highways,Supplies and Services,Other Hired And Contracted Services,265,11-Dec-2015,1512-00719,0.00,3275.23,R,Allied Exploration & Geotechnics Ltd,No
Http://opendatacommunities.org/id/metropolitan-district-council/leeds,Leeds City Council,31/12/2015,City Development,Highways,Capital,Other Costs,7,14-Dec-2015,1512-00720,0.00,2743.86,C,Allied Exploration & Geotechnics Ltd,No
Http://opendatacommunities.org/id/metropolitan-district-council/leeds,Leeds City Council,31/12/2015,City Development,Highways,Capital,Other Costs,7,17-Dec-2015,1512-00721,0.00,793.50,C,Allied Exploration & Geotechnics Ltd,No
Http://opendatacommunities.org/id/metropolitan-district-council/leeds,Leeds City Council,31/12/2015,City Development,Highways,Supplies and Services,Other Hired And Contracted Services,265,18-Dec-2015,1512-00722,0.00,28.50,R,Allied Exploration & Geotechnics Ltd,No
Http://opendatacommunities.org/id/metropolitan-district-council/leeds,Leeds City Council,31/12/2015,City Development,Highways,Capital,Other Costs,7,18-Dec-2015,1512-00723,0.00,3251.78,C,Allied Exploration & Geotechnics Ltd,No
Http://opendatacommunities.org/id/metropolitan-district-council/leeds,Leeds City Council,31/12/2015,City Development,Highways,Supplies and Services,Other Hired And Contracted Services,265,18-Dec-2015,1512-00724,0.00,1333.00,R,Allied Exploration & Geotechnics Ltd,No
Http://opendatacommunities.org/id/metropolitan-district-council/leeds,Leeds City Council,31/12/2015,City Development,Highways,Supplies and Services,Other Hired And Contracted Services,265,22-Dec-2015,1512-00725,0.00,991.60,R,Allied Exploration & Geotechnics Ltd,No
Http://opendatacommunities.org/id/metropolitan-district-council/leeds,Leeds City Council,31/12/2015,Childrens Services,Safeguarding Targeted & Specialist,Third Party Payments,Services Rendered By Voluntary Sector,505,02-Dec-2015,1512-00726,0.00,1606.95,R,Allied Healthcare,No
Http://opendatacommunities.org/id/metropolitan-district-council/leeds,Leeds City Council,31/12/2015,Adult Social Care,Services For Older People - 65 And Over,Third Party Payments,Home Care,568,03-Dec-2015,1512-00727,0.00,442.84,R,Allied Healthcare,No
Http://opendatacommunities.org/id/metropolitan-district-council/leeds,Leeds City Council,31/12/2015,Adult Social Care,Services For Older People - 65 And Over,Third Party Payments,Special Guardianship,558,03-Dec-2015,1512-00728,0.00,191.12,R,Allied Healthcare,No
Http://opendatacommunities.org/id/metropolitan-district-council/leeds,Leeds City Council as Accountable Body,31/12/2015,Social Services Pooled Budgets,Jcs For People With Learning Disabilitie,Third Party Payments,Home Care,568,03-Dec-2015,1512-00729,0.00,3804.98,R,Allied Healthcare,No
Http://opendatacommunities.org/id/metropolitan-district-council/leeds,Leeds City Council as Accountable Body,31/12/2015,Social Services Pooled Budgets,Jcs For People With Learning Disabilitie,Third Party Payments,Home Care,568,03-Dec-2015,1512-00730,0.00,200.16,R,Allied Healthcare,No
Http://opendatacommunities.org/id/metropolitan-district-council/leeds,Leeds City Council,31/12/2015,Adult Social Care,Services For Older People Under 65 P/Dis,Third Party Payments,Home Care,568,04-Dec-2015,1512-00731,0.00,326.40,R,Allied Healthcare,No
Http://opendatacommunities.org/id/metropolitan-district-council/leeds,Leeds City Council as Accountable Body,31/12/2015,Social Services Pooled Budgets,Jcs For People With Learning Disabilitie,Third Party Payments,Home Care,568,04-Dec-2015,1512-00732,0.00,235.13,R,Allied Healthcare,No
Http://opendatacommunities.org/id/metropolitan-district-council/leeds,Leeds City Council as Accountable Body,31/12/2015,Social Services Pooled Budgets,Jcs For People With Learning Disabilitie,Third Party Payments,Home Care,568,07-Dec-2015,1512-00733,0.00,3982.12,R,Allied Healthcare,No
Http://opendatacommunities.org/id/metropolitan-district-council/leeds,Leeds City Council as Accountable Body,31/12/2015,Social Services Pooled Budgets,Jcs For People With Learning Disabilitie,Third Party Payments,Home Care,568,07-Dec-2015,1512-00734,0.00,14954.36,R,Allied Healthcare,No
Http://opendatacommunities.org/id/metropolitan-district-council/leeds,Leeds City Council as Accountable Body,31/12/2015,Social Services Pooled Budgets,Jcs For People With Learning Disabilitie,Third Party Payments,Home Care,568,07-Dec-2015,1512-00735,0.00,976.49,R,Allied Healthcare,No
Http://opendatacommunities.org/id/metropolitan-district-council/leeds,Leeds City Council as Accountable Body,31/12/2015,Social Services Pooled Budgets,Jcs For People With Learning Disabilitie,Third Party Payments,Home Care,568,07-Dec-2015,1512-00736,0.00,16032.62,R,Allied Healthcare,No
Http://opendatacommunities.org/id/metropolitan-district-council/leeds,Leeds City Council as Accountable Body,31/12/2015,Social Services Pooled Budgets,Jcs For People With Learning Disabilitie,Third Party Payments,Home Care,568,07-Dec-2015,1512-00737,0.00,216.87,R,Allied Healthcare,No
Http://opendatacommunities.org/id/metropolitan-district-council/leeds,Leeds City Council as Accountable Body,31/12/2015,Social Services Pooled Budgets,Jcs For People With Learning Disabilitie,Third Party Payments,Home Care,568,07-Dec-2015,1512-00738,0.00,15288.69,R,Allied Healthcare,No
Http://opendatacommunities.org/id/metropolitan-district-council/leeds,Leeds City Council,31/12/2015,Adult Social Care,Services For Older People - 65 And Over,Third Party Payments,Home Care,568,09-Dec-2015,1512-00739,0.00,596.70,R,Allied Healthcare,No
